Workbook

Sheet List1
B2: Vstupní parametry
B3: Délka mědi na pravé části [mm] | C3: 300 | D3: Počáteční čas | E3: 0
B4: Délka makety [mm] | C4: 340 | D4: Celkový čas | E4: =E5+C6 -> 0.0005 | F4: =E4/60 -> 8.333333333e-06
B5: Proud zdroje[A] | C5: 30 | D5: Předchozí čas | E5: 0
B6: Čas [s] | C6: 0.0005
B7: Vnější průměr makety [mm] | C7: 9
B8: Delka medi na leve casti [mm] | C8: 300
B12: Delka dilku [m] | C12: =((C4-20)/18)/1000 -> 0.01777777778
B15: Elektřina
B16: Odpor [Ω] | C16: =K26+(1/(1/J58+1/AQ56))+AQ75+AQ88+AQ101+AQ114+AQ127+AQ140+AQ153+AQ166+AQ179+AQ192+(1/(1/BF179+1/BX28))+BF166+BF153+BF140+BF127+BF114+BF101+BF88+BF75+BF56+CE26 -> 0.02459678066 | D16: Počáteční teplota | E16: 20 | F16: 20 | G16: 20 | H16: 20 | I16: 20 | J16: 20 | K16: 20 | L16: 20 | M16: 20 | N16: 20 | O16: 20 | P16: 20 | Q16: 20 | R16: 20 | S16: 20 | T16: 20 | U16: 20 | V16: 20 | W16: 20 | X16: 20 | Y16: 20 | Z16: 20 | AA16: 20 | AB16: 20 | AC16: 20 | AD16: 20 | AE16: 20 | AF16: 20 | AG16: 20 | AH16: 20 | AI16: 20 | AJ16: Vrstva | AK16: Počáteční teplota | AL16: 20 | AM16: 20 | AN16: 20 | AO16: 20 | AP16: 20 | AQ16: 20 | AR16: 20 | AS16: 20 | AT16: 20 | AU16: 20 | AV16: 20 | AW16: 20 | AX16: 20 | AY16: 20 | AZ16: 20 | BA16: 20 | BB16: 20 | BC16: 20 | BD16: 20 | BE16: 20 | BF16: 20 | BG16: 20 | BH16: 20 | BI16: 20 | BJ16: 20 | BK16: 20 | BL16: 20 | BM16: 20 | BN16: 20 | BO16: 20 | BP16: 20 | BQ16: 20 | BR16: 20 | BS16: 20 | BT16: 20 | BU16: 20 | BV16: 20 | BW16: 20 | BX16: 20 | BY16: 20 | BZ16: 20 | CA16: 20 | CB16: 20 | CC16: 20 | CD16: 20 | CE16: 20 | CF16: 20 | CG16: 20 | CH16: 20 | CI16: 20 | CJ16: 20 | CK16: 20
B17: Napětí [V] | C17: =C5*C16 -> 0.7379034199
B18: Výkon [W] | C18: =C17*C5 -> 22.1371026 | D18: Koordináty | E18: 0 | F18: =C8/30 -> 10 | G18: =F18+$C$8/30 -> 20 | H18: =G18+$C$8/30 -> 30 | I18: 40 | J18: 50 | K18: 60 | L18: 70 | M18: 80 | N18: 90 | O18: 100 | P18: 110 | Q18: 120 | R18: 130 | S18: 140 | T18: 150 | U18: 160 | V18: 170 | W18: 180 | X18: 190 | Y18: 200 | Z18: 210 | AA18: 220 | AB18: 230 | AC18: 240 | AD18: 250 | AE18: 260 | AF18: 270 | AG18: 280 | AH18: 290 | AI18: 300 | AK18: Koordináty | AL18: =AI18 -> 300 | AM18: =AL18+10 -> 310 | AN18: =AM18+($C$4-20)/18 -> 327.7777778 | AO18: =AN18+($C$4-20)/18 -> 345.5555556 | AP18: 363.3333333 | AQ18: 381.1111111 | AR18: 398.8888889 | AS18: 416.6666667 | AT18: 434.4444444 | AU18: 452.2222222 | AV18: 470 | AW18: 487.7777778 | AX18: 505.5555556 | AY18: 523.3333333 | AZ18: 541.1111111 | BA18: 558.8888889 | BB18: 576.6666667 | BC18: 594.4444444 | BD18: 612.2222222 | BE18: 630 | BF18: =BE18+10 -> 640 | BG18: =BF18 -> 640 | BH18: =BG18+$C$3/30 -> 650 | BI18: =BH18+$C$3/30 -> 660 | BJ18: =BI18+$C$3/30 -> 670 | BK18: 680 | BL18: 690 | BM18: 700 | BN18: 710 | BO18: 720 | BP18: 730 | BQ18: 740 | BR18: 750 | BS18: 760 | BT18: 770 | BU18: 780 | BV18: 790 | BW18: 800 | BX18: 810 | BY18: 820 | BZ18: 830 | CA18: 840 | CB18: 850 | CC18: 860 | CD18: 870 | CE18: 880 | CF18: 890 | CG18: 900 | CH18: =CG18+$C$3/30 -> 910 | CI18: =CH18+$C$3/30 -> 920 | CJ18: =CI18+$C$3/30 -> 930 | CK18: 940
D19: Současná teplota | E19: =E20+(P28^2/J28*$C$6-(E20-E16)/Q28*$C$6+(F20-E20)/R28*$C$6-AH50*AH52*G26*((273.15+E20)^4-(273.15+AL16)^4)*$C$6)/K28 -> 20.00000084 | F19: =F20+(P29^2/J29*$C$6-(F20-F16)/Q29*$C$6+(G20-F20)/R29*$C$6-(F20-E20)/R28*$C$6-AH50*AH52*G26*((273.15+F20)^4-(273.15+AL16)^4)*$C$6)/K29 -> 20.00000084 | G19: =G20+(P30^2/J30*$C$6-(G20-G16)/Q30*$C$6+(H20-G20)/R30*$C$6-(G20-F20)/R29*$C$6-AH50*AH52*G26*((273.15+G20)^4-(273.15+AL16)^4)*$C$6)/K30 -> 20.00000084 | H19: =H20+(P31^2/J31*$C$6-(H20-H16)/Q31*$C$6+(I20-H20)/R31*$C$6-(H20-G20)/R30*$C$6-AH50*AH52*G26*((273.15+H20)^4-(273.15+AL16)^4)*$C$6)/K31 -> 20.00000084 | I19: =I20+(P32^2/J32*$C$6-(I20-I16)/Q32*$C$6+(J20-I20)/R32*$C$6-(I20-H20)/R31*$C$6-AH50*AH52*G26*((273.15+I20)^4-(273.15+AL16)^4)*$C$6)/K32 -> 20.00000084 | J19: =J20+(P33^2/J33*$C$6-(J20-J16)/Q33*$C$6+(K20-J20)/R33*$C$6-(J20-I20)/R32*$C$6-AH50*AH52*G26*((273.15+J20)^4-(273.15+AL16)^4)*$C$6)/K33 -> 20.00000084 | K19: =K20+(P34^2/J34*$C$6-(K20-K16)/Q34*$C$6+(L20-K20)/R34*$C$6-(K20-J20)/R33*$C$6-AH50*AH52*G26*((273.15+K20)^4-(273.15+AL16)^4)*$C$6)/K34 -> 20.00000084 | L19: =L20+(P35^2/J35*$C$6-(L20-L16)/Q35*$C$6+(M20-L20)/R35*$C$6-(L20-K20)/R34*$C$6-AH50*AH52*G26*((273.15+L20)^4-(273.15+AL16)^4)*$C$6)/K35 -> 20.00000084 | M19: =M20+(P36^2/J36*$C$6-(M20-M16)/Q36*$C$6+(N20-M20)/R36*$C$6-(M20-L20)/R35*$C$6-AH50*AH52*G26*((273.15+M20)^4-(273.15+AL16)^4)*$C$6)/K36 -> 20.00000084 | N19: =N20+(P37^2/J36*$C$6-(N20-N16)/Q37*$C$6+(O20-N20)/R37*$C$6-(N20-M20)/R36*$C$6-AH50*AH52*G26*((273.15+N20)^4-(273.15+AL16)^4)*$C$6)/K37 -> 20.00000084 | O19: =O20+(P38^2/J38*$C$6-(O20-O16)/Q38*$C$6+(P20-O20)/R38*$C$6-(O20-N20)/R37*$C$6-AH50*AH52*G26*((273.15+O20)^4-(273.15+AL16)^4)*$C$6)/K38 -> 20.00000084 | P19: =P20+(P39^2/J39*$C$6-(P20-P16)/Q39*$C$6+(Q20-P20)/R39*$C$6-(P20-O20)/R38*$C$6-AH50*AH52*G26*((273.15+P20)^4-(273.15+AL16)^4)*$C$6)/K39 -> 20.00000084 | Q19: =Q20+(P40^2/J40*$C$6-(Q20-Q16)/Q40*$C$6+(R20-Q20)/R40*$C$6-(Q20-P20)/R39*$C$6-AH50*AH52*G26*((273.15+Q20)^4-(273.15+AL16)^4)*$C$6)/K40 -> 20.00000084 | R19: =R20+(P41^2/J41*$C$6-(R20-R16)/Q41*$C$6+(S20-R20)/R41*$C$6-(R20-Q20)/R40*$C$6-AH50*AH52*G26*((273.15+R20)^4-(273.15+AL16)^4)*$C$6)/K41 -> 20.00000084 | S19: =S20+(P42^2/J42*$C$6-(S20-S16)/Q42*$C$6+(T20-S20)/R42*$C$6-(S20-R20)/R41*$C$6-AH50*AH52*G26*((273.15+S20)^4-(273.15+AL16)^4)*$C$6)/K42 -> 20.00000084 | T19: =T20+(P43^2/J43*$C$6-(T20-T16)/Q43*$C$6+(U20-T20)/R43*$C$6-(T20-S20)/R42*$C$6-AH50*AH52*G26*((273.15+T20)^4-(273.15+AL16)^4)*$C$6)/K43 -> 20.00000084 | U19: =U20+(P44^2/J44*$C$6-(U20-U16)/Q44*$C$6+(V20-U20)/R44*$C$6-(U20-T20)/R43*$C$6-AH50*AH52*G26*((273.15+U20)^4-(273.15+AL16)^4)*$C$6)/K44 -> 20.00000084 | V19: =V20+(P45^2/J45*$C$6-(V20-V16)/Q45*$C$6+(W20-V20)/R45*$C$6-(V20-U20)/R44*$C$6-AH50*AH52*G26*((273.15+V20)^4-(273.15+AL16)^4)*$C$6)/K45 -> 20.00000084 | W19: =W20+(P46^2/J46*$C$6-(W20-W16)/Q46*$C$6+(X20-W20)/R46*$C$6-(W20-V20)/R45*$C$6-AH50*AH52*G26*((273.15+W20)^4-(273.15+AL16)^4)*$C$6)/K46 -> 20.00000084 | X19: =X20+(P47^2/J47*$C$6-(X20-X16)/Q47*$C$6+(Y20-X20)/R47*$C$6-(X20-W20)/R46*$C$6-AH50*AH52*G26*((273.15+X20)^4-(273.15+AL16)^4)*$C$6)/K47 -> 20.00000084 | Y19: =Z20+(P48^2/J48*$C$6-(Z20-Z16)/Q48*$C$6+(Z20-Y20)/R48*$C$6-(Y20-X20)/R47*$C$6-AH50*AH52*G26*((273.15+Y20)^4-(273.15+AL16)^4)*$C$6)/K48 -> 20.00000084 | Z19: =Z20+(P49^2/J49*$C$6-(Z20-Z16)/Q49*$C$6+(AA20-Z20)/R49*$C$6-(Z20-Y20)/R48*$C$6-AH50*AH52*G26*((273.15+Z20)^4-(273.15+AL16)^4)*$C$6)/K49 -> 20.00000084 | AA19: =AA20+(P50^2/J50*$C$6-(AA20-AA16)/Q50*$C$6+(AB20-AA20)/R50*$C$6-(AA20-Z20)/R49*$C$6-AH50*AH52*G26*((273.15+AA20)^4-(273.15+AL16)^4)*$C$6)/K50 -> 20.00000084 | AB19: =AB20+(P51^2/J51*$C$6-(AB20-AB16)/Q51*$C$6+(AC20-AB20)/R51*$C$6-(AB20-AA20)/R50*$C$6-AH50*AH52*G26*((273.15+AB20)^4-(273.15+AL16)^4)*$C$6)/K51 -> 20.00000084 | AC19: =AC20+(P52^2/J52*$C$6-(AC16-AC20)/Q52*$C$6+(AD20-AC20)/R52*$C$6-(AC20-AB20)/R51*$C$6-AH50*AH52*G26*((273.15+AC20)^4-(273.15+AL16)^4)*$C$6)/K52 -> 20.00000084 | AD19: =AD20+(P53^2/J53*$C$6-(AD20-AD16)/Q53*$C$6+(AE20-AD20)/R53*$C$6-(AD20-AC20)/R52*$C$6-AH50*AH52*G26*((273.15+AD20)^4-(273.15+AL16)^4)*$C$6)/K53 -> 20.00000084 | AE19: =AE20+(P54^2/J54*$C$6-(AE20-AE16)/Q54*$C$6+(AF20-AE20)/R54*$C$6-(AE20-AD20)/R53*$C$6-AH50*AH52*G26*((273.15+AE20)^4-(273.15+AL16)^4)*$C$6)/K54 -> 20.00000084 | AF19: =AF20+(P55^2/J55*$C$6-(AF20-AF16)/Q55*$C$6+(AG20-AF20)/R55*$C$6-(AF20-AE20)/R54*$C$6-AH50*AH52*G26*((273.15+AF20)^4-(273.15+AL16)^4)*$C$6)/K55 -> 20.00000084 | AG19: =AG20+(P56^2/J56*$C$6-(AG20-AG16)/Q56*$C$6+(AH20-AG20)/R56*$C$6-(AG20-AF20)/R55*$C$6-AH50*AH52*G26*((273.15+AG20)^4-(273.15+AL16)^4)*$C$6)/K56 -> 20.00000084 | AH19: =AH20+(P57^2/J57*$C$6-(AH20-AH16)/Q57*$C$6+(AI20-AH20)/R57*$C$6-(AH20-AG20)/R56*$C$6-AH50*AH52*G26*((273.15+AH20)^4-(273.15+AL16)^4)*$C$6)/K57 -> 20.00000084 | AI19: =AI20+(P58^2/J58*$C$6+(AL20-AI20)/C23*$C$6-(AI20-AH20)/R57*$C$6)/K58 -> 20.00000135 | AJ19: 1 | AK19: Současná teplota | AL19: =AL20+($AV$46^2/$AQ$46*$C$6-(AL20-AL22)/$AU$46*$C$6-(AL20-AI20)/C23*$C$6+(AM20-AL20)/AT65*$C$6)/$AR$46 -> 20.00000012 | AM19: =AM20+($AV$65^2/$AQ$65*$C$6-(AM20-AM22)/$AU$65*$C$6+(AN20-AM20)/AT78*$C$6-(AM20-AL20)/AT65*$C$6)/$AR$65 -> 20.00053971 | AN19: =AN20+($AV$78^2/$AQ$78*$C$6-(AN20-AN22)/$AU$78*$C$6+(AO20-AN20)/AT91*$C$6-(AN20-AM20)/AT78*$C$6)/$AR$78 -> 20.00053971 | AO19: =AO20+($AV$91^2/$AQ$91*$C$6-(AO20-AO22)/$AU$91*$C$6+(AP20-AO20)/AT104*$C$6-(AO20-AN20)/AT91*$C$6)/$AR$91 -> 20.00053971 | AP19: =AP20+($AV$104^2/$AQ$104*$C$6-(AP20-AP22)/$AU$104*$C$6+(AQ20-AP20)/AT117*$C$6-(AP20-AO20)/AT104*$C$6)/$AR$104 -> 20.00053971 | AQ19: =AQ20+($AV$117^2/$AQ$117*$C$6-(AQ20-AQ22)/$AU$117*$C$6+(AR20-AQ20)/AT130*$C$6-(AQ20-AP20)/AT117*$C$6)/$AR$117 -> 20.00053971 | AR19: =AR20+($AV$130^2/$AQ$130*$C$6-(AR20-AR22)/$AU$130*$C$6+(AS20-AR20)/AT143*$C$6-(AR20-AQ20)/AT130*$C$6)/$AR$130 -> 20.00053971 | AS19: =AS20+($AV$143^2/$AQ$143*$C$6-(AS20-AS22)/$AU$143*$C$6+(AT20-AS20)/AT156*$C$6-(AS20-AR20)/AT143*$C$6)/$AR$143 -> 20.00053971 | AT19: =AT20+($AV$156^2/$AQ$156*$C$6-(AT20-AT22)/$AU$156*$C$6+(AU20-AT20)/AT169*$C$6-(AT20-AS20)/AT156*$C$6)/$AR$156 -> 20.00053971 | AU19: =AU20+($AV$169^2/$AQ$169*$C$6-(AU20-AU22)/$AU$169*$C$6+(AV20-AU20)/AT182*$C$6-(AU20-AT20)/AT169*$C$6)/$AR$169 -> 20.00053971 | AV19: =AV20+($AV$182^2/$AQ$182*$C$6-(AV20-AV22)/$AU$182*$C$6-(AV20-AU20)/AT182*$C$6-(AV20-AW20)/AW182*$C$6)/$AR$182 -> 20.00053971 | AW19: =AW20+($BK$46^2/$BF$46*$C$6-(AW20-AW22)/$BJ$46*$C$6+(AV20-AW20)/AW182*$C$6-(AW20-AX20)/BI46*$C$6)/$BG$46 -> 20.00053971 | AX19: =AX20+($BK$65^2/$BF$65*$C$6-(AX20-AX22)/$BJ$65*$C$6+(AW20-AX20)/BI46*$C$6-(AX20-AY20)/BI65*$C$6)/$BG$65 -> 20.00053971 | AY19: =AY20+($BK$78^2/$BF$78*$C$6-(AY20-AY22)/$BJ$78*$C$6+(AX20-AY20)/BI65*$C$6-(AY20-AZ20)/BI78*$C$6)/$BG$78 -> 20.00053971 | AZ19: =AZ20+($BK$91^2/$BF$91*$C$6-(AZ20-AZ22)/$BJ$91*$C$6+(AY20-AZ20)/BI78*$C$6-(AZ20-BA20)/BI91*$C$6)/$BG$91 -> 20.00053971 | BA19: =BA20+($BK$104^2/$BF$104*$C$6-(BA20-BA22)/$BJ$104*$C$6+(AZ20-BA20)/BI91*$C$6-(BA20-BB20)/BI104*$C$6)/$BG$104 -> 20.00053971 | BB19: =BB20+($BK$117^2/$BF$117*$C$6-(BB20-BB22)/$BJ$117*$C$6+(BA20-BB20)/BI104*$C$6-(BB20-BC20)/BI117*$C$6)/$BG$117 -> 20.00053971 | BC19: =BC20+($BK$130^2/$BF$130*$C$6-(BC20-BC22)/$BJ$130*$C$6+(BB20-BC20)/BI117*$C$6-(BC20-BD20)/BI130*$C$6)/$BG$130 -> 20.00053971 | BD19: =BD20+($BK$143^2/$BF$143*$C$6-(BD20-BD22)/$BJ$143*$C$6+(BC20-BD20)/BI130*$C$6-(BD20-BE20)/BI143*$C$6)/$BG$143 -> 20.00053971 | BE19: =BE20+($BK$156^2/$BF$156*$C$6-(BE20-BE22)/$BJ$156*$C$6+(BD20-BE20)/BI143*$C$6-(BE20-BF20)/BI156*$C$6)/$BG$156 -> 20.00053971 | BF19: =BF20+($BK$169^2/$BF$169*$C$6-(BF20-BF22)/$BJ$169*$C$6+(BE20-BF20)/BI156*$C$6)/$BG$169 -> 20.00000064 | BG19: =BG20+(CD28^2/BX28*$C$6+(BF38-BG20)/$BJ$178*$C$6-(BG20-BG16)/CE28*$C$6-(BG20-BH20)/CF28*$C$6-AH50*AH52*BU26*((273.15+BG20)^4-(273.15+AL16)^4)*$C$6)/BY28 -> 20.00001261 | BH19: =BH20+(CD29^2/BX29*$C$6-(BH20-BH16)/CE29*$C$6+(BG20-BH20)/CF28*$C$6-(BH20-BI20)/CF29*$C$6-AH50*AH52*BU26*((273.15+BH20)^4-(273.15+AL16)^4)*$C$6)/BY29 -> 20.00001385 | BI19: =BI20+(CD30^2/BX30*$C$6-(BI20-BI16)/CE30*$C$6+(BH20-BI20)/CF29*$C$6-(BI20-BJ20)/CF30*$C$6-AH50*AH52*BU26*((273.15+BI20)^4-(273.15+AL16)^4)*$C$6)/BY30 -> 20.00001385 | BJ19: =BJ20+(CD31^2/BX31*$C$6-(BJ20-BJ16)/CE31*$C$6+(BI20-BJ20)/CF30*$C$6-(BJ20-BK20)/CF31*$C$6-AH50*AH52*BU26*((273.15+BJ20)^4-(273.15+AL16)^4)*$C$6)/BY31 -> 20.00001385 | BK19: =BK20+(CD32^2/BX32*$C$6-(BK20-BK16)/CE32*$C$6+(BJ20-BK20)/CF31*$C$6-(BK20-BL20)/CF32*$C$6-AH50*AH52*BU26*((273.15+BK20)^4-(273.15+AL16)^4)*$C$6)/BY32 -> 20.00001385 | BL19: =BL20+($CD$33^2/$BX$33*$C$6-(BL20-BL16)/$CE$33*$C$6+(BK20-BL20)/CF32*$C$6-(BL20-BM20)/CF33*$C$6-AH50*AH52*BU26*((273.15+BL20)^4-(273.15+AL16)^4)*$C$6)/$BY$33 -> 20.00001385 | BM19: =BM20+($CD$34^2/$BX$34*$C$6-(BM20-BM16)/$CE$34*$C$6+(BL20-BM20)/CF33*$C$6-(BM20-BN20)/CF34*$C$6-AH50*AH52*BU26*((273.15+BM20)^4-(273.15+AL16)^4)*$C$6)/$BY$34 -> 20.00001385 | BN19: =BN20+($CD$35^2/$BX$35*$C$6-(BN20-BN16)/$CE$35*$C$6+(BM20-BN20)/CF34*$C$6-(BN20-BO20)/CF35*$C$6-AH50*AH52*BU26*((273.15+BN20)^4-(273.15+AL16)^4)*$C$6)/$BY$35 -> 20.00001385 | BO19: =BO20+($CD$36^2/$BX$36*$C$6-(BO20-BO16)/$CE$36*$C$6+(BN20-BO20)/CF35*$C$6-(BO20-BP20)/CF36*$C$6-AH50*AH52*BU26*((273.15+BO20)^4-(273.15+AL16)^4)*$C$6)/$BY$36 -> 20.00001385 | BP19: =BP20+($CD$37^2/$BX$37*$C$6-(BP20-BP16)/$CE$37*$C$6+(BO20-BP20)/CF36*$C$6-(BP20-BQ20)/CF37*$C$6-AH50*AH52*BU26*((273.15+BP20)^4-(273.15+AL16)^4)*$C$6)/$BY$37 -> 20.00001385 | BQ19: =BQ20+($CD$38^2/$BX$38*$C$6-(BQ20-BQ16)/$CE$38*$C$6+(BP20-BQ20)/CF37*$C$6-(BQ20-BR20)/CF38*$C$6-AH50*AH52*BU26*((273.15+BQ20)^4-(273.15+AL16)^4)*$C$6)/$BY$38 -> 20.00001385 | BR19: =BR20+($CD$39^2/$BX$39*$C$6-(BR20-BR16)/$CE$39*$C$6+(BQ20-BR20)/CF38*$C$6-(BR20-BS20)/CF39*$C$6-AH50*AH52*BU26*((273.15+BR20)^4-(273.15+AL16)^4)*$C$6)/$BY$39 -> 20.00001385 | BS19: =BS20+($CD$40^2/$BX$40*$C$6-(BS20-BS16)/$CE$40*$C$6+(BR20-BS20)/CF39*$C$6-(BS20-BT20)/CF40*$C$6-AH50*AH52*BU26*((273.15+BS20)^4-(273.15+AL16)^4)*$C$6)/$BY$40 -> 20.00001385 | BT19: =BT20+($CD$41^2/$BX$41*$C$6-(BT20-BT16)/$CE$41*$C$6+(BS20-BT20)/CF40*$C$6-(BT20-BU20)/CF41*$C$6-AH50*AH52*BU26*((273.15+BT20)^4-(273.15+AL16)^4)*$C$6)/$BY$41 -> 20.00001385 | BU19: =BU20+($CD$42^2/$BX$42*$C$6-(BU20-BU16)/$CE$42*$C$6+(BT20-BU20)/CF41*$C$6-(BU20-BV20)/CF42*$C$6-AH50*AH52*BU26*((273.15+BU20)^4-(273.15+AL16)^4)*$C$6)/$BY$42 -> 20.00001385 | BV19: =BV20+($CD$43^2/$BX$43*$C$6-(BV20-BV16)/$CE$43*$C$6+(BU20-BV20)/CF42*$C$6-(BV20-BW20)/CF43*$C$6-AH50*AH52*BU26*((273.15+BV20)^4-(273.15+AL16)^4)*$C$6)/$BY$43 -> 20.00001385 | BW19: =BW20+($CD$44^2/$BX$44*$C$6-(BW16-BW20)/$CE$44*$C$6+(BV20-BW20)/CF43*$C$6-(BW20-BX20)/CF44*$C$6-AH50*AH52*BU26*((273.15+BW20)^4-(273.15+AL16)^4)*$C$6)/$BY$44 -> 20.00001385 | BX19: =BX20+($CD$45^2/$BX$45*$C$6-(BX20-BX16)/$CE$45*$C$6+(BW20-BX20)/CF44*$C$6-(BX20-BY20)/CF45*$C$6-AH50*AH52*BU26*((273.15+BX20)^4-(273.15+AL16)^4)*$C$6)/$BY$45 -> 20.00001385 | BY19: =BY20+($CD$46^2/$BX$46*$C$6-(BY20-BY16)/$CE$46*$C$6+(BX20-BY20)/CF45*$C$6-(BY20-BZ20)/CF46*$C$6-AH50*AH52*BU26*((273.15+BY20)^4-(273.15+AL16)^4)*$C$6)/$BY$46 -> 20.00001385 | BZ19: =BZ20+($CD$47^2/$BX$47*$C$6-(BZ20-BZ16)/$CE$47*$C$6+(BY20-BZ20)/CF46*$C$6-(BZ20-CA20)/CF47*$C$6-AH50*AH52*BU26*((273.15+BZ20)^4-(273.15+AL16)^4)*$C$6)/$BY$47 -> 20.00001385 | CA19: =CA20+($CD$48^2/$BX$48*$C$6-(CA20-CA16)/$CE$48*$C$6+(BZ20-CA20)/CF47*$C$6-(CA20-CB20)/CF48*$C$6-AH50*AH52*BU26*((273.15+CA20)^4-(273.15+AL16)^4)*$C$6)/$BY$48 -> 20.00001385 | CB19: =CB20+($CD$49^2/$BX$49*$C$6-(CB20-CB16)/$CE$49*$C$6+(CA20-CB20)/CF48*$C$6-(CB20-CC20)/CF49*$C$6-AH50*AH52*BU26*((273.15+CB20)^4-(273.15+AL16)^4)*$C$6)/$BY$49 -> 20.00001385 | CC19: =CC20+($CD$50^2/$BX$50*$C$6-(CC20-CC16)/$CE$50*$C$6+(CB20-CC20)/CF49*$C$6-(CC20-CD20)/CF50*$C$6-AH50*AH52*BU26*((273.15+CC20)^4-(273.15+AL16)^4)*$C$6)/$BY$50 -> 20.00001385 | CD19: =CD20+($CD$51^2/$BX$51*$C$6-(CD20-CD16)/$CE$51*$C$6+(CC20-CD20)/CF50*$C$6-(CD20-CE20)/CF51*$C$6-AH50*AH52*BU26*((273.15+CD20)^4-(273.15+AL16)^4)*$C$6)/$BY$51 -> 20.00001397 | CE19: =CE20+($CD$52^2/$BX$52*$C$6-(CE20-CE16)/$CE$52*$C$6+(CD20-CE20)/CF51*$C$6-(CE20-CF20)/CF52*$C$6-AH50*AH52*BU26*((273.15+CE20)^4-(273.15+AL16)^4)*$C$6)/$BY$52 -> 20.00001385 | CF19: =CF20+($CD$53^2/$BX$53*$C$6-(CF20-CF16)/$CE$53*$C$6+(CE20-CF20)/CF52*$C$6-(CF20-CG20)/CF53*$C$6-AH50*AH52*BU26*((273.15+CF20)^4-(273.15+AL16)^4)*$C$6)/$BY$53 -> 20.00001385 | CG19: =CG20+($CD$54^2/$BX$54*$C$6-(CG20-CG16)/$CE$54*$C$6+(CF20-CG20)/CF53*$C$6-(CG20-CH20)/CF54*$C$6-AH50*AH52*BU26*((273.15+CG20)^4-(273.15+AL16)^4)*$C$6)/$BY$54 -> 20.00001385 | CH19: =CH20+($CD$55^2/$BX$55*$C$6-(CH20-CH16)/$CE$55*$C$6+(CG20-CH20)/CF54*$C$6-(CH20-CI20)/CF55*$C$6-AH50*AH52*BU26*((273.15+CH20)^4-(273.15+AL16)^4)*$C$6)/$BY$55 -> 20.00001385 | CI19: =CI20+($CD$56^2/$BX$56*$C$6-(CI20-CI16)/$CE$56*$C$6+(CH20-CI20)/CF55*$C$6-(CI20-CJ20)/CF56*$C$6-AH50*AH52*BU26*((273.15+CI20)^4-(273.15+AL16)^4)*$C$6)/$BY$56 -> 20.00001385 | CJ19: =CJ20+($CD$57^2/$BX$57*$C$6-(CJ20-CJ16)/$CE$57*$C$6+(CI20-CJ20)/CF56*$C$6-(CJ20-CK20)/CF57*$C$6-AH50*AH52*BU26*((273.15+CJ20)^4-(273.15+AL16)^4)*$C$6)/$BY$57 -> 20.00001385 | CK19: =CK20+($CD$58^2/$BX$58*$C$6-(CK20-CK16)/$CE$58*$C$6+(CJ20-CK20)/CF57*$C$6-AH50*AH52*BU26*((273.15+CK20)^4-(273.15+AL16)^4)*$C$6)/$BY$58 -> 20.00001385
D20: Předchozí teplota | E20: 20 | F20: 20 | G20: 20 | H20: 20 | I20: 20 | J20: 20 | K20: 20 | L20: 20 | M20: 20 | N20: 20 | O20: 20 | P20: 20 | Q20: 20 | R20: 20 | S20: 20 | T20: 20 | U20: 20 | V20: 20 | W20: 20 | X20: 20 | Y20: 20 | Z20: 20 | AA20: 20 | AB20: 20 | AC20: 20 | AD20: 20 | AE20: 20 | AF20: 20 | AG20: 20 | AH20: 20 | AI20: 20 | AJ20: 1 | AK20: Předchozí teplota | AL20: 20 | AM20: 20 | AN20: 20 | AO20: 20 | AP20: 20 | AQ20: 20 | AR20: 20 | AS20: 20 | AT20: 20 | AU20: 20 | AV20: 20 | AW20: 20 | AX20: 20 | AY20: 20 | AZ20: 20 | BA20: 20 | BB20: 20 | BC20: 20 | BD20: 20 | BE20: 20 | BF20: 20 | BG20: 20 | BH20: 20 | BI20: 20 | BJ20: 20 | BK20: 20 | BL20: 20 | BM20: 20 | BN20: 20 | BO20: 20 | BP20: 20 | BQ20: 20 | BR20: 20 | BS20: 20 | BT20: 20 | BU20: 20 | BV20: 20 | BW20: 20 | BX20: 20 | BY20: 20 | BZ20: 20 | CA20: 20 | CB20: 20 | CC20: 20 | CD20: 20 | CE20: 20 | CF20: 20 | CG20: 20 | CH20: 20 | CI20: 20 | CJ20: 20 | CK20: 20
AJ21: 2 | AK21: Současná teplota | AL21: =AL22+($AV$47^2/$AQ$47*$C$6+(AL20-AL22)/$AU$46*$C$6-(AL22-AL24)/$AU$47*$C$6+(AM22-AL22)/AT66*$C$6)/$AR$47 -> 20.00000012 | AM21: =AM22+($AV$66^2/$AQ$66*$C$6+(AM20-AM22)/$AU$65*$C$6-(AM22-AM24)/$AU$66*$C$6+(AN22-AM22)/AT79*$C$6-(AM22-AL22)/AT66*$C$6)/$AR$66 -> 20.00053971 | AN21: =AN22+($AV$79^2/$AQ$79*$C$6+(AN20-AN22)/$AU$78*$C$6-(AN22-AN24)/$AU$79*$C$6+(AO22-AN22)/AT92*$C$6-(AN22-AM22)/AT79*$C$6)/$AR$79 -> 20.00053971 | AO21: =AO22+($AV$92^2/$AQ$92*$C$6+(AO20-AO22)/$AU$91*$C$6-(AO22-AO24)/$AU$92*$C$6+(AP22-AO22)/AT105*$C$6-(AO22-AN22)/AT92*$C$6)/$AR$92 -> 20.00053971 | AP21: =AP22+($AV$105^2/$AQ$105*$C$6+(AP20-AP22)/$AU$104*$C$6-(AP22-AP24)/$AU$105*$C$6+(AQ22-AP22)/AT118*$C$6-(AP22-AO22)/AT105*$C$6)/$AR$105 -> 20.00053971 | AQ21: =AQ22+($AV$118^2/$AQ$118*$C$6+(AQ20-AQ22)/$AU$117*$C$6-(AQ22-AQ24)/$AU$118*$C$6+(AR22-AQ22)/AT131*$C$6-(AQ22-AP22)/AT118*$C$6)/$AR$118 -> 20.00053971 | AR21: =AR22+($AV$131^2/$AQ$131*$C$6+(AR20-AR22)/$AU$130*$C$6-(AR22-AR24)/$AU$131*$C$6+(AS22-AR22)/AT144*$C$6-(AR22-AQ22)/AT131*$C$6)/$AR$131 -> 20.00053971 | AS21: =AS22+($AV$144^2/$AQ$144*$C$6+(AS20-AS22)/$AU$143*$C$6-(AS22-AS24)/$AU$144*$C$6+(AT22-AS22)/AT157*$C$6-(AS22-AR22)/AT144*$C$6)/$AR$144 -> 20.00053971 | AT21: =AT22+($AV$157^2/$AQ$157*$C$6+(AT20-AT22)/$AU$156*$C$6-(AT22-AT24)/$AU$157*$C$6+(AU22-AT22)/AT170*$C$6-(AT22-AS22)/AT157*$C$6)/$AR$157 -> 20.00053971 | AU21: =AU22+($AV$170^2/$AQ$170*$C$6+(AU20-AU22)/$AU$169*$C$6-(AU22-AU24)/$AU$170*$C$6+(AV22-AU22)/AT183*$C$6-(AU22-AT22)/AT170*$C$6)/$AR$170 -> 20.00053971 | AV21: =AV22+($AV$183^2/$AQ$183*$C$6+(AV20-AV22)/$AU$182*$C$6-(AV22-AV24)/$AU$183*$C$6-(AV22-AU22)/AT183*$C$6-(AV22-AW22)/BI47*$C$6)/$AR$183 -> 20.00053971 | AW21: =AW22+($BK$47^2/$BF$47*$C$6+(AW20-AW22)/$BJ$46*$C$6-(AW22-AW24)/$BJ$47*$C$6+(AV22-AW22)/AW183*$C$6-(AW22-AX22)/BI47*$C$6)/$BG$47 -> 20.00053971 | AX21: =AX22+($BK$66^2/$BF$66*$C$6+(AX20-AX22)/$BJ$65*$C$6-(AX22-AX24)/$BJ$66*$C$6+(AW22-AX22)/BI47*$C$6-(AX22-AY22)/BI66*$C$6)/$BG$66 -> 20.00053971 | AY21: =AY22+($BK$79^2/$BF$79*$C$6+(AY20-AY22)/$BJ$78*$C$6-(AY22-AY24)/$BJ$79*$C$6+(AX22-AY22)/BI66*$C$6-(AY22-AZ22)/BI79*$C$6)/$BG$79 -> 20.00053971 | AZ21: =AZ22+($BK$92^2/$BF$92*$C$6+(AZ20-AZ22)/$BJ$91*$C$6-(AZ22-AZ24)/$BJ$92*$C$6+(AY22-AZ22)/BI79*$C$6-(AZ22-BA22)/BI92*$C$6)/$BG$92 -> 20.00053971 | BA21: =BA22+($BK$105^2/$BF$105*$C$6+(BA20-BA22)/$BJ$104*$C$6-(BA22-BA24)/$BJ$105*$C$6+(AZ22-BA22)/BI92*$C$6-(BA22-BB22)/BI105*$C$6)/$BG$105 -> 20.00053971 | BB21: =BB22+($BK$118^2/$BF$118*$C$6+(BB20-BB22)/$BJ$117*$C$6-(BB22-BB24)/$BJ$118*$C$6+(BA22-BB22)/BI105*$C$6-(BB22-BC22)/BI118*$C$6)/$BG$118 -> 20.00053971 | BC21: =BC22+($BK$131^2/$BF$131*$C$6+(BC20-BC22)/$BJ$130*$C$6-(BC22-BC24)/$BJ$131*$C$6+(BB22-BC22)/BI118*$C$6-(BC22-BD22)/BI131*$C$6)/$BG$131 -> 20.00053971 | BD21: =BD22+($BK$144^2/$BF$144*$C$6+(BD20-BD22)/$BJ$143*$C$6-(BD22-BD24)/$BJ$144*$C$6+(BC22-BD22)/BI131*$C$6-(BD22-BE22)/BI144*$C$6)/$BG$144 -> 20.00053971 | BE21: =BE22+($BK$157^2/$BF$157*$C$6+(BE20-BE22)/$BJ$156*$C$6-(BE22-BE24)/$BJ$157*$C$6+(BD22-BE22)/BI144*$C$6-(BE22-BF22)/BI157*$C$6)/$BG$157 -> 20.00053971 | BF21: =BF22+($BK$170^2/$BF$170*$C$6+(BF20-BF22)/$BJ$169*$C$6-(BF22-BF24)/$BJ$170*$C$6+(BE22-BF22)/BI157*$C$6)/$BG$170 -> 20.00000064
AJ22: 2 | AK22: Předchozí teplota | AL22: 20 | AM22: 20 | AN22: 20 | AO22: 20 | AP22: 20 | AQ22: 20 | AR22: 20 | AS22: 20 | AT22: 20 | AU22: 20 | AV22: 20 | AW22: 20 | AX22: 20 | AY22: 20 | AZ22: 20 | BA22: 20 | BB22: 20 | BC22: 20 | BD22: 20 | BE22: 20 | BF22: 20
B23: Rsloz prechod | C23: =1/(2*PI()*E26)*(1/H58)*LN(0.0035/0.000000000000001)+1/(2*PI()*0.01)*(1/AO46)*LN(0.00425/0.004) -> 1.200744411 | AJ23: 3 | AK23: Současná teplota | AL23: =AL24+($AV$48^2/$AQ$48*$C$6+(AL22-AL24)/$AU$47*$C$6-(AL24-AL26)/$AU$48*$C$6+(AM24-AL24)/AT67*$C$6)/$AR$48 -> 20.00000012 | AM23: =AM24+($AV$67^2/$AQ$67*$C$6+(AM22-AM24)/$AU$66*$C$6-(AM24-AM26)/$AU$67*$C$6+(AN24-AM24)/AT80*$C$6-(AM24-AL24)/AT67*$C$6)/$AR$67 -> 20.00053971 | AN23: =AN24+($AV$80^2/$AQ$80*$C$6+(AN22-AN24)/$AU$79*$C$6-(AN24-AN26)/$AU$80*$C$6+(AO24-AN24)/AT93*$C$6-(AN24-AM24)/AT80*$C$6)/$AR$80 -> 20.00053971 | AO23: =AO24+($AV$93^2/$AQ$93*$C$6+(AO22-AO24)/$AU$92*$C$6-(AO24-AO26)/$AU$93*$C$6+(AP24-AO24)/AT106*$C$6-(AO24-AN24)/AT93*$C$6)/$AR$93 -> 20.00053971 | AP23: =AP24+($AV$106^2/$AQ$106*$C$6+(AP22-AP24)/$AU$105*$C$6-(AP24-AP26)/$AU$106*$C$6+(AQ24-AP24)/AT119*$C$6-(AP24-AO24)/AT106*$C$6)/$AR$106 -> 20.00053971 | AQ23: =AQ24+($AV$119^2/$AQ$119*$C$6+(AQ22-AQ24)/$AU$118*$C$6-(AQ24-AQ26)/$AU$119*$C$6+(AR24-AQ24)/AT132*$C$6-(AQ24-AP24)/AT119*$C$6)/$AR$119 -> 20.00053971 | AR23: =AR24+($AV$132^2/$AQ$132*$C$6+(AR22-AR24)/$AU$131*$C$6-(AR24-AR26)/$AU$132*$C$6+(AS24-AR24)/AT145*$C$6-(AR24-AQ24)/AT132*$C$6)/$AR$132 -> 20.00053971 | AS23: =AS24+($AV$145^2/$AQ$145*$C$6+(AS22-AS24)/$AU$144*$C$6-(AS24-AS26)/$AU$145*$C$6+(AT24-AS24)/AT158*$C$6-(AS24-AR24)/AT145*$C$6)/$AR$145 -> 20.00053971 | AT23: =AT24+($AV$158^2/$AQ$158*$C$6+(AT22-AT24)/$AU$157*$C$6-(AT24-AT26)/$AU$158*$C$6+(AU24-AT24)/AT171*$C$6-(AT24-AS24)/AT158*$C$6)/$AR$158 -> 20.00053971 | AU23: =AU24+($AV$171^2/$AQ$171*$C$6+(AU22-AU24)/$AU$170*$C$6-(AU24-AU26)/$AU$171*$C$6+(AV24-AU24)/AT184*$C$6-(AU24-AT24)/AT171*$C$6)/$AR$171 -> 20.00053971 | AV23: =AV24+($AV$184^2/$AQ$184*$C$6+(AV22-AV24)/$AU$183*$C$6-(AV24-AV26)/$AU$184*$C$6-(AV24-AU24)/AT184*$C$6-(AV24-AW24)/BI48*$C$6)/$AR$184 -> 20.00053971 | AW23: =AW24+($BK$48^2/$BF$48*$C$6+(AW22-AW24)/$BJ$47*$C$6-(AW24-AW26)/$BJ$48*$C$6+(AV24-AW24)/AW184*$C$6-(AW24-AX24)/BI48*$C$6)/$BG$48 -> 20.00053971 | AX23: =AX24+($BK$67^2/$BF$67*$C$6+(AX22-AX24)/$BJ$66*$C$6-(AX24-AX26)/$BJ$67*$C$6+(AW24-AX24)/BI48*$C$6-(AX24-AY24)/BI67*$C$6)/$BG$67 -> 20.00053971 | AY23: =AY24+($BK$80^2/$BF$80*$C$6+(AY22-AY24)/$BJ$79*$C$6-(AY24-AY26)/$BJ$80*$C$6+(AX24-AY24)/BI67*$C$6-(AY24-AZ24)/BI80*$C$6)/$BG$80 -> 20.00053971 | AZ23: =AZ24+($BK$93^2/$BF$93*$C$6+(AZ22-AZ24)/$BJ$92*$C$6-(AZ24-AZ26)/$BJ$93*$C$6+(AY24-AZ24)/BI80*$C$6-(AZ24-BA24)/BI93*$C$6)/$BG$93 -> 20.00053971 | BA23: =BA24+($BK$106^2/$BF$106*$C$6+(BA22-BA24)/$BJ$105*$C$6-(BA24-BA26)/$BJ$106*$C$6+(AZ24-BA24)/BI93*$C$6-(BA24-BB24)/BI106*$C$6)/$BG$106 -> 20.00053971 | BB23: =BB24+($BK$119^2/$BF$119*$C$6+(BB22-BB24)/$BJ$118*$C$6-(BB24-BB26)/$BJ$119*$C$6+(BA24-BB24)/BI106*$C$6-(BB24-BC24)/BI119*$C$6)/$BG$119 -> 20.00053971 | BC23: =BC24+($BK$132^2/$BF$132*$C$6+(BC22-BC24)/$BJ$131*$C$6-(BC24-BC26)/$BJ$132*$C$6+(BB24-BC24)/BI119*$C$6-(BC24-BD24)/BI132*$C$6)/$BG$132 -> 20.00053971 | BD23: =BD24+($BK$145^2/$BF$145*$C$6+(BD22-BD24)/$BJ$144*$C$6-(BD24-BD26)/$BJ$145*$C$6+(BC24-BD24)/BI132*$C$6-(BD24-BE24)/BI145*$C$6)/$BG$145 -> 20.00053971 | BE23: =BE24+($BK$158^2/$BF$158*$C$6+(BE22-BE24)/$BJ$157*$C$6-(BE24-BE26)/$BJ$158*$C$6+(BD24-BE24)/BI145*$C$6-(BE24-BF24)/BI158*$C$6)/$BG$158 -> 20.00053971 | BF23: =BF24+($BK$171^2/$BF$171*$C$6+(BF22-BF24)/$BJ$170*$C$6-(BF24-BF26)/$BJ$171*$C$6+(BE24-BF24)/BI158*$C$6)/$BG$171 -> 20.00000064
AJ24: 3 | AK24: Předchozí teplota | AL24: 20 | AM24: 20 | AN24: 20 | AO24: 20 | AP24: 20 | AQ24: 20 | AR24: 20 | AS24: 20 | AT24: 20 | AU24: 20 | AV24: 20 | AW24: 20 | AX24: 20 | AY24: 20 | AZ24: 20 | BA24: 20 | BB24: 20 | BC24: 20 | BD24: 20 | BE24: 20 | BF24: 20
AJ25: 4 | AK25: Současná teplota | AL25: =AL26+($AV$49^2/$AQ$49*$C$6+(AL24-AL26)/$AU$48*$C$6-(AL26-AL28)/$AU$49*$C$6+(AM26-AL26)/AT68*$C$6)/$AR$49 -> 20.00000012 | AM25: =AM26+($AV$68^2/$AQ$68*$C$6+(AM24-AM26)/$AU$67*$C$6-(AM26-AM28)/$AU$68*$C$6+(AN26-AM26)/AT81*$C$6-(AM26-AL26)/AT68*$C$6)/$AR$68 -> 20.00053971 | AN25: =AN26+($AV$81^2/$AQ$81*$C$6+(AN24-AN26)/$AU$80*$C$6-(AN26-AN28)/$AU$81*$C$6+(AO26-AN26)/AT94*$C$6-(AN26-AM26)/AT81*$C$6)/$AR$81 -> 20.00053971 | AO25: =AO26+($AV$94^2/$AQ$94*$C$6+(AO24-AO26)/$AU$93*$C$6-(AO26-AO28)/$AU$94*$C$6+(AP26-AO26)/AT107*$C$6-(AO26-AN26)/AT94*$C$6)/$AR$94 -> 20.00053971 | AP25: =AP26+($AV$107^2/$AQ$107*$C$6+(AP24-AP26)/$AU$106*$C$6-(AP26-AP28)/$AU$107*$C$6+(AQ26-AP26)/AT120*$C$6-(AP26-AO26)/AT107*$C$6)/$AR$107 -> 20.00053971 | AQ25: =AQ26+($AV$120^2/$AQ$120*$C$6+(AQ24-AQ26)/$AU$119*$C$6-(AQ26-AQ28)/$AU$120*$C$6+(AR26-AQ26)/AT133*$C$6-(AQ26-AP26)/AT120*$C$6)/$AR$120 -> 20.00053971 | AR25: =AR26+($AV$133^2/$AQ$133*$C$6+(AR24-AR26)/$AU$132*$C$6-(AR26-AR28)/$AU$133*$C$6+(AS26-AR26)/AT146*$C$6-(AR26-AQ26)/AT133*$C$6)/$AR$133 -> 20.00053971 | AS25: =AS26+($AV$146^2/$AQ$146*$C$6+(AS24-AS26)/$AU$145*$C$6-(AS26-AS28)/$AU$146*$C$6+(AT26-AS26)/AT159*$C$6-(AS26-AR26)/AT146*$C$6)/$AR$146 -> 20.00053971 | AT25: =AT26+($AV$159^2/$AQ$159*$C$6+(AT24-AT26)/$AU$158*$C$6-(AT26-AT28)/$AU$159*$C$6+(AU26-AT26)/AT172*$C$6-(AT26-AS26)/AT159*$C$6)/$AR$159 -> 20.00053971 | AU25: =AU26+($AV$172^2/$AQ$172*$C$6+(AU24-AU26)/$AU$171*$C$6-(AU26-AU28)/$AU$172*$C$6+(AV26-AU26)/AT185*$C$6-(AU26-AT26)/AT172*$C$6)/$AR$172 -> 20.00053971 | AV25: =AV26+($AV$185^2/$AQ$185*$C$6+(AV24-AV26)/$AU$184*$C$6-(AV26-AV28)/$AU$185*$C$6-(AV26-AU26)/AT185*$C$6-(AV26-AW26)/BI49*$C$6)/$AR$185 -> 20.00053971 | AW25: =AW26+($BK$49^2/$BF$49*$C$6+(AW24-AW26)/$BJ$48*$C$6-(AW26-AW28)/$BJ$49*$C$6+(AV26-AW26)/AW185*$C$6-(AW26-AX26)/BI49*$C$6)/$BG$49 -> 20.00053971 | AX25: =AX26+($BK$68^2/$BF$68*$C$6+(AX24-AX26)/$BJ$67*$C$6-(AX26-AX28)/$BJ$68*$C$6+(AW26-AX26)/BI49*$C$6-(AX26-AY26)/BI68*$C$6)/$BG$68 -> 20.00053971 | AY25: =AY26+($BK$81^2/$BF$81*$C$6+(AY24-AY26)/$BJ$80*$C$6-(AY26-AY28)/$BJ$81*$C$6+(AX26-AY26)/BI68*$C$6-(AY26-AZ26)/BI81*$C$6)/$BG$81 -> 20.00053971 | AZ25: =AZ26+($BK$94^2/$BF$94*$C$6+(AZ24-AZ26)/$BJ$93*$C$6-(AZ26-AZ28)/$BJ$94*$C$6+(AY26-AZ26)/BI81*$C$6-(AZ26-BA26)/BI94*$C$6)/$BG$94 -> 20.00053971 | BA25: =BA26+($BK$107^2/$BF$107*$C$6+(BA24-BA26)/$BJ$106*$C$6-(BA26-BA28)/$BJ$107*$C$6+(AZ26-BA26)/BI94*$C$6-(BA26-BB26)/BI107*$C$6)/$BG$107 -> 20.00053971 | BB25: =BB26+($BK$120^2/$BF$120*$C$6+(BB24-BB26)/$BJ$119*$C$6-(BB26-BB28)/$BJ$120*$C$6+(BA26-BB26)/BI107*$C$6-(BB26-BC26)/BI120*$C$6)/$BG$120 -> 20.00053971 | BC25: =BC26+($BK$133^2/$BF$133*$C$6+(BC24-BC26)/$BJ$132*$C$6-(BC26-BC28)/$BJ$133*$C$6+(BB26-BC26)/BI120*$C$6-(BC26-BD26)/BI133*$C$6)/$BG$133 -> 20.00053971 | BD25: =BD26+($BK$146^2/$BF$146*$C$6+(BD24-BD26)/$BJ$145*$C$6-(BD26-BD28)/$BJ$146*$C$6+(BC26-BD26)/BI133*$C$6-(BD26-BE26)/BI146*$C$6)/$BG$146 -> 20.00053971 | BE25: =BE26+($BK$159^2/$BF$159*$C$6+(BE24-BE26)/$BJ$158*$C$6-(BE26-BE28)/$BJ$159*$C$6+(BD26-BE26)/BI146*$C$6-(BE26-BF26)/BI159*$C$6)/$BG$159 -> 20.00053971 | BF25: =BF26+($BK$172^2/$BF$172*$C$6+(BF24-BF26)/$BJ$171*$C$6-(BF26-BF28)/$BJ$172*$C$6+(BE26-BF26)/BI159*$C$6)/$BG$172 -> 20.00000064
D26: Delka dilku [m] | E26: =C8/30*10^-3 -> 0.01 | F26: Spovrch [m2] | G26: =2*PI()*M26*E26 -> 0.0002827433388 | H26: vnější průměr [m] | I26: =(C7*10^-3) -> 0.009 | J26: Odpor tyce [Ω] | K26: =SUM(J28:J57) -> 0.0002461850146 | L26: Polomer [m] | M26: =I26/2 -> 0.0045 | R26: RtepL | AJ26: 4 | AK26: Předchozí teplota | AL26: 20 | AM26: 20 | AN26: 20 | AO26: 20 | AP26: 20 | AQ26: 20 | AR26: 20 | AS26: 20 | AT26: 20 | AU26: 20 | AV26: 20 | AW26: 20 | AX26: 20 | AY26: 20 | AZ26: 20 | BA26: 20 | BB26: 20 | BC26: 20 | BD26: 20 | BE26: 20 | BF26: 20 | BR26: Delka dilku [m] | BS26: =C3/30*10^-3 -> 0.01 | BT26: Spovrch [m2] | BU26: =2*PI()*CA26*BS26 -> 0.0003455751919 | BV26: vnější průměr [m] | BW26: =BY26+2*10^-3 -> 0.011 | BX26: vnitřní průměr [m] | BY26: =C7*10^-3 -> 0.009 | BZ26: vnější poloměr [m] | CA26: =BW26/2 -> 0.0055 | CB26: vnitřní poloměr [m] | CC26: =BY26/2 -> 0.0045 | CD26: Odpor tyce [Ω] | CE26: =SUM(BX29:BX58) -> 0.0009970493092 | CF26: Rtep P
D27: Vlastosti mědi | E27: ρ rezist [Ωm] | F27: Cpmed [J/kg*K] | G27: ρ hustota [kg/m3] | H27: λ měď [W/m*k] | I27: S obsah [m2] | J27: R měď [Ω] | K27: C dílku [J/K] | L27: V dílku [m3] | M27: Gr [-] | N27: Nu [-] | O27: α [W/m2*K] | P27: U měď [V] | Q27: Rtep | AJ27: 5 | AK27: Současná teplota | AL27: =AL28+($AV$50^2/$AQ$50*$C$6+(AL26-AL28)/$AU$49*$C$6-(AL28-AL30)/$AU$50*$C$6+(AM28-AL28)/AT69*$C$6)/$AR$50 -> 20.00000012 | AM27: =AM28+($AV$69^2/$AQ$69*$C$6+(AM26-AM28)/$AU$68*$C$6-(AM28-AM30)/$AU$69*$C$6+(AN28-AM28)/AT82*$C$6-(AM28-AL28)/AT69*$C$6)/$AR$69 -> 20.00053971 | AN27: =AN28+($AV$82^2/$AQ$82*$C$6+(AN26-AN28)/$AU$81*$C$6-(AN28-AN30)/$AU$82*$C$6+(AO28-AN28)/AT95*$C$6-(AN28-AM28)/AT82*$C$6)/$AR$82 -> 20.00053971 | AO27: =AO28+($AV$95^2/$AQ$95*$C$6+(AO26-AO28)/$AU$94*$C$6-(AO28-AO30)/$AU$95*$C$6+(AP28-AO28)/AT108*$C$6-(AO28-AN28)/AT95*$C$6)/$AR$95 -> 20.00053971 | AP27: =AP28+($AV$108^2/$AQ$108*$C$6+(AP26-AP28)/$AU$107*$C$6-(AP28-AP30)/$AU$108*$C$6+(AQ28-AP28)/AT121*$C$6-(AP28-AO28)/AT108*$C$6)/$AR$108 -> 20.00053971 | AQ27: =AQ28+($AV$121^2/$AQ$121*$C$6+(AQ26-AQ28)/$AU$120*$C$6-(AQ28-AQ30)/$AU$121*$C$6+(AR28-AQ28)/AT134*$C$6-(AQ28-AP28)/AT121*$C$6)/$AR$121 -> 20.00053971 | AR27: =AR28+($AV$134^2/$AQ$134*$C$6+(AR26-AR28)/$AU$133*$C$6-(AR28-AR30)/$AU$134*$C$6+(AS28-AR28)/AT147*$C$6-(AR28-AQ28)/AT134*$C$6)/$AR$134 -> 20.00053971 | AS27: =AS28+($AV$147^2/$AQ$147*$C$6+(AS26-AS28)/$AU$146*$C$6-(AS28-AS30)/$AU$147*$C$6+(AT28-AS28)/AT160*$C$6-(AS28-AR28)/AT147*$C$6)/$AR$147 -> 20.00053971 | AT27: =AT28+($AV$160^2/$AQ$160*$C$6+(AT26-AT28)/$AU$159*$C$6-(AT28-AT30)/$AU$160*$C$6+(AU28-AT28)/AT173*$C$6-(AT28-AS28)/AT160*$C$6)/$AR$160 -> 20.00053971 | AU27: =AU28+($AV$173^2/$AQ$173*$C$6+(AU26-AU28)/$AU$172*$C$6-(AU28-AU30)/$AU$173*$C$6+(AV28-AU28)/AT186*$C$6-(AU28-AT28)/AT173*$C$6)/$AR$173 -> 20.00053971 | AV27: =AV28+($AV$186^2/$AQ$186*$C$6+(AV26-AV28)/$AU$185*$C$6-(AV28-AV30)/$AU$186*$C$6-(AV28-AU28)/AT186*$C$6-(AV28-AW28)/BI50*$C$6)/$AR$186 -> 20.00053971 | AW27: =AW28+($BK$50^2/$BF$50*$C$6+(AW26-AW28)/$BJ$49*$C$6-(AW28-AW30)/$BJ$50*$C$6+(AV28-AW28)/AW186*$C$6-(AW28-AX28)/BI50*$C$6)/$BG$50 -> 20.00053971 | AX27: =AX28+($BK$69^2/$BF$69*$C$6+(AX26-AX28)/$BJ$68*$C$6-(AX28-AX30)/$BJ$69*$C$6+(AW28-AX28)/BI50*$C$6-(AX28-AY28)/BI69*$C$6)/$BG$69 -> 20.00053971 | AY27: =AY28+($BK$82^2/$BF$82*$C$6+(AY26-AY28)/$BJ$81*$C$6-(AY28-AY30)/$BJ$82*$C$6+(AX28-AY28)/BI69*$C$6-(AY28-AZ28)/BI82*$C$6)/$BG$82 -> 20.00053971 | AZ27: =AZ28+($BK$95^2/$BF$95*$C$6+(AZ26-AZ28)/$BJ$94*$C$6-(AZ28-AZ30)/$BJ$95*$C$6+(AY28-AZ28)/BI82*$C$6-(AZ28-BA28)/BI95*$C$6)/$BG$95 -> 20.00053971 | BA27: =BA28+($BK$108^2/$BF$108*$C$6+(BA26-BA28)/$BJ$107*$C$6-(BA28-BA30)/$BJ$108*$C$6+(AZ28-BA28)/BI95*$C$6-(BA28-BB28)/BI108*$C$6)/$BG$108 -> 20.00053971 | BB27: =BB28+($BK$121^2/$BF$121*$C$6+(BB26-BB28)/$BJ$120*$C$6-(BB28-BB30)/$BJ$121*$C$6+(BA28-BB28)/BI108*$C$6-(BB28-BC28)/BI121*$C$6)/$BG$121 -> 20.00053971 | BC27: =BC28+($BK$134^2/$BF$134*$C$6+(BC26-BC28)/$BJ$133*$C$6-(BC28-BC30)/$BJ$134*$C$6+(BB28-BC28)/BI121*$C$6-(BC28-BD28)/BI134*$C$6)/$BG$134 -> 20.00053971 | BD27: =BD28+($BK$147^2/$BF$147*$C$6+(BD26-BD28)/$BJ$146*$C$6-(BD28-BD30)/$BJ$147*$C$6+(BC28-BD28)/BI134*$C$6-(BD28-BE28)/BI147*$C$6)/$BG$147 -> 20.00053971 | BE27: =BE28+($BK$160^2/$BF$160*$C$6+(BE26-BE28)/$BJ$159*$C$6-(BE28-BE30)/$BJ$160*$C$6+(BD28-BE28)/BI147*$C$6-(BE28-BF28)/BI160*$C$6)/$BG$160 -> 20.00053971 | BF27: =BF28+($BK$173^2/$BF$173*$C$6+(BF26-BF28)/$BJ$172*$C$6-(BF28-BF30)/$BJ$173*$C$6+(BE28-BF28)/BI160*$C$6)/$BG$173 -> 20.00000064 | BR27: Vlastosti mědi | BS27: ρ rezist [Ωm] | BT27: Cpmed [J/kg*K] | BU27: ρ hustota [kg/m3] | BV27: λ měď [W/m*k] | BW27: S obsah [m2] | BX27: R měď [Ω] | BY27: C dílku [J/K] | BZ27: V dílku [m3] | CA27: Gr [-] | CB27: Nu [-] | CC27: α [W/m2*K] | CD27: U měď [V] | CE27: Rtep
D28: 1 | E28: =MREZIST(E20) -> 1.044107595e-07 | F28: =cpmed(E20) -> 383.5052909 | G28: 8960 | H28: =lmed(E20) -> 400.6712771 | I28: =(2*PI()*$I$26^2)/4 -> 0.0001272345025 | J28: =E28*$E$26/I28 -> 8.206167154e-06 | K28: =L28*G28*F28 -> 4.372041397 | L28: =I28*$E$26 -> 1.272345025e-06 | M28: =(AH47*AH46*(E20-E16)*I26^3)/AH45^2 -> 0 | N28: =(0.6+((0.387*($AH$44*M28)^(1/6))/(1+(0.721*((1/$AH$44)^(9/16))))^(8/27)))^2 -> 0.36 | O28: =(N28*$AH$42)/$I$26 -> 0.9644013323 | P28: =$C$5*J28 -> 0.0002461850146 | Q28: =1/(O28*$G$26)+1/(2*PI()*$E$26)*(1/H28)*LN(0.0035/0.000000000000001) -> 3668.475846 | R28: =(($C$12/2)/(H28*I28))+(($C$12/2)/(H29*I29)) -> 0.3487260311 | AJ28: 5 | AK28: Počáteční teplota | AL28: 20 | AM28: 20 | AN28: 20 | AO28: 20 | AP28: 20 | AQ28: 20 | AR28: 20 | AS28: 20 | AT28: 20 | AU28: 20 | AV28: 20 | AW28: 20 | AX28: 20 | AY28: 20 | AZ28: 20 | BA28: 20 | BB28: 20 | BC28: 20 | BD28: 20 | BE28: 20 | BF28: 20 | BR28: 1 | BS28: =MREZIST(BG20) -> 1.044107595e-07 | BT28: =cpmed(BG20) -> 383.5052909 | BU28: 8960 | BV28: =lmed(BG20) -> 400.6712771 | BW28: =((PI()*$BW$26^2)/4)-((PI()*$BY$26^2)/4) -> 3.141592654e-05 | BX28: =BS28*$BS$26/BW28 -> 3.323497697e-05 | BY28: =BZ28*BU28*BT28 -> 1.079516394 | BZ28: =BW28*$BS$26 -> 3.141592654e-07 | CA28: =($AH$47*$AH$46*(BG20-$BG$16)*$BW$26^3)/$AH$45^2 -> 0 | CB28: =(0.6+((0.387*($AH$44*CA28)^(1/6))/(1+(0.721*((1/$AH$44)^(9/16))))^(8/27)))^2 -> 0.36 | CC28: =(CB28*$AH$42)/$BW$26 -> 0.7890556355 | CD28: =BB183*C5 -> 0.0009512409442 | CE28: =1/(CC28*$BU$26)+1/(2*PI()*$BS$26)*(1/BV28)*LN($CA$26/0.005) -> 3667.332309 | CF28: =(($C$12/2)/(BV28*BW28))+(($C$12/2)/(BV29*BW29)) -> 1.412340426
D29: 2 | E29: =MREZIST(F20) -> 1.044107595e-07 | F29: =cpmed(F20) -> 383.5052909 | G29: 8960 | H29: =lmed(F20) -> 400.6712771 | I29: =(2*PI()*$I$26^2)/4 -> 0.0001272345025 | J29: =E29*$E$26/I29 -> 8.206167154e-06 | K29: 4.372041397 | L29: 1.272345025e-06 | M29: =(AH47*AH46*(F20-E16)*I26^3)/AH45^2 -> 0 | N29: 0.36 | O29: 0.9644013323 | P29: =$C$5*J29 -> 0.0002461850146 | Q29: 3668.475846 | R29: 0.3487260311 | AJ29: 6 | AK29: Současná teplota | AL29: =AL30+($AV$51^2/$AQ$51*$C$6+(AL28-AL30)/$AU$50*$C$6-(AL30-AL32)/$AU$51*$C$6+(AM30-AL30)/AT70*$C$6)/$AR$51 -> 20.00000012 | AM29: =AM30+($AV$70^2/$AQ$70*$C$6+(AM28-AM30)/$AU$69*$C$6-(AM30-AM32)/$AU$70*$C$6+(AN30-AM30)/AT83*$C$6-(AM30-AL30)/AT70*$C$6)/$AR$70 -> 20.00053971 | AN29: =AN30+($AV$83^2/$AQ$83*$C$6+(AN28-AN30)/$AU$82*$C$6-(AN30-AN32)/$AU$83*$C$6+(AO30-AN30)/AT96*$C$6-(AN30-AM30)/AT83*$C$6)/$AR$83 -> 20.00053971 | AO29: =AO30+($AV$96^2/$AQ$96*$C$6+(AO28-AO30)/$AU$95*$C$6-(AO30-AO32)/$AU$96*$C$6+(AP30-AO30)/AT109*$C$6-(AO30-AN30)/AT96*$C$6)/$AR$96 -> 20.00053971 | AP29: =AP30+($AV$109^2/$AQ$109*$C$6+(AP28-AP30)/$AU$108*$C$6-(AP30-AP32)/$AU$109*$C$6+(AQ30-AP30)/AT122*$C$6-(AP30-AO30)/AT109*$C$6)/$AR$109 -> 20.00053971 | AQ29: =AQ30+($AV$122^2/$AQ$122*$C$6+(AQ28-AQ30)/$AU$121*$C$6-(AQ30-AQ32)/$AU$122*$C$6+(AR30-AQ30)/AT135*$C$6-(AQ30-AP30)/AT122*$C$6)/$AR$122 -> 20.00053971 | AR29: =AR30+($AV$135^2/$AQ$135*$C$6+(AR28-AR30)/$AU$134*$C$6-(AR30-AR32)/$AU$135*$C$6+(AS30-AR30)/AT148*$C$6-(AR30-AQ30)/AT135*$C$6)/$AR$135 -> 20.00053971 | AS29: =AS30+($AV$148^2/$AQ$148*$C$6+(AS28-AS30)/$AU$147*$C$6-(AS30-AS32)/$AU$148*$C$6+(AT30-AS30)/AT161*$C$6-(AS30-AR30)/AT148*$C$6)/$AR$148 -> 20.00053971 | AT29: =AT30+($AV$161^2/$AQ$161*$C$6+(AT28-AT30)/$AU$160*$C$6-(AT30-AT32)/$AU$161*$C$6+(AU30-AT30)/AT174*$C$6-(AT30-AS30)/AT161*$C$6)/$AR$161 -> 20.00053971 | AU29: =AU30+($AV$174^2/$AQ$174*$C$6+(AU28-AU30)/$AU$173*$C$6-(AU30-AU32)/$AU$174*$C$6+(AV30-AU30)/AT187*$C$6-(AU30-AT30)/AT174*$C$6)/$AR$174 -> 20.00053971 | AV29: =AV30+($AV$187^2/$AQ$187*$C$6+(AV28-AV30)/$AU$186*$C$6-(AV30-AV32)/$AU$187*$C$6-(AV30-AU30)/AT187*$C$6-(AV30-AW30)/BI51*$C$6)/$AR$187 -> 20.00053971 | AW29: =AW30+($BK$51^2/$BF$51*$C$6+(AW28-AW30)/$BJ$50*$C$6-(AW30-AW32)/$BJ$51*$C$6+(AV30-AW30)/AW187*$C$6-(AW30-AX30)/BI51*$C$6)/$BG$51 -> 20.00053971 | AX29: =AX30+($BK$70^2/$BF$70*$C$6+(AX28-AX30)/$BJ$69*$C$6-(AX30-AX32)/$BJ$70*$C$6+(AW30-AX30)/BI51*$C$6-(AX30-AY30)/BI70*$C$6)/$BG$70 -> 20.00053971 | AY29: =AY30+($BK$83^2/$BF$83*$C$6+(AY28-AY30)/$BJ$82*$C$6-(AY30-AY32)/$BJ$83*$C$6+(AX30-AY30)/BI70*$C$6-(AY30-AZ30)/BI83*$C$6)/$BG$83 -> 20.00053971 | AZ29: =AZ30+($BK$96^2/$BF$96*$C$6+(AZ28-AZ30)/$BJ$95*$C$6-(AZ30-AZ32)/$BJ$96*$C$6+(AY30-AZ30)/BI83*$C$6-(AZ30-BA30)/BI96*$C$6)/$BG$96 -> 20.00053971 | BA29: =BA30+($BK$109^2/$BF$109*$C$6+(BA28-BA30)/$BJ$108*$C$6-(BA30-BA32)/$BJ$109*$C$6+(AZ30-BA30)/BI96*$C$6-(BA30-BB30)/BI109*$C$6)/$BG$109 -> 20.00053971 | BB29: =BB30+($BK$122^2/$BF$122*$C$6+(BB28-BB30)/$BJ$121*$C$6-(BB30-BB32)/$BJ$122*$C$6+(BA30-BB30)/BI109*$C$6-(BB30-BC30)/BI122*$C$6)/$BG$122 -> 20.00053971 | BC29: =BC30+($BK$135^2/$BF$135*$C$6+(BC28-BC30)/$BJ$134*$C$6-(BC30-BC32)/$BJ$135*$C$6+(BB30-BC30)/BI122*$C$6-(BC30-BD30)/BI135*$C$6)/$BG$135 -> 20.00053971 | BD29: =BD30+($BK$148^2/$BF$148*$C$6+(BD28-BD30)/$BJ$147*$C$6-(BD30-BD32)/$BJ$148*$C$6+(BC30-BD30)/BI135*$C$6-(BD30-BE30)/BI148*$C$6)/$BG$148 -> 20.00053971 | BE29: =BE30+($BK$161^2/$BF$161*$C$6+(BE28-BE30)/$BJ$160*$C$6-(BE30-BE32)/$BJ$161*$C$6+(BD30-BE30)/BI148*$C$6-(BE30-BF30)/BI161*$C$6)/$BG$161 -> 20.00053971 | BF29: =BF30+($BK$174^2/$BF$174*$C$6+(BF28-BF30)/$BJ$173*$C$6-(BF30-BF32)/$BJ$174*$C$6+(BE30-BF30)/BI161*$C$6)/$BG$174 -> 20.00000064 | BR29: 2 | BS29: =MREZIST(BH20) -> 1.044107595e-07 | BT29: =cpmed(BH20) -> 383.5052909 | BU29: 8960 | BV29: =lmed(BH20) -> 400.6712771 | BW29: =((PI()*$BW$26^2)/4)-((PI()*$BY$26^2)/4) -> 3.141592654e-05 | BX29: =BS29*$BS$26/BW29 -> 3.323497697e-05 | BY29: 1.079516394 | BZ29: 3.141592654e-07 | CA29: =($AH$47*$AH$46*(BH20-$BG$16)*$BW$26^3)/$AH$45^2 -> 0 | CB29: 0.36 | CC29: 0.7890556355 | CD29: =BX29*$C$5 -> 0.0009970493092 | CE29: 3667.332309 | CF29: 1.412340426
D30: 3 | E30: =MREZIST(G20) -> 1.044107595e-07 | F30: =cpmed(G20) -> 383.5052909 | G30: 8960 | H30: =lmed(G20) -> 400.6712771 | I30: 0.0001272345025 | J30: 8.206167154e-06 | K30: 4.372041397 | L30: 1.272345025e-06 | M30: =(AH47*AH46*(G20-E16)*I26^3)/AH45^2 -> 0 | N30: 0.36 | O30: 0.9644013323 | P30: 0.0002461850146 | Q30: 3668.475846 | R30: 0.3487260311 | AJ30: 6 | AK30: Předchozí teplota | AL30: 20 | AM30: 20 | AN30: 20 | AO30: 20 | AP30: 20 | AQ30: 20 | AR30: 20 | AS30: 20 | AT30: 20 | AU30: 20 | AV30: 20 | AW30: 20 | AX30: 20 | AY30: 20 | AZ30: 20 | BA30: 20 | BB30: 20 | BC30: 20 | BD30: 20 | BE30: 20 | BF30: 20 | BR30: 3 | BS30: =MREZIST(BI20) -> 1.044107595e-07 | BT30: =cpmed(BI20) -> 383.5052909 | BU30: 8960 | BV30: =lmed(BI20) -> 400.6712771 | BW30: 3.141592654e-05 | BX30: 3.323497697e-05 | BY30: 1.079516394 | BZ30: 3.141592654e-07 | CA30: =($AH$47*$AH$46*(BI20-$BG$16)*$BW$26^3)/$AH$45^2 -> 0 | CB30: 0.36 | CC30: 0.7890556355 | CD30: =BX30*$C$5 -> 0.0009970493092 | CE30: 3667.332309 | CF30: 1.412340426
D31: 4 | E31: =MREZIST(H20) -> 1.044107595e-07 | F31: =cpmed(H20) -> 383.5052909 | G31: 8960 | H31: =lmed(H20) -> 400.6712771 | I31: 0.0001272345025 | J31: 8.206167154e-06 | K31: 4.372041397 | L31: 1.272345025e-06 | M31: =(AH47*AH46*(H20-E16)*I26^3)/AH45^2 -> 0 | N31: 0.36 | O31: 0.9644013323 | P31: 0.0002461850146 | Q31: 3668.475846 | R31: 0.3487260311 | AJ31: 7 | AK31: Současná teplota | AL31: =AL32+($AV$52^2/$AQ$52*$C$6+(AL30-AL32)/$AU$51*$C$6-(AL32-AL34)/$AU$52*$C$6+(AM32-AL32)/AT71*$C$6)/$AR$52 -> 20.00000012 | AM31: =AM32+($AV$71^2/$AQ$71*$C$6+(AM30-AM32)/$AU$70*$C$6-(AM32-AM34)/$AU$71*$C$6+(AN32-AM32)/AT84*$C$6-(AM32-AL32)/AT71*$C$6)/$AR$71 -> 20.00053971 | AN31: =AN32+($AV$84^2/$AQ$84*$C$6+(AN30-AN32)/$AU$83*$C$6-(AN32-AN34)/$AU$84*$C$6+(AO32-AN32)/AT97*$C$6-(AN32-AM32)/AT84*$C$6)/$AR$84 -> 20.00053971 | AO31: =AO32+($AV$97^2/$AQ$97*$C$6+(AO30-AO32)/$AU$96*$C$6-(AO32-AO34)/$AU$97*$C$6+(AP32-AO32)/AT110*$C$6-(AO32-AN32)/AT97*$C$6)/$AR$97 -> 20.00053971 | AP31: =AP32+($AV$110^2/$AQ$110*$C$6+(AP30-AP32)/$AU$109*$C$6-(AP32-AP34)/$AU$110*$C$6+(AQ32-AP32)/AT123*$C$6-(AP32-AO32)/AT110*$C$6)/$AR$110 -> 20.00053971 | AQ31: =AQ32+($AV$123^2/$AQ$123*$C$6+(AQ30-AQ32)/$AU$122*$C$6-(AQ32-AQ34)/$AU$123*$C$6+(AR32-AQ32)/AT136*$C$6-(AQ32-AP32)/AT123*$C$6)/$AR$123 -> 20.00053971 | AR31: =AR32+($AV$136^2/$AQ$136*$C$6+(AR30-AR32)/$AU$135*$C$6-(AR32-AR34)/$AU$136*$C$6+(AS32-AR32)/AT149*$C$6-(AR32-AQ32)/AT136*$C$6)/$AR$136 -> 20.00053971 | AS31: =AS32+($AV$149^2/$AQ$149*$C$6+(AS30-AS32)/$AU$148*$C$6-(AS32-AS34)/$AU$149*$C$6+(AT32-AS32)/AT162*$C$6-(AS32-AR32)/AT149*$C$6)/$AR$149 -> 20.00053971 | AT31: =AT32+($AV$162^2/$AQ$162*$C$6+(AT30-AT32)/$AU$161*$C$6-(AT32-AT34)/$AU$162*$C$6+(AU32-AT32)/AT175*$C$6-(AT32-AS32)/AT162*$C$6)/$AR$162 -> 20.00053971 | AU31: =AU32+($AV$175^2/$AQ$175*$C$6+(AU30-AU32)/$AU$174*$C$6-(AU32-AU34)/$AU$175*$C$6+(AV32-AU32)/AT188*$C$6-(AU32-AT32)/AT175*$C$6)/$AR$175 -> 20.00053971 | AV31: =AV32+($AV$188^2/$AQ$188*$C$6+(AV30-AV32)/$AU$187*$C$6-(AV32-AV34)/$AU$188*$C$6-(AV32-AU32)/AT188*$C$6-(AV32-AW32)/BI52*$C$6)/$AR$188 -> 20.00053971 | AW31: =AW32+($BK$52^2/$BF$52*$C$6+(AW30-AW32)/$BJ$51*$C$6-(AW32-AW34)/$BJ$52*$C$6+(AV32-AW32)/AW188*$C$6-(AW32-AX32)/BI52*$C$6)/$BG$52 -> 20.00053971 | AX31: =AX32+($BK$71^2/$BF$71*$C$6+(AX30-AX32)/$BJ$70*$C$6-(AX32-AX34)/$BJ$71*$C$6+(AW32-AX32)/BI52*$C$6-(AX32-AY32)/BI71*$C$6)/$BG$71 -> 20.00053971 | AY31: =AY32+($BK$84^2/$BF$84*$C$6+(AY30-AY32)/$BJ$83*$C$6-(AY32-AY34)/$BJ$84*$C$6+(AX32-AY32)/BI71*$C$6-(AY32-AZ32)/BI84*$C$6)/$BG$84 -> 20.00053971 | AZ31: =AZ32+($BK$97^2/$BF$97*$C$6+(AZ30-AZ32)/$BJ$96*$C$6-(AZ32-AZ34)/$BJ$97*$C$6+(AY32-AZ32)/BI84*$C$6-(AZ32-BA32)/BI97*$C$6)/$BG$97 -> 20.00053971 | BA31: =BA32+($BK$110^2/$BF$110*$C$6+(BA30-BA32)/$BJ$109*$C$6-(BA32-BA34)/$BJ$110*$C$6+(AZ32-BA32)/BI97*$C$6-(BA32-BB32)/BI110*$C$6)/$BG$110 -> 20.00053971 | BB31: =BB32+($BK$123^2/$BF$123*$C$6+(BB30-BB32)/$BJ$122*$C$6-(BB32-BB34)/$BJ$123*$C$6+(BA32-BB32)/BI110*$C$6-(BB32-BC32)/BI123*$C$6)/$BG$123 -> 20.00053971 | BC31: =BC32+($BK$136^2/$BF$136*$C$6+(BC30-BC32)/$BJ$135*$C$6-(BC32-BC34)/$BJ$136*$C$6+(BB32-BC32)/BI123*$C$6-(BC32-BD32)/BI136*$C$6)/$BG$136 -> 20.00053971 | BD31: =BD32+($BK$149^2/$BF$149*$C$6+(BD30-BD32)/$BJ$148*$C$6-(BD32-BD34)/$BJ$149*$C$6+(BC32-BD32)/BI136*$C$6-(BD32-BE32)/BI149*$C$6)/$BG$149 -> 20.00053971 | BE31: =BE32+($BK$162^2/$BF$162*$C$6+(BE30-BE32)/$BJ$161*$C$6-(BE32-BE34)/$BJ$162*$C$6+(BD32-BE32)/BI149*$C$6-(BE32-BF32)/BI162*$C$6)/$BG$162 -> 20.00053971 | BF31: =BF32+($BK$175^2/$BF$175*$C$6+(BF30-BF32)/$BJ$174*$C$6-(BF32-BF34)/$BJ$175*$C$6+(BE32-BF32)/BI162*$C$6)/$BG$175 -> 20.00000064 | BR31: 4 | BS31: =MREZIST(BJ20) -> 1.044107595e-07 | BT31: =cpmed(BJ20) -> 383.5052909 | BU31: 8960 | BV31: =lmed(BJ20) -> 400.6712771 | BW31: 3.141592654e-05 | BX31: 3.323497697e-05 | BY31: 1.079516394 | BZ31: 3.141592654e-07 | CA31: =($AH$47*$AH$46*(BJ20-$BG$16)*$BW$26^3)/$AH$45^2 -> 0 | CB31: 0.36 | CC31: 0.7890556355 | CD31: 0.0009970493092 | CE31: 3667.332309 | CF31: 1.412340426
D32: 5 | E32: =MREZIST(I20) -> 1.044107595e-07 | F32: =cpmed(I20) -> 383.5052909 | G32: 8960 | H32: =lmed(I20) -> 400.6712771 | I32: 0.0001272345025 | J32: 8.206167154e-06 | K32: 4.372041397 | L32: 1.272345025e-06 | M32: =(AH47*AH46*(I20-E16)*I26^3)/AH45^2 -> 0 | N32: 0.36 | O32: 0.9644013323 | P32: 0.0002461850146 | Q32: 3668.475846 | R32: 0.3487260311 | AJ32: 7 | AK32: Předchozí teplota | AL32: 20 | AM32: 20 | AN32: 20 | AO32: 20 | AP32: 20 | AQ32: 20 | AR32: 20 | AS32: 20 | AT32: 20 | AU32: 20 | AV32: 20 | AW32: 20 | AX32: 20 | AY32: 20 | AZ32: 20 | BA32: 20 | BB32: 20 | BC32: 20 | BD32: 20 | BE32: 20 | BF32: 20 | BR32: 5 | BS32: =MREZIST(BK20) -> 1.044107595e-07 | BT32: =cpmed(BK20) -> 383.5052909 | BU32: 8960 | BV32: =lmed(BK20) -> 400.6712771 | BW32: 3.141592654e-05 | BX32: 3.323497697e-05 | BY32: 1.079516394 | BZ32: 3.141592654e-07 | CA32: =($AH$47*$AH$46*(BK20-$BG$16)*$BW$26^3)/$AH$45^2 -> 0 | CB32: 0.36 | CC32: 0.7890556355 | CD32: 0.0009970493092 | CE32: 3667.332309 | CF32: 1.412340426
D33: 6 | E33: =MREZIST(J20) -> 1.044107595e-07 | F33: =cpmed(J20) -> 383.5052909 | G33: 8960 | H33: =lmed(J20) -> 400.6712771 | I33: 0.0001272345025 | J33: 8.206167154e-06 | K33: 4.372041397 | L33: 1.272345025e-06 | M33: =(AH47*AH46*(J20-E16)*I26^3)/AH45^2 -> 0 | N33: 0.36 | O33: 0.9644013323 | P33: 0.0002461850146 | Q33: 3668.475846 | R33: 0.3487260311 | AJ33: 8 | AK33: Současná teplota | AL33: =AL34+($AV$53^2/$AQ$53*$C$6+(AL32-AL34)/$AU$52*$C$6-(AL34-AL36)/$AU$53*$C$6+(AM34-AL34)/AT72*$C$6)/$AR$53 -> 20.00000012 | AM33: =AM34+($AV$72^2/$AQ$72*$C$6+(AM32-AM34)/$AU$71*$C$6-(AM34-AM36)/$AU$72*$C$6+(AN34-AM34)/AT85*$C$6-(AM34-AL34)/AT72*$C$6)/$AR$72 -> 20.00053971 | AN33: =AN34+($AV$85^2/$AQ$85*$C$6+(AN32-AN34)/$AU$84*$C$6-(AN34-AN36)/$AU$85*$C$6+(AO34-AN34)/AT98*$C$6-(AN34-AM34)/AT85*$C$6)/$AR$85 -> 20.00053971 | AO33: =AO34+($AV$98^2/$AQ$98*$C$6+(AO32-AO34)/$AU$97*$C$6-(AO34-AO36)/$AU$98*$C$6+(AP34-AO34)/AT111*$C$6-(AO34-AN34)/AT98*$C$6)/$AR$98 -> 20.00053971 | AP33: =AP34+($AV$111^2/$AQ$111*$C$6+(AP32-AP34)/$AU$110*$C$6-(AP34-AP36)/$AU$111*$C$6+(AQ34-AP34)/AT124*$C$6-(AP34-AO34)/AT111*$C$6)/$AR$111 -> 20.00053971 | AQ33: =AQ34+($AV$124^2/$AQ$124*$C$6+(AQ32-AQ34)/$AU$123*$C$6-(AQ34-AQ36)/$AU$124*$C$6+(AR34-AQ34)/AT137*$C$6-(AQ34-AP34)/AT124*$C$6)/$AR$124 -> 20.00053971 | AR33: =AR34+($AV$137^2/$AQ$137*$C$6+(AR32-AR34)/$AU$136*$C$6-(AR34-AR36)/$AU$137*$C$6+(AS34-AR34)/AT150*$C$6-(AR34-AQ34)/AT137*$C$6)/$AR$137 -> 20.00053971 | AS33: =AS34+($AV$150^2/$AQ$150*$C$6+(AS32-AS34)/$AU$149*$C$6-(AS34-AS36)/$AU$150*$C$6+(AT34-AS34)/AT163*$C$6-(AS34-AR34)/AT150*$C$6)/$AR$150 -> 20.00053909 | AT33: =AT34+($AV$163^2/$AQ$163*$C$6+(AT32-AT34)/$AU$162*$C$6-(AT34-AT36)/$AU$163*$C$6+(AU34-AT34)/AT176*$C$6-(AT34-AS34)/AT163*$C$6)/$AR$163 -> 20.00053971 | AU33: =AU34+($AV$176^2/$AQ$176*$C$6+(AU32-AU34)/$AU$175*$C$6-(AU34-AU36)/$AU$176*$C$6+(AV34-AU34)/AT189*$C$6-(AU34-AT34)/AT176*$C$6)/$AR$176 -> 20.00053971 | AV33: =AV34+($AV$189^2/$AQ$189*$C$6+(AV32-AV34)/$AU$188*$C$6-(AV34-AV36)/$AU$189*$C$6-(AV34-AU34)/AT189*$C$6-(AV34-AW34)/BI53*$C$6)/$AR$189 -> 20.00053971 | AW33: =AW34+($BK$53^2/$BF$53*$C$6+(AW32-AW34)/$BJ$52*$C$6-(AW34-AW36)/$BJ$53*$C$6+(AV34-AW34)/AW189*$C$6-(AW34-AX34)/BI53*$C$6)/$BG$53 -> 20.00053971 | AX33: =AX34+($BK$72^2/$BF$72*$C$6+(AX32-AX34)/$BJ$71*$C$6-(AX34-AX36)/$BJ$72*$C$6+(AW34-AX34)/BI53*$C$6-(AX34-AY34)/BI72*$C$6)/$BG$72 -> 20.00053971 | AY33: =AY34+($BK$85^2/$BF$85*$C$6+(AY32-AY34)/$BJ$84*$C$6-(AY34-AY36)/$BJ$85*$C$6+(AX34-AY34)/BI72*$C$6-(AY34-AZ34)/BI85*$C$6)/$BG$85 -> 20.00053971 | AZ33: =AZ34+($BK$98^2/$BF$98*$C$6+(AZ32-AZ34)/$BJ$97*$C$6-(AZ34-AZ36)/$BJ$98*$C$6+(AY34-AZ34)/BI85*$C$6-(AZ34-BA34)/BI98*$C$6)/$BG$98 -> 20.00053971 | BA33: =BA34+($BK$111^2/$BF$111*$C$6+(BA32-BA34)/$BJ$110*$C$6-(BA34-BA36)/$BJ$111*$C$6+(AZ34-BA34)/BI98*$C$6-(BA34-BB34)/BI111*$C$6)/$BG$111 -> 20.00053971 | BB33: =BB34+($BK$124^2/$BF$124*$C$6+(BB32-BB34)/$BJ$123*$C$6-(BB34-BB36)/$BJ$124*$C$6+(BA34-BB34)/BI111*$C$6-(BB34-BC34)/BI124*$C$6)/$BG$124 -> 20.00053971 | BC33: =BC34+($BK$137^2/$BF$137*$C$6+(BC32-BC34)/$BJ$136*$C$6-(BC34-BC36)/$BJ$137*$C$6+(BB34-BC34)/BI124*$C$6-(BC34-BD34)/BI137*$C$6)/$BG$137 -> 20.00053971 | BD33: =BD34+($BK$150^2/$BF$150*$C$6+(BD32-BD34)/$BJ$149*$C$6-(BD34-BD36)/$BJ$150*$C$6+(BC34-BD34)/BI137*$C$6-(BD34-BE34)/BI150*$C$6)/$BG$150 -> 20.00053971 | BE33: =BE34+($BK$163^2/$BF$163*$C$6+(BE32-BE34)/$BJ$162*$C$6-(BE34-BE36)/$BJ$163*$C$6+(BD34-BE34)/BI150*$C$6-(BE34-BF34)/BI163*$C$6)/$BG$163 -> 20.00053971 | BF33: =BF34+($BK$176^2/$BF$176*$C$6+(BF32-BF34)/$BJ$175*$C$6-(BF34-BF36)/$BJ$176*$C$6+(BE34-BF34)/BI163*$C$6)/$BG$176 -> 20.00000064 | BR33: 6 | BS33: =MREZIST(BL20) -> 1.044107595e-07 | BT33: =cpmed(BL20) -> 383.5052909 | BU33: 8960 | BV33: =lmed(BL20) -> 400.6712771 | BW33: 3.141592654e-05 | BX33: 3.323497697e-05 | BY33: 1.079516394 | BZ33: 3.141592654e-07 | CA33: =($AH$47*$AH$46*(BL20-$BG$16)*$BW$26^3)/$AH$45^2 -> 0 | CB33: 0.36 | CC33: 0.7890556355 | CD33: 0.0009970493092 | CE33: 3667.332309 | CF33: 1.412340426
D34: 7 | E34: =MREZIST(K20) -> 1.044107595e-07 | F34: =cpmed(K20) -> 383.5052909 | G34: 8960 | H34: =lmed(K20) -> 400.6712771 | I34: 0.0001272345025 | J34: 8.206167154e-06 | K34: 4.372041397 | L34: 1.272345025e-06 | M34: =(AH47*AH46*(K20-E16)*I26^3)/AH45^2 -> 0 | N34: 0.36 | O34: 0.9644013323 | P34: 0.0002461850146 | Q34: 3668.475846 | R34: 0.3487260311 | AJ34: 8 | AK34: Předchozí teplota | AL34: 20 | AM34: 20 | AN34: 20 | AO34: 20 | AP34: 20 | AQ34: 20 | AR34: 20 | AS34: 20 | AT34: 20 | AU34: 20 | AV34: 20 | AW34: 20 | AX34: 20 | AY34: 20 | AZ34: 20 | BA34: 20 | BB34: 20 | BC34: 20 | BD34: 20 | BE34: 20 | BF34: 20 | BR34: 7 | BS34: =MREZIST(BM20) -> 1.044107595e-07 | BT34: =cpmed(BM20) -> 383.5052909 | BU34: 8960 | BV34: =lmed(BM20) -> 400.6712771 | BW34: 3.141592654e-05 | BX34: 3.323497697e-05 | BY34: 1.079516394 | BZ34: 3.141592654e-07 | CA34: =($AH$47*$AH$46*(BM20-$BG$16)*$BW$26^3)/$AH$45^2 -> 0 | CB34: 0.36 | CC34: 0.7890556355 | CD34: 0.0009970493092 | CE34: 3667.332309 | CF34: 1.412340426
D35: 8 | E35: =MREZIST(L20) -> 1.044107595e-07 | F35: =cpmed(L20) -> 383.5052909 | G35: 8960 | H35: =lmed(L20) -> 400.6712771 | I35: 0.0001272345025 | J35: 8.206167154e-06 | K35: 4.372041397 | L35: 1.272345025e-06 | M35: =(AH47*AH46*(L20-E16)*I26^3)/AH45^2 -> 0 | N35: 0.36 | O35: 0.9644013323 | P35: 0.0002461850146 | Q35: 3668.475846 | R35: 0.3487260311 | AJ35: 9 | AK35: Současná teplota | AL35: =AL36+($AV$54^2/$AQ$54*$C$6+(AL34-AL36)/$AU$53*$C$6-(AL36-AL38)/$AU$54*$C$6+(AM36-AL36)/AT73*$C$6)/$AR$54 -> 20.00000012 | AM35: =AM36+($AV$73^2/$AQ$73*$C$6+(AM34-AM36)/$AU$72*$C$6-(AM36-AM38)/$AU$73*$C$6+(AN36-AM36)/AT86*$C$6-(AM36-AL36)/AT73*$C$6)/$AR$73 -> 20.00053971 | AN35: =AN36+($AV$86^2/$AQ$86*$C$6+(AN34-AN36)/$AU$85*$C$6-(AN36-AN38)/$AU$86*$C$6+(AO36-AN36)/AT99*$C$6-(AN36-AM36)/AT86*$C$6)/$AR$86 -> 20.00053971 | AO35: =AO36+($AV$99^2/$AQ$99*$C$6+(AO34-AO36)/$AU$98*$C$6-(AO36-AO38)/$AU$99*$C$6+(AP36-AO36)/AT112*$C$6-(AO36-AN36)/AT99*$C$6)/$AR$99 -> 20.00053971 | AP35: =AP36+($AV$112^2/$AQ$112*$C$6+(AP34-AP36)/$AU$111*$C$6-(AP36-AP38)/$AU$112*$C$6+(AQ36-AP36)/AT125*$C$6-(AP36-AO36)/AT112*$C$6)/$AR$112 -> 20.00053971 | AQ35: =AQ36+($AV$125^2/$AQ$125*$C$6+(AQ34-AQ36)/$AU$124*$C$6-(AQ36-AQ38)/$AU$125*$C$6+(AR36-AQ36)/AT138*$C$6-(AQ36-AP36)/AT125*$C$6)/$AR$125 -> 20.00053971 | AR35: =AR36+($AV$138^2/$AQ$138*$C$6+(AR34-AR36)/$AU$137*$C$6-(AR36-AR38)/$AU$138*$C$6+(AS36-AR36)/AT151*$C$6-(AR36-AQ36)/AT138*$C$6)/$AR$138 -> 20.00053971 | AS35: =AS36+($AV$151^2/$AQ$151*$C$6+(AS34-AS36)/$AU$150*$C$6-(AS36-AS38)/$AU$151*$C$6+(AT36-AS36)/AT164*$C$6-(AS36-AR36)/AT151*$C$6)/$AR$151 -> 20.00053971 | AT35: =AT36+($AV$164^2/$AQ$164*$C$6+(AT34-AT36)/$AU$163*$C$6-(AT36-AT38)/$AU$164*$C$6+(AU36-AT36)/AT177*$C$6-(AT36-AS36)/AT164*$C$6)/$AR$164 -> 20.00053971 | AU35: =AU36+($AV$177^2/$AQ$177*$C$6+(AU34-AU36)/$AU$176*$C$6-(AU36-AU38)/$AU$177*$C$6+(AV36-AU36)/AT190*$C$6-(AU36-AT36)/AT177*$C$6)/$AR$177 -> 20.00053971 | AV35: =AV36+($AV$190^2/$AQ$190*$C$6+(AV34-AV36)/$AU$189*$C$6-(AV36-AV38)/$AU$190*$C$6-(AV36-AU36)/AT190*$C$6-(AV36-AW36)/BI54*$C$6)/$AR$190 -> 20.00053971 | AW35: =AW36+($BK$54^2/$BF$54*$C$6+(AW34-AW36)/$BJ$53*$C$6-(AW36-AW38)/$BJ$54*$C$6+(AV36-AW36)/AW190*$C$6-(AW36-AX36)/BI54*$C$6)/$BG$54 -> 20.00053971 | AX35: =AX36+($BK$73^2/$BF$73*$C$6+(AX34-AX36)/$BJ$72*$C$6-(AX36-AX38)/$BJ$73*$C$6+(AW36-AX36)/BI54*$C$6-(AX36-AY36)/BI73*$C$6)/$BG$73 -> 20.00053971 | AY35: =AY36+($BK$86^2/$BF$86*$C$6+(AY34-AY36)/$BJ$85*$C$6-(AY36-AY38)/$BJ$86*$C$6+(AX36-AY36)/BI73*$C$6-(AY36-AZ36)/BI86*$C$6)/$BG$86 -> 20.00053971 | AZ35: =AZ36+($BK$99^2/$BF$99*$C$6+(AZ34-AZ36)/$BJ$98*$C$6-(AZ36-AZ38)/$BJ$99*$C$6+(AY36-AZ36)/BI86*$C$6-(AZ36-BA36)/BI99*$C$6)/$BG$99 -> 20.00053971 | BA35: =BA36+($BK$112^2/$BF$112*$C$6+(BA34-BA36)/$BJ$111*$C$6-(BA36-BA38)/$BJ$112*$C$6+(AZ36-BA36)/BI99*$C$6-(BA36-BB36)/BI112*$C$6)/$BG$112 -> 20.00053971 | BB35: =BB36+($BK$125^2/$BF$125*$C$6+(BB34-BB36)/$BJ$124*$C$6-(BB36-BB38)/$BJ$125*$C$6+(BA36-BB36)/BI112*$C$6-(BB36-BC36)/BI125*$C$6)/$BG$125 -> 20.00053971 | BC35: =BC36+($BK$138^2/$BF$138*$C$6+(BC34-BC36)/$BJ$137*$C$6-(BC36-BC38)/$BJ$138*$C$6+(BB36-BC36)/BI125*$C$6-(BC36-BD36)/BI138*$C$6)/$BG$138 -> 20.00053971 | BD35: =BD36+($BK$151^2/$BF$151*$C$6+(BD34-BD36)/$BJ$150*$C$6-(BD36-BD38)/$BJ$151*$C$6+(BC36-BD36)/BI138*$C$6-(BD36-BE36)/BI151*$C$6)/$BG$151 -> 20.00053971 | BE35: =BE36+($BK$164^2/$BF$164*$C$6+(BE34-BE36)/$BJ$163*$C$6-(BE36-BE38)/$BJ$164*$C$6+(BD36-BE36)/BI151*$C$6-(BE36-BF36)/BI164*$C$6)/$BG$164 -> 20.00053971 | BF35: =BF36+($BK$177^2/$BF$177*$C$6+(BF34-BF36)/$BJ$176*$C$6-(BF36-BF38)/$BJ$177*$C$6+(BE36-BF36)/BI164*$C$6)/$BG$177 -> 20.00000064 | BR35: 8 | BS35: =MREZIST(BN20) -> 1.044107595e-07 | BT35: =cpmed(N20) -> 383.5052909 | BU35: 8960 | BV35: =lmed(BN20) -> 400.6712771 | BW35: 3.141592654e-05 | BX35: 3.323497697e-05 | BY35: 1.079516394 | BZ35: 3.141592654e-07 | CA35: =($AH$47*$AH$46*(BN20-$BG$16)*$BW$26^3)/$AH$45^2 -> 0 | CB35: 0.36 | CC35: 0.7890556355 | CD35: 0.0009970493092 | CE35: 3667.332309 | CF35: 1.412340426
D36: 9 | E36: =MREZIST(M20) -> 1.044107595e-07 | F36: =cpmed(M20) -> 383.5052909 | G36: 8960 | H36: =lmed(M20) -> 400.6712771 | I36: 0.0001272345025 | J36: 8.206167154e-06 | K36: 4.372041397 | L36: 1.272345025e-06 | M36: =(AH47*AH46*(M20-E16)*I26^3)/AH45^2 -> 0 | N36: 0.36 | O36: 0.9644013323 | P36: 0.0002461850146 | Q36: 3668.475846 | R36: 0.3487260311 | AJ36: 9 | AK36: Předchozí teplota | AL36: 20 | AM36: 20 | AN36: 20 | AO36: 20 | AP36: 20 | AQ36: 20 | AR36: 20 | AS36: 20 | AT36: 20 | AU36: 20 | AV36: 20 | AW36: 20 | AX36: 20 | AY36: 20 | AZ36: 20 | BA36: 20 | BB36: 20 | BC36: 20 | BD36: 20 | BE36: 20 | BF36: 20 | BR36: 9 | BS36: =MREZIST(BO20) -> 1.044107595e-07 | BT36: =cpmed(BO20) -> 383.5052909 | BU36: 8960 | BV36: =lmed(BO20) -> 400.6712771 | BW36: 3.141592654e-05 | BX36: 3.323497697e-05 | BY36: 1.079516394 | BZ36: 3.141592654e-07 | CA36: =($AH$47*$AH$46*(BO20-$BG$16)*$BW$26^3)/$AH$45^2 -> 0 | CB36: 0.36 | CC36: 0.7890556355 | CD36: 0.0009970493092 | CE36: 3667.332309 | CF36: 1.412340426
D37: 10 | E37: =MREZIST(N20) -> 1.044107595e-07 | F37: =cpmed(N20) -> 383.5052909 | G37: 8960 | H37: =lmed(N20) -> 400.6712771 | I37: 0.0001272345025 | J37: 8.206167154e-06 | K37: 4.372041397 | L37: 1.272345025e-06 | M37: =(AH47*AH46*(N20-E16)*I26^3)/AH45^2 -> 0 | N37: 0.36 | O37: 0.9644013323 | P37: 0.0002461850146 | Q37: 3668.475846 | R37: 0.3487260311 | AJ37: 10 | AK37: Současná teplota | AL37: =AL38+($AV$55^2/$AQ$55+(AL36-AL38)/$AU$54*$C$6-(AL38-AL16)/$AU$55*$C$6+(AM38-AL38)/AT74*$C$6-AH50*AH51*(2*PI()*AB56*0.01)*((273.15+AL38)^4-(273.15+AL16)^4)*$C$6)/$AR$55 -> 20.00023726 | AM37: =AM38+($AV$74^2/$AQ$74*$C$6+(AM36-AM38)/$AU$73*$C$6-(AM38-AM16)/$AU$74*$C$6+(AN38-AM38)/AT87*$C$6-(AM38-AL38)/AT74*$C$6-AH50*AH51*AH41*((273.15+AM38)^4-(273.15+AM16)^4)*$C$6)/$AR$74 -> 20.00053971 | AN37: =AN38+($AV$87^2/$AQ$87*$C$6+(AN36-AN38)/$AU$86*$C$6-(AN38-AN16)/$AU$87*$C$6+(AO38-AN38)/AT100*$C$6-(AN38-AM38)/AT87*$C$6-AH50*AH51*AH41*((273.15+AN38)^4-(273.15+AM16)^4)*$C$6)/$AR$87 -> 20.00053971 | AO37: =AO38+($AV$100^2/$AQ$100*$C$6+(AO36-AO38)/$AU$99*$C$6-(AO38-AO16)/$AU$100*$C$6+(AP38-AO38)/AT113*$C$6-(AO38-AN38)/AT100*$C$6-AH50*AH51*AH41*((273.15+AO38)^4-(273.15+AM16)^4)*$C$6)/$AR$100 -> 20.00053971 | AP37: =AP38+($AV$113^2/$AQ$113*$C$6+(AP36-AP38)/$AU$112*$C$6-(AP38-AP16)/$AU$113*$C$6+(AQ38-AP38)/AT126*$C$6-(AP38-AO38)/AT113*$C$6-AH50*AH51*AH41*((273.15+AP38)^4-(273.15+AM16)^4)*$C$6)/$AR$113 -> 20.00053971 | AQ37: =AQ38+($AV$126^2/$AQ$126*$C$6+(AQ36-AQ38)/$AU$125*$C$6-(AQ38-AQ16)/$AU$126*$C$6+(AR38-AQ38)/AT139*$C$6-(AQ38-AP38)/AT126*$C$6-AH50*AH51*AH41*((273.15+AQ38)^4-(273.15+AM16)^4)*$C$6)/$AR$126 -> 20.00053971 | AR37: =AR38+($AV$139^2/$AQ$139*$C$6+(AR36-AR38)/$AU$138*$C$6-(AR38-AR16)/$AU$139*$C$6+(AS38-AR38)/AT152*$C$6-(AR38-AQ38)/AT139*$C$6-AH50*AH51*AH41*((273.15+AR38)^4-(273.15+AM16)^4)*$C$6)/$AR$139 -> 20.00053971 | AS37: =AS38+($AV$152^2/$AQ$152*$C$6+(AS36-AS38)/$AU$151*$C$6-(AS38-AS16)/$AU$152*$C$6+(AT38-AS38)/AT165*$C$6-(AS38-AR38)/AT152*$C$6-AH50*AH51*AH41*((273.15+AS38)^4-(273.15+AM16)^4)*$C$6)/$AR$152 -> 20.00053971 | AT37: =AT38+($AV$165^2/$AQ$165*$C$6+(AT36-AT38)/$AU$164*$C$6-(AT38-AT16)/$AU$165*$C$6+(AU38-AT38)/AT178*$C$6-(AT38-AS38)/AT165*$C$6-AH50*AH51*AH41*((273.15+AT38)^4-(273.15+AM16)^4)*$C$6)/$AR$165 -> 20.00053971 | AU37: =AU38+($AV$178^2/$AQ$178*$C$6+(AU36-AU38)/$AU$177*$C$6-(AU38-AU16)/$AU$178*$C$6+(AV38-AU38)/AT191*$C$6-(AU38-AT38)/AT178*$C$6-AH50*AH51*AH41*((273.15+AU38)^4-(273.15+AM16)^4)*$C$6)/$AR$178 -> 20.00053971 | AV37: =AV38+($AV$191^2/$AQ$191+(AV36-AV38)/$AU$190-(AV38-AV16)/$AU$191-(AV38-AU38)/AT191-(AV38-AW38)/BI55-AH50*AH51*AH41*((273.15+AV38)^4-(273.15+AM16)^4))/$AR$191*$C$6 -> 20.00053971 | AW37: =AW38+($BK$55^2/$BF$55*$C$6+(AW36-AW38)/$BJ$54*$C$6-(AW38-AW16)/$BJ$55*$C$6+(AV38-AW38)/AW191*$C$6-(AW38-AX38)/BI55*$C$6-AH50*AH51*AH41*((273.15+AW38)^4-(273.15+AM16)^4)*$C$6)/$BG$55 -> 20.00053971 | AX37: =AX38+($BK$74^2/$BF$74*$C$6+(AX36-AX38)/$BJ$73*$C$6-(AX38-AX16)/$BJ$74*$C$6+(AW38-AX38)/BI55*$C$6-(AX38-AY38)/BI74*$C$6-AH50*AH51*AH41*((273.15+AX38)^4-(273.15+AM16)^4)*$C$6)/$BG$74 -> 20.00053971 | AY37: =AY38+($BK$87^2/$BF$87*$C$6+(AY36-AY38)/$BJ$86*$C$6-(AY38-AY16)/$BJ$87*$C$6+(AX38-AY38)/BI74*$C$6-(AY38-AZ38)/BI87*$C$6-AH50*AH51*AH41*((273.15+AY38)^4-(273.15+AM16)^4)*$C$6)/$BG$87 -> 20.00053971 | AZ37: =AZ38+($BK$100^2/$BF$100*$C$6+(AZ36-AZ38)/$BJ$99*$C$6-(AZ38-AZ16)/$BJ$100*$C$6+(AY38-AZ38)/BI87*$C$6-(AZ38-BA38)/BI100*$C$6-AH50*AH51*AH41*((273.15+AZ38)^4-(273.15+AM16)^4)*$C$6)/$BG$100 -> 20.00053971 | BA37: =BA38+($BK$113^2/$BF$113*$C$6+(BA36-BA38)/$BJ$112*$C$6-(BA38-BA16)/$BJ$113*$C$6+(AZ38-BA38)/BI100*$C$6-(BA38-BB38)/BI113*$C$6-AH50*AH51*AH41*((273.15+BA38)^4-(273.15+AM16)^4)*$C$6)/$BG$113 -> 20.00053971 | BB37: =BB38+($BK$126^2/$BF$126*$C$6+(BB36-BB38)/$BJ$125*$C$6-(BB38-BB16)/$BJ$126*$C$6+(BA38-BB38)/BI113*$C$6-(BB38-BC38)/BI126*$C$6-AH50*AH51*AH41*((273.15+BB38)^4-(273.15+AM16)^4)*$C$6)/$BG$126 -> 20.00053971 | BC37: =BC38+($BK$139^2/$BF$139*$C$6+(BC36-BC38)/$BJ$138*$C$6-(BC38-BC16)/$BJ$139*$C$6+(BB38-BC38)/BI126*$C$6-(BC38-BD38)/BI139*$C$6-AH50*AH51*AH41*((273.15+BC38)^4-(273.15+AM16)^4)*$C$6)/$BG$139 -> 20.00053971 | BD37: =BD38+($BK$152^2/$BF$152*$C$6+(BD36-BD38)/$BJ$151*$C$6-(BD38-BD16)/$BJ$152*$C$6+(BC38-BD38)/BI139*$C$6-(BD38-BE38)/BI152*$C$6-AH50*AH51*AH41*((273.15+BD38)^4-(273.15+AM16)^4)*$C$6)/$BG$152 -> 20.00053971 | BE37: =BE38+($BK$165^2/$BF$165*$C$6+(BE36-BE38)/$BJ$164*$C$6-(BE38-BE16)/$BJ$165*$C$6+(BD38-BE38)/BI152*$C$6-(BE38-BF38)/BI165*$C$6-AH50*AH51*AH41*((273.15+BE38)^4-(273.15+AM16)^4)*$C$6)/$BG$165 -> 20.00053971 | BF37: =BF38+($BK$178^2/$BF$178*$C$6+(BF36-BF38)/$BJ$177*$C$6-(BF38-BG20)/$BJ$178*$C$6+(BE38-BF38)/BI165*$C$6)/$BG$178 -> 20.00000064 | BR37: 10 | BS37: =MREZIST(BP20) -> 1.044107595e-07 | BT37: =cpmed(BP20) -> 383.5052909 | BU37: 8960 | BV37: =lmed(BP20) -> 400.6712771 | BW37: 3.141592654e-05 | BX37: 3.323497697e-05 | BY37: 1.079516394 | BZ37: 3.141592654e-07 | CA37: =($AH$47*$AH$46*(BP20-$BG$16)*$BW$26^3)/$AH$45^2 -> 0 | CB37: 0.36 | CC37: 0.7890556355 | CD37: 0.0009970493092 | CE37: 3667.332309 | CF37: 1.412340426
D38: 11 | E38: =MREZIST(O20) -> 1.044107595e-07 | F38: =cpmed(O20) -> 383.5052909 | G38: 8960 | H38: =lmed(O20) -> 400.6712771 | I38: 0.0001272345025 | J38: 8.206167154e-06 | K38: 4.372041397 | L38: 1.272345025e-06 | M38: =(AH47*AH46*(O20-E16)*I26^3)/AH45^2 -> 0 | N38: 0.36 | O38: 0.9644013323 | P38: 0.0002461850146 | Q38: 3668.475846 | R38: 0.3487260311 | AJ38: 10 | AK38: Předchozí teplota | AL38: 20 | AM38: 20 | AN38: 20 | AO38: 20 | AP38: 20 | AQ38: 20 | AR38: 20 | AS38: 20 | AT38: 20 | AU38: 20 | AV38: 20 | AW38: 20 | AX38: 20 | AY38: 20 | AZ38: 20 | BA38: 20 | BB38: 20 | BC38: 20 | BD38: 20 | BE38: 20 | BF38: 20 | BR38: 11 | BS38: =MREZIST(BQ20) -> 1.044107595e-07 | BT38: =cpmed(BQ20) -> 383.5052909 | BU38: 8960 | BV38: =lmed(BQ20) -> 400.6712771 | BW38: 3.141592654e-05 | BX38: 3.323497697e-05 | BY38: 1.079516394 | BZ38: 3.141592654e-07 | CA38: =($AH$47*$AH$46*(BQ20-$BG$16)*$BW$26^3)/$AH$45^2 -> 0 | CB38: 0.36 | CC38: 0.7890556355 | CD38: 0.0009970493092 | CE38: 3667.332309 | CF38: 1.412340426
D39: 12 | E39: =MREZIST(P20) -> 1.044107595e-07 | F39: =cpmed(P20) -> 383.5052909 | G39: 8960 | H39: =lmed(P20) -> 400.6712771 | I39: 0.0001272345025 | J39: 8.206167154e-06 | K39: 4.372041397 | L39: 1.272345025e-06 | M39: =(AH47*AH46*(P20-E16)*I26^3)/AH45^2 -> 0 | N39: 0.36 | O39: 0.9644013323 | P39: 0.0002461850146 | Q39: 3668.475846 | R39: 0.3487260311 | BR39: 12 | BS39: =MREZIST(BR20) -> 1.044107595e-07 | BT39: =cpmed(BR20) -> 383.5052909 | BU39: 8960 | BV39: =lmed(BR20) -> 400.6712771 | BW39: 3.141592654e-05 | BX39: 3.323497697e-05 | BY39: 1.079516394 | BZ39: 3.141592654e-07 | CA39: =($AH$47*$AH$46*(BR20-$BG$16)*$BW$26^3)/$AH$45^2 -> 0 | CB39: 0.36 | CC39: 0.7890556355 | CD39: 0.0009970493092 | CE39: 3667.332309 | CF39: 1.412340426
D40: 13 | E40: =MREZIST(Q20) -> 1.044107595e-07 | F40: =cpmed(Q20) -> 383.5052909 | G40: 8960 | H40: =lmed(Q20) -> 400.6712771 | I40: 0.0001272345025 | J40: 8.206167154e-06 | K40: 4.372041397 | L40: 1.272345025e-06 | M40: =(AH47*AH46*(Q20-E16)*I26^3)/AH45^2 -> 0 | N40: 0.36 | O40: 0.9644013323 | P40: 0.0002461850146 | Q40: 3668.475846 | R40: 0.3487260311 | AG40: Konvekce nerezi | BR40: 13 | BS40: =MREZIST(BH20) -> 1.044107595e-07 | BT40: =cpmed(BS20) -> 383.5052909 | BU40: 8960 | BV40: =lmed(BS20) -> 400.6712771 | BW40: 3.141592654e-05 | BX40: 3.323497697e-05 | BY40: 1.079516394 | BZ40: 3.141592654e-07 | CA40: =($AH$47*$AH$46*(BS20-$BG$16)*$BW$26^3)/$AH$45^2 -> 0 | CB40: 0.36 | CC40: 0.7890556355 | CD40: 0.0009970493092 | CE40: 3667.332309 | CF40: 1.412340426
D41: 14 | E41: =MREZIST(R20) -> 1.044107595e-07 | F41: =cpmed(R20) -> 383.5052909 | G41: 8960 | H41: =lmed(R20) -> 400.6712771 | I41: 0.0001272345025 | J41: 8.206167154e-06 | K41: 4.372041397 | L41: 1.272345025e-06 | M41: =(AH47*AH46*(R20-E16)*I26^3)/AH45^2 -> 0 | N41: 0.36 | O41: 0.9644013323 | P41: 0.0002461850146 | Q41: 3668.475846 | R41: 0.3487260311 | AG41: Spovrch [m2] | AH41: =2*PI()*((C7*10^-3)/2)*C12 -> 0.0005026548246 | AI41: Gr [-] | AL41: =($AH$47*$AH$46*(AL38-$AL$16)*$AH$43^3)/$AH$45^2 -> 0 | AM41: =($AH$47*$AH$46*(AM38-$AL$16)*$AH$43^3)/$AH$45^2 -> 0 | AN41: 0 | AO41: 0 | AP41: 0 | AQ41: 0 | AR41: 0 | AS41: 0 | AT41: 0 | AU41: 0 | AV41: 0 | AW41: 0 | AX41: 0 | AY41: 0 | AZ41: 0 | BA41: 0 | BB41: 0 | BC41: 0 | BD41: 0 | BE41: 0 | BF41: 0 | BR41: 14 | BS41: =MREZIST(BT20) -> 1.044107595e-07 | BT41: =cpmed(BT20) -> 383.5052909 | BU41: 8960 | BV41: =lmed(BT20) -> 400.6712771 | BW41: 3.141592654e-05 | BX41: 3.323497697e-05 | BY41: 1.079516394 | BZ41: 3.141592654e-07 | CA41: =($AH$47*$AH$46*(BT20-$BG$16)*$BW$26^3)/$AH$45^2 -> 0 | CB41: 0.36 | CC41: 0.7890556355 | CD41: 0.0009970493092 | CE41: 3667.332309 | CF41: 1.412340426
D42: 15 | E42: =MREZIST(S20) -> 1.044107595e-07 | F42: =cpmed(S20) -> 383.5052909 | G42: 8960 | H42: =lmed(S20) -> 400.6712771 | I42: 0.0001272345025 | J42: 8.206167154e-06 | K42: 4.372041397 | L42: 1.272345025e-06 | M42: =(AH47*AH46*(S20-E16)*I26^3)/AH45^2 -> 0 | N42: 0.36 | O42: 0.9644013323 | P42: 0.0002461850146 | Q42: 3668.475846 | R42: 0.3487260311 | AG42: λvzduch [W/m*k] | AH42: =1.5207*10^-11*(273.15+AL40)^3-4.8574*10^-8*(273.15+AL40)^2+1.0184*10^-4*(273.15+AL40)-0.00039333 -> 0.02411003331 | AI42: Nu [-] | AL42: =(0.6+((0.387*($AH$44*AL41)^(1/6))/(1+(0.721*((1/$AH$44)^(9/16))))^(8/27)))^2 -> 0.36 | AM42: 0.36 | AN42: 0.36 | AO42: 0.36 | AP42: 0.36 | AQ42: 0.36 | AR42: 0.36 | AS42: 0.36 | AT42: 0.36 | AU42: 0.36 | AV42: 0.36 | AW42: 0.36 | AX42: 0.36 | AY42: 0.36 | AZ42: 0.36 | BA42: 0.36 | BB42: 0.36 | BC42: 0.36 | BD42: 0.36 | BE42: 0.36 | BF42: 0.36 | BR42: 15 | BS42: =MREZIST(BU20) -> 1.044107595e-07 | BT42: =cpmed(BU20) -> 383.5052909 | BU42: 8960 | BV42: =lmed(BU20) -> 400.6712771 | BW42: 3.141592654e-05 | BX42: 3.323497697e-05 | BY42: 1.079516394 | BZ42: 3.141592654e-07 | CA42: =($AH$47*$AH$46*(BU20-$BG$16)*$BW$26^3)/$AH$45^2 -> 0 | CB42: 0.36 | CC42: 0.7890556355 | CD42: 0.0009970493092 | CE42: 3667.332309 | CF42: 1.412340426
D43: 16 | E43: =MREZIST(T20) -> 1.044107595e-07 | F43: =cpmed(T20) -> 383.5052909 | G43: 8960 | H43: =lmed(T20) -> 400.6712771 | I43: 0.0001272345025 | J43: 8.206167154e-06 | K43: 4.372041397 | L43: 1.272345025e-06 | M43: =(AH47*AH46*(T20-E16)*I26^3)/AH45^2 -> 0 | N43: 0.36 | O43: 0.9644013323 | P43: 0.0002461850146 | Q43: 3668.475846 | R43: 0.3487260311 | AG43: L [m] | AH43: =C7*10^-3 -> 0.009 | AI43: α [W/m2*K] | AL43: =AL42*$AH$42/0.009 -> 0.9644013323 | AM43: =AM42*$AH$42/0.009 -> 0.9644013323 | AN43: 0.9644013323 | AO43: 0.9644013323 | AP43: 0.9644013323 | AQ43: 0.9644013323 | AR43: 0.9644013323 | AS43: 0.9644013323 | AT43: 0.9644013323 | AU43: 0.9644013323 | AV43: 0.9644013323 | AW43: 0.9644013323 | AX43: 0.9644013323 | AY43: 0.9644013323 | AZ43: 0.9644013323 | BA43: 0.9644013323 | BB43: 0.9644013323 | BC43: 0.9644013323 | BD43: 0.9644013323 | BE43: 0.9644013323 | BF43: 0.9644013323 | BR43: 16 | BS43: =MREZIST(BV20) -> 1.044107595e-07 | BT43: =cpmed(BV20) -> 383.5052909 | BU43: 8960 | BV43: =lmed(BV20) -> 400.6712771 | BW43: 3.141592654e-05 | BX43: 3.323497697e-05 | BY43: 1.079516394 | BZ43: 3.141592654e-07 | CA43: =($AH$47*$AH$46*(BV20-$BG$16)*$BW$26^3)/$AH$45^2 -> 0 | CB43: 0.36 | CC43: 0.7890556355 | CD43: 0.0009970493092 | CE43: 3667.332309 | CF43: 1.412340426
D44: 17 | E44: =MREZIST(U20) -> 1.044107595e-07 | F44: =cpmed(U20) -> 383.5052909 | G44: 8960 | H44: =lmed(U20) -> 400.6712771 | I44: 0.0001272345025 | J44: 8.206167154e-06 | K44: 4.372041397 | L44: 1.272345025e-06 | M44: =(AH47*AH46*(U20-E16)*I26^3)/AH45^2 -> 0 | N44: 0.36 | O44: 0.9644013323 | P44: 0.0002461850146 | Q44: 3668.475846 | R44: 0.3487260311 | AG44: Pr [-] | AH44: 0.71 | BR44: 17 | BS44: =MREZIST(BW20) -> 1.044107595e-07 | BT44: =cpmed(BW20) -> 383.5052909 | BU44: 8960 | BV44: =lmed(BW20) -> 400.6712771 | BW44: 3.141592654e-05 | BX44: 3.323497697e-05 | BY44: 1.079516394 | BZ44: 3.141592654e-07 | CA44: =($AH$47*$AH$46*(BW20-$BG$16)*$BW$26^3)/$AH$45^2 -> 0 | CB44: 0.36 | CC44: 0.7890556355 | CD44: 0.0009970493092 | CE44: 3667.332309 | CF44: 1.412340426
D45: 18 | E45: =MREZIST(V20) -> 1.044107595e-07 | F45: =cpmed(V20) -> 383.5052909 | G45: 8960 | H45: =lmed(V20) -> 400.6712771 | I45: 0.0001272345025 | J45: 8.206167154e-06 | K45: 4.372041397 | L45: 1.272345025e-06 | M45: =(AH47*AH46*(V20-E16)*I26^3)/AH45^2 -> 0 | N45: 0.36 | O45: 0.9644013323 | P45: 0.0002461850146 | Q45: 3668.475846 | R45: 0.3487260311 | AA45: Poloměry [m] | AG45: Viskozita [m2/s] | AH45: =15.32*10^-6 -> 1.532e-05 | AI45: 1 | AK45: vlastnosti oceli | AL45: ρ ocel [Ωm] | AM45: Cp ocel [J/kg*K] | AN45: ρ ocel [kg/m3] | AO45: λ ocel [W/m*k] | AP45: S [m2] | AQ45: R ocel [Ω] | AR45: C [J/K] | AS45: V [m3] | AT45: Rslozene dilky L | AU45: Rslozene vrstvy | AV45: U [V] | AZ45: 12 | BA45: ρ ocel [Ωm] | BB45: Cp ocel [J/kg*K] | BC45: ρ ocel [kg/m3] | BD45: λ ocel [W/m*k] | BE45: S [m2] | BF45: R ocel [Ω] | BG45: C [J/K] | BH45: V [m3] | BI45: Rslozene dilky P | BJ45: Rslozene vrstvy | BK45: U [V] | BR45: 18 | BS45: =MREZIST(BX20) -> 1.044107595e-07 | BT45: =cpmed(BX20) -> 383.5052909 | BU45: 8960 | BV45: =lmed(BX20) -> 400.6712771 | BW45: 3.141592654e-05 | BX45: 3.323497697e-05 | BY45: 1.079516394 | BZ45: 3.141592654e-07 | CA45: =($AH$47*$AH$46*(BX20-$BG$16)*$BW$26^3)/$AH$45^2 -> 0 | CB45: 0.36 | CC45: 0.7890556355 | CD45: 0.0009970493092 | CE45: 3667.332309 | CF45: 1.412340426
D46: 19 | E46: =MREZIST(W20) -> 1.044107595e-07 | F46: =cpmed(W20) -> 383.5052909 | G46: 8960 | H46: =lmed(W20) -> 400.6712771 | I46: 0.0001272345025 | J46: 8.206167154e-06 | K46: 4.372041397 | L46: 1.272345025e-06 | M46: =(AH47*AH46*(W20-E16)*I26^3)/AH45^2 -> 0 | N46: 0.36 | O46: 0.9644013323 | P46: 0.0002461850146 | Q46: 3668.475846 | R46: 0.3487260311 | AA46: r1 | AB46: 0.004 | AC46: 0.00405 | AD46: 0.004025 | AG46: β | AH46: =3.419*10^-3 -> 0.003419 | AK46: 1 | AL46: =REZIST(AL20) -> 9.21467303e-07 | AM46: =CPOCEL(AL20) -> 553.3809311 | AN46: =ROOCEL(AL20) -> 7788.0825 | AO46: =LOCEL(AL20) -> 18.06177815 | AP46: =(PI()*AB47^2-PI()*AB46^2) -> 1.264491043e-06 | AQ46: =AL46*0.01/AP46 -> 0.007287258443 | AR46: =AM46*AN46*AS46 -> 0.05449673586 | AS46: =AP46*0.01 -> 1.264491043e-08 | AU46: =1/(2*PI()*0.01)*((1/AO46)*LN(AC46/AD46)+(1/AO47)*LN(AC60/AD60)) -> 0.01087877828 | AV46: =$AM$59*$C$5 -> 0.0003069585261 | BA46: =REZIST(AW20) -> 9.21467303e-07 | BB46: =CPOCEL(AW20) -> 553.3809311 | BC46: =ROOCEL(AW20) -> 7788.0825 | BD46: =LOCEL(AW20) -> 18.06177815 | BE46: =(PI()*AB47^2-PI()*AB46^2) -> 1.264491043e-06 | BF46: =BA46*$C$12/BE46 -> 0.01295512612 | BG46: =BH46*BC46*BB46 -> 0.09688308598 | BH46: =BE46*$C$12 -> 2.247984077e-08 | BI46: =(($C$12/2)/(BD46*BE46))+(($C$12/2)/(BD65*BE65)) -> 778.3971053 | BJ46: =1/(2*PI()*$C$12)*(1/BD46)*LN(AC46/AD46)+1/(2*PI()*$C$12)*(1/BD47)*LN(AC60/AD60) -> 0.00611931278 | BK46: =$BF$56*$C$5 -> 0.03680779951 | BR46: 19 | BS46: =MREZIST(BY20) -> 1.044107595e-07 | BT46: =cpmed(BY20) -> 383.5052909 | BU46: 8960 | BV46: =lmed(BY20) -> 400.6712771 | BW46: 3.141592654e-05 | BX46: 3.323497697e-05 | BY46: 1.079516394 | BZ46: 3.141592654e-07 | CA46: =($AH$47*$AH$46*(BY20-$BG$16)*$BW$26^3)/$AH$45^2 -> 0 | CB46: 0.36 | CC46: 0.7890556355 | CD46: 0.0009970493092 | CE46: 3667.332309 | CF46: 1.412340426
D47: 20 | E47: =MREZIST(X20) -> 1.044107595e-07 | F47: =cpmed(X20) -> 383.5052909 | G47: 8960 | H47: =lmed(X20) -> 400.6712771 | I47: 0.0001272345025 | J47: 8.206167154e-06 | K47: 4.372041397 | L47: 1.272345025e-06 | M47: =(AH47*AH46*(X20-E16)*I26^3)/AH45^2 -> 0 | N47: 0.36 | O47: 0.9644013323 | P47: 0.0002461850146 | Q47: 3668.475846 | R47: 0.3487260311 | AA47: r2 | AB47: =AB46+((0.009-0.008)/2)/10 -> 0.00405 | AC47: =AC46+0.00005 -> 0.0041 | AD47: =AD46+0.00005 -> 0.004075 | AG47: g [m/s2] | AH47: 9.81275 | AK47: 2 | AL47: =REZIST(AL22) -> 9.21467303e-07 | AM47: =CPOCEL(AL22) -> 553.3809311 | AN47: =ROOCEL(AL22) -> 7788.0825 | AO47: =LOCEL(AL22) -> 18.06177815 | AP47: 1.280199006e-06 | AQ47: =AL47*0.01/AP47 -> 0.007197844229 | AR47: 0.05517371395 | AS47: =AP47*0.01 -> 1.280199006e-08 | AU47: =1/(2*PI()*0.01)*((1/AO47)*LN(AC47/AD47)+(1/AO48)*LN(AC61/AD61)) -> 0.01074610694 | AV47: =$AM$59*$C$5 -> 0.0003069585261 | BA47: =REZIST(AW22) -> 9.21467303e-07 | BB47: =CPOCEL(AW22) -> 553.3809311 | BC47: =ROOCEL(AW22) -> 7788.0825 | BD47: =LOCEL(AW22) -> 18.06177815 | BE47: 1.280199006e-06 | BF47: =BA47*$C$12/BE47 -> 0.01279616752 | BG47: 0.09808660257 | BH47: 2.275909345e-08 | BI47: 768.8462205 | BJ47: 0.006044685153 | BK47: =$BF$56*$C$5 -> 0.03680779951 | BR47: 20 | BS47: =MREZIST(BZ20) -> 1.044107595e-07 | BT47: =cpmed(BZ20) -> 383.5052909 | BU47: 8960 | BV47: =lmed(BZ20) -> 400.6712771 | BW47: 3.141592654e-05 | BX47: 3.323497697e-05 | BY47: 1.079516394 | BZ47: 3.141592654e-07 | CA47: =($AH$47*$AH$46*(BZ20-$BG$16)*$BW$26^3)/$AH$45^2 -> 0 | CB47: 0.36 | CC47: 0.7890556355 | CD47: 0.0009970493092 | CE47: 3667.332309 | CF47: 1.412340426
D48: 21 | E48: =MREZIST(Y20) -> 1.044107595e-07 | F48: =cpmed(Y20) -> 383.5052909 | G48: 8960 | H48: =lmed(Y20) -> 400.6712771 | I48: 0.0001272345025 | J48: 8.206167154e-06 | K48: 4.372041397 | L48: 1.272345025e-06 | M48: =(AH47*AH46*(Y20-E16)*I26^3)/AH45^2 -> 0 | N48: 0.36 | O48: 0.9644013323 | P48: 0.0002461850146 | Q48: 3668.475846 | R48: 0.3487260311 | AA48: r3 | AB48: =AB47+((0.009-0.008)/2)/10 -> 0.0041 | AC48: =AC47+0.00005 -> 0.00415 | AD48: =AD47+0.00005 -> 0.004125 | AK48: 3 | AL48: =REZIST(AL24) -> 9.21467303e-07 | AM48: =CPOCEL(AL24) -> 553.3809311 | AN48: =ROOCEL(AL24) -> 7788.0825 | AO48: =LOCEL(AL24) -> 18.06177815 | AP48: 1.29590697e-06 | AQ48: 0.007110597633 | AR48: 0.05585069203 | AS48: 1.29590697e-08 | AU48: 0.01061663262 | AV48: 0.0003069585261 | BA48: =REZIST(AW24) -> 9.21467303e-07 | BB48: =CPOCEL(AW24) -> 553.3809311 | BC48: =ROOCEL(AW24) -> 7788.0825 | BD48: =LOCEL(AW24) -> 18.06177815 | BE48: 1.29590697e-06 | BF48: 0.01264106246 | BG48: 0.09929011917 | BH48: 2.303834613e-08 | BI48: 759.5268724 | BJ48: 0.005971855849 | BK48: 0.03680779951 | BR48: 21 | BS48: =MREZIST(CA20) -> 1.044107595e-07 | BT48: =cpmed(CA20) -> 383.5052909 | BU48: 8960 | BV48: =lmed(CA20) -> 400.6712771 | BW48: 3.141592654e-05 | BX48: 3.323497697e-05 | BY48: 1.079516394 | BZ48: 3.141592654e-07 | CA48: =($AH$47*$AH$46*(CA20-$BG$16)*$BW$26^3)/$AH$45^2 -> 0 | CB48: 0.36 | CC48: 0.7890556355 | CD48: 0.0009970493092 | CE48: 3667.332309 | CF48: 1.412340426
D49: 22 | E49: =MREZIST(Z20) -> 1.044107595e-07 | F49: =cpmed(Z20) -> 383.5052909 | G49: 8960 | H49: =lmed(Z20) -> 400.6712771 | I49: 0.0001272345025 | J49: 8.206167154e-06 | K49: 4.372041397 | L49: 1.272345025e-06 | M49: =(AH47*AH46*(Z20-E16)*I26^3)/AH45^2 -> 0 | N49: 0.36 | O49: 0.9644013323 | P49: 0.0002461850146 | Q49: 3668.475846 | R49: 0.3487260311 | AA49: r4 | AB49: 0.00415 | AC49: 0.0042 | AD49: 0.004175 | AG49: Záření | AK49: 4 | AL49: =REZIST(AL26) -> 9.21467303e-07 | AM49: =CPOCEL(AL26) -> 553.3809311 | AN49: =ROOCEL(AL26) -> 7788.0825 | AO49: =LOCEL(AL26) -> 18.06177815 | AP49: 1.311614933e-06 | AQ49: 0.007025440775 | AR49: 0.05652767012 | AS49: 1.311614933e-08 | AU49: 0.01049024113 | AV49: 0.0003069585261 | BA49: =REZIST(AW26) -> 9.21467303e-07 | BB49: =CPOCEL(AW26) -> 553.3809311 | BC49: =ROOCEL(AW26) -> 7788.0825 | BD49: =LOCEL(AW26) -> 18.06177815 | BE49: 1.311614933e-06 | BF49: 0.01248967249 | BG49: 0.1004936358 | BH49: 2.331759881e-08 | BI49: 750.4307422 | BJ49: 0.005900760637 | BK49: 0.03680779951 | BR49: 22 | BS49: =MREZIST(CB20) -> 1.044107595e-07 | BT49: =cpmed(CB20) -> 383.5052909 | BU49: 8960 | BV49: =lmed(CB20) -> 400.6712771 | BW49: 3.141592654e-05 | BX49: 3.323497697e-05 | BY49: 1.079516394 | BZ49: 3.141592654e-07 | CA49: =($AH$47*$AH$46*(CB20-$BG$16)*$BW$26^3)/$AH$45^2 -> 0 | CB49: 0.36 | CC49: 0.7890556355 | CD49: 0.0009970493092 | CE49: 3667.332309 | CF49: 1.412340426
D50: 23 | E50: =MREZIST(AA20) -> 1.044107595e-07 | F50: =cpmed(AA20) -> 383.5052909 | G50: 8960 | H50: =lmed(AA20) -> 400.6712771 | I50: 0.0001272345025 | J50: 8.206167154e-06 | K50: 4.372041397 | L50: 1.272345025e-06 | M50: =(AH47*AH46*(AA20-E16)*I26^3)/AH45^2 -> 0 | N50: 0.36 | O50: 0.9644013323 | P50: 0.0002461850146 | Q50: 3668.475846 | R50: 0.3487260311 | AA50: r5 | AB50: 0.0042 | AC50: 0.00425 | AD50: 0.004225 | AG50: σ | AH50: =5.664*10^-8 -> 5.664e-08 | AK50: 5 | AL50: =REZIST(AL28) -> 9.21467303e-07 | AM50: =CPOCEL(AL28) -> 553.3809311 | AN50: =ROOCEL(AL28) -> 7788.0825 | AO50: =LOCEL(AL28) -> 18.06177815 | AP50: 1.327322896e-06 | AQ50: 0.006942299464 | AR50: 0.0572046482 | AS50: 1.327322896e-08 | AU50: 0.01036682367 | AV50: 0.0003069585261 | BA50: =REZIST(AW28) -> 9.21467303e-07 | BB50: =CPOCEL(AW28) -> 553.3809311 | BC50: =ROOCEL(AW28) -> 7788.0825 | BD50: =LOCEL(AW28) -> 18.06177815 | BE50: 1.327322896e-06 | BF50: 0.01234186571 | BG50: 0.1016971524 | BH50: 2.359685149e-08 | BI50: 741.549905 | BJ50: 0.005831338313 | BK50: 0.03680779951 | BR50: 23 | BS50: =MREZIST(CC20) -> 1.044107595e-07 | BT50: =cpmed(CC20) -> 383.5052909 | BU50: 8960 | BV50: =lmed(CC20) -> 400.6712771 | BW50: 3.141592654e-05 | BX50: 3.323497697e-05 | BY50: 1.079516394 | BZ50: 3.141592654e-07 | CA50: =($AH$47*$AH$46*(CC20-$BG$16)*$BW$26^3)/$AH$45^2 -> 0 | CB50: 0.36 | CC50: 0.7890556355 | CD50: 0.0009970493092 | CE50: 3667.332309 | CF50: 1.412340426
D51: 24 | E51: =MREZIST(AB20) -> 1.044107595e-07 | F51: =cpmed(AB20) -> 383.5052909 | G51: 8960 | H51: =lmed(AB20) -> 400.6712771 | I51: 0.0001272345025 | J51: 8.206167154e-06 | K51: 4.372041397 | L51: 1.272345025e-06 | M51: =(AH47*AH46*(AB20-E16)*I26^3)/AH45^2 -> 0 | N51: 0.36 | O51: 0.9644013323 | P51: 0.0002461850146 | Q51: 3668.475846 | R51: 0.3487260311 | AA51: r6 | AB51: 0.00425 | AC51: 0.0043 | AD51: 0.004275 | AG51: εFe | AH51: 0.37 | AK51: 6 | AL51: =REZIST(AL30) -> 9.21467303e-07 | AM51: =CPOCEL(AL30) -> 553.3809311 | AN51: =ROOCEL(AL30) -> 7788.0825 | AO51: =LOCEL(AL30) -> 18.06177815 | AP51: 1.343030859e-06 | AQ51: 0.006861102979 | AR51: 0.05788162629 | AS51: 1.343030859e-08 | AU51: 0.01024627647 | AV51: 0.0003069585261 | BA51: =REZIST(AW30) -> 9.21467303e-07 | BB51: =CPOCEL(AW30) -> 553.3809311 | BC51: =ROOCEL(AW30) -> 7788.0825 | BD51: =LOCEL(AW30) -> 18.06177815 | BE51: 1.343030859e-06 | BF51: 0.01219751641 | BG51: 0.102900669 | BH51: 2.387610417e-08 | BI51: 732.8768067 | BJ51: 0.005763530516 | BK51: 0.03680779951 | BR51: 24 | BS51: =MREZIST(CD20) -> 1.044107595e-07 | BT51: =cpmed(CAD20) -> 380.3087967 | BU51: 8960 | BV51: =lmed(CD20) -> 400.6712771 | BW51: 3.141592654e-05 | BX51: 3.323497697e-05 | BY51: 1.070518688 | BZ51: 3.141592654e-07 | CA51: =($AH$47*$AH$46*(CD20-$BG$16)*$BW$26^3)/$AH$45^2 -> 0 | CB51: 0.36 | CC51: 0.7890556355 | CD51: 0.0009970493092 | CE51: 3667.332309 | CF51: 1.412340426
D52: 25 | E52: =MREZIST(AC20) -> 1.044107595e-07 | F52: =cpmed(AC20) -> 383.5052909 | G52: 8960 | H52: =lmed(AC20) -> 400.6712771 | I52: 0.0001272345025 | J52: 8.206167154e-06 | K52: 4.372041397 | L52: 1.272345025e-06 | M52: =(AH47*AH46*(AC20-E16)*I26^3)/AH45^2 -> 0 | N52: 0.36 | O52: 0.9644013323 | P52: 0.0002461850146 | Q52: 3668.475846 | R52: 0.3487260311 | AA52: r7 | AB52: 0.0043 | AC52: 0.00435 | AD52: 0.004325 | AG52: εCu | AH52: 0.07 | AK52: 7 | AL52: =REZIST(AL32) -> 9.21467303e-07 | AM52: =CPOCEL(AL32) -> 553.3809311 | AN52: =ROOCEL(AL32) -> 7788.0825 | AO52: =LOCEL(AL32) -> 18.06177815 | AP52: 1.358738823e-06 | AQ52: 0.006781783869 | AR52: 0.05855860437 | AS52: 1.358738823e-08 | AU52: 0.01012850057 | AV52: 0.0003069585261 | BA52: =REZIST(AW32) -> 9.21467303e-07 | BB52: =CPOCEL(AW32) -> 553.3809311 | BC52: =ROOCEL(AW32) -> 7788.0825 | BD52: =LOCEL(AW32) -> 18.06177815 | BE52: 1.358738823e-06 | BF52: 0.01205650466 | BG52: 0.1041041856 | BH52: 2.415535685e-08 | BI52: 724.4042425 | BJ52: 0.005697281572 | BK52: 0.03680779951 | BR52: 25 | BS52: =MREZIST(CE20) -> 1.044107595e-07 | BT52: =cpmed(CE20) -> 383.5052909 | BU52: 8960 | BV52: =lmed(CE20) -> 400.6712771 | BW52: 3.141592654e-05 | BX52: 3.323497697e-05 | BY52: 1.079516394 | BZ52: 3.141592654e-07 | CA52: =($AH$47*$AH$46*(CE20-$BG$16)*$BW$26^3)/$AH$45^2 -> 0 | CB52: 0.36 | CC52: 0.7890556355 | CD52: 0.0009970493092 | CE52: 3667.332309 | CF52: 1.412340426
D53: 26 | E53: =MREZIST(AD20) -> 1.044107595e-07 | F53: =cpmed(AD20) -> 383.5052909 | G53: 8960 | H53: =lmed(AD20) -> 400.6712771 | I53: 0.0001272345025 | J53: 8.206167154e-06 | K53: 4.372041397 | L53: 1.272345025e-06 | M53: =(AH47*AH46*(AD20-E16)*I26^3)/AH45^2 -> 0 | N53: 0.36 | O53: 0.9644013323 | P53: 0.0002461850146 | Q53: 3668.475846 | R53: 0.3487260311 | AA53: r8 | AB53: 0.00435 | AC53: 0.0044 | AD53: 0.004375 | AK53: 8 | AL53: =REZIST(AL34) -> 9.21467303e-07 | AM53: =CPOCEL(AL34) -> 553.3809311 | AN53: =ROOCEL(AL34) -> 7788.0825 | AO53: =LOCEL(AL34) -> 18.06177815 | AP53: 1.374446786e-06 | AQ53: 0.006704277768 | AR53: 0.05923558246 | AS53: 1.374446786e-08 | AU53: 0.01001340148 | AV53: 0.0003069585261 | BA53: =REZIST(AW34) -> 9.21467303e-07 | BB53: =CPOCEL(AW34) -> 553.3809311 | BC53: =ROOCEL(AW34) -> 7788.0825 | BD53: =LOCEL(AW34) -> 18.06177815 | BE53: 1.374446786e-06 | BF53: 0.01191871603 | BG53: 0.1053077021 | BH53: 2.443460953e-08 | BI53: 716.1253368 | BJ53: 0.005632538334 | BK53: 0.03680779951 | BR53: 26 | BS53: =MREZIST(CF20) -> 1.044107595e-07 | BT53: =cpmed(CF20) -> 383.5052909 | BU53: 8960 | BV53: =lmed(CF20) -> 400.6712771 | BW53: 3.141592654e-05 | BX53: 3.323497697e-05 | BY53: 1.079516394 | BZ53: 3.141592654e-07 | CA53: =($AH$47*$AH$46*(CF20-$BG$16)*$BW$26^3)/$AH$45^2 -> 0 | CB53: 0.36 | CC53: 0.7890556355 | CD53: 0.0009970493092 | CE53: 3667.332309 | CF53: 1.412340426
D54: 27 | E54: =MREZIST(AE20) -> 1.044107595e-07 | F54: =cpmed(AE20) -> 383.5052909 | G54: 8960 | H54: =lmed(AE20) -> 400.6712771 | I54: 0.0001272345025 | J54: 8.206167154e-06 | K54: 4.372041397 | L54: 1.272345025e-06 | M54: =(AH47*AH46*(AE20-E16)*I26^3)/AH45^2 -> 0 | N54: 0.36 | O54: 0.9644013323 | P54: 0.0002461850146 | Q54: 3668.475846 | R54: 0.3487260311 | AA54: r9 | AB54: 0.0044 | AC54: 0.00445 | AD54: 0.004425 | AK54: 9 | AL54: =REZIST(AL36) -> 9.21467303e-07 | AM54: =CPOCEL(AL36) -> 553.3809311 | AN54: =ROOCEL(AL36) -> 7788.0825 | AO54: =LOCEL(AL36) -> 18.06177815 | AP54: 1.390154749e-06 | AQ54: 0.006628523217 | AR54: 0.05991256054 | AS54: 1.390154749e-08 | AU54: 0.009900888973 | AV54: 0.0003069585261 | BA54: =REZIST(AW36) -> 9.21467303e-07 | BB54: =CPOCEL(AW36) -> 553.3809311 | BC54: =ROOCEL(AW36) -> 7788.0825 | BD54: =LOCEL(AW36) -> 18.06177815 | BE54: 1.390154749e-06 | BF54: 0.01178404127 | BG54: 0.1065112187 | BH54: 2.471386221e-08 | BI54: 708.0335251 | BJ54: 0.005569250048 | BK54: 0.03680779951 | BR54: 27 | BS54: =MREZIST(CG20) -> 1.044107595e-07 | BT54: =cpmed(CG20) -> 383.5052909 | BU54: 8960 | BV54: =lmed(CG20) -> 400.6712771 | BW54: 3.141592654e-05 | BX54: 3.323497697e-05 | BY54: 1.079516394 | BZ54: 3.141592654e-07 | CA54: =($AH$47*$AH$46*(CG20-$BG$16)*$BW$26^3)/$AH$45^2 -> 0 | CB54: 0.36 | CC54: 0.7890556355 | CD54: 0.0009970493092 | CE54: 3667.332309 | CF54: 1.412340426
D55: 28 | E55: =MREZIST(AF20) -> 1.044107595e-07 | F55: =cpmed(AF20) -> 383.5052909 | G55: 8960 | H55: =lmed(AF20) -> 400.6712771 | I55: 0.0001272345025 | J55: 8.206167154e-06 | K55: 4.372041397 | L55: 1.272345025e-06 | M55: =(AH47*AH46*(AF20-E16)*I26^3)/AH45^2 -> 0 | N55: 0.36 | O55: 0.9644013323 | P55: 0.0002461850146 | Q55: 3668.475846 | R55: 0.3487260311 | AA55: r10 | AB55: 0.00445 | AK55: 10 | AL55: =REZIST(AL38) -> 9.21467303e-07 | AM55: =CPOCEL(AL38) -> 553.3809311 | AN55: =ROOCEL(AL38) -> 7788.0825 | AO55: =LOCEL(AL38) -> 18.06177815 | AP55: 1.405862712e-06 | AQ55: 0.006554461505 | AR55: 0.06058953863 | AS55: 1.405862712e-08 | AU55: =1/(AL43*AH41)+1/(2*PI()*0.01)*(1/AO55)*LN(0.0045/0.004475) -> 2062.877203 | AV55: 0.0003069585261 | BA55: =REZIST(AW38) -> 9.21467303e-07 | BB55: =CPOCEL(AW38) -> 553.3809311 | BC55: =ROOCEL(AW38) -> 7788.0825 | BD55: =LOCEL(AW38) -> 18.06177815 | BE55: 1.405862712e-06 | BF55: 0.01165237601 | BG55: 0.1077147353 | BH55: 2.499311489e-08 | BI55: 700.122536 | BJ55: =1/(AW43*AH41)+1/(2*PI()*$C$12)*(1/BD55)*LN(0.0045/0.004475) -> 2062.875055 | BK55: 0.03680779951 | BR55: 28 | BS55: =MREZIST(CH20) -> 1.044107595e-07 | BT55: =cpmed(CH20) -> 383.5052909 | BU55: 8960 | BV55: =lmed(CH20) -> 400.6712771 | BW55: 3.141592654e-05 | BX55: 3.323497697e-05 | BY55: 1.079516394 | BZ55: 3.141592654e-07 | CA55: =($AH$47*$AH$46*(CH20-$BG$16)*$BW$26^3)/$AH$45^2 -> 0 | CB55: 0.36 | CC55: 0.7890556355 | CD55: 0.0009970493092 | CE55: 3667.332309 | CF55: 1.412340426
D56: 29 | E56: =MREZIST(AG20) -> 1.044107595e-07 | F56: =cpmed(AG20) -> 383.5052909 | G56: 8960 | H56: =lmed(AG20) -> 400.6712771 | I56: 0.0001272345025 | J56: 8.206167154e-06 | K56: 4.372041397 | L56: 1.272345025e-06 | M56: =(AH47*AH46*(AG20-E16)*I26^3)/AH45^2 -> 0 | N56: 0.36 | O56: 0.9644013323 | P56: 0.0002461850146 | Q56: 3668.475846 | R56: 0.3487260311 | AA56: r11 | AB56: 0.0045 | AP56: ΣR | AQ56: =1/(1/AQ46+1/AQ47+1/AQ48+1/AQ49+1/AQ50+1/AQ51+1/AQ52+1/AQ53+1/AQ54+1/AQ55) -> 0.0006901462408 | BE56: ΣR | BF56: =1/(1/BF46+1/BF47+1/BF48+1/BF49+1/BF50+1/BF51+1/BF52+1/BF53+1/BF54+1/BF55) -> 0.00122692665 | BR56: 29 | BS56: =MREZIST(CI20) -> 1.044107595e-07 | BT56: =cpmed(CI20) -> 383.5052909 | BU56: 8960 | BV56: =lmed(CI20) -> 400.6712771 | BW56: 3.141592654e-05 | BX56: 3.323497697e-05 | BY56: 1.079516394 | BZ56: 3.141592654e-07 | CA56: =($AH$47*$AH$46*(CI20-$BG$16)*$BW$26^3)/$AH$45^2 -> 0 | CB56: 0.36 | CC56: 0.7890556355 | CD56: 0.0009970493092 | CE56: 3667.332309 | CF56: 1.412340426
D57: 30 | E57: =MREZIST(AH20) -> 1.044107595e-07 | F57: =cpmed(AH20) -> 383.5052909 | G57: 8960 | H57: =lmed(AH20) -> 400.6712771 | I57: 0.0001272345025 | J57: 8.206167154e-06 | K57: 4.372041397 | L57: 1.272345025e-06 | M57: =(AH47*AH46*(AH20-E16)*I26^3)/AH45^2 -> 0 | N57: 0.36 | O57: 0.9644013323 | P57: 0.0002461850146 | Q57: 3668.475846 | R57: =(($C$12/2)/(H57*I58))+(($C$12/2)/(H58*I58)) -> 0.4413563831 | AP57: U | AQ57: =AQ56*$C$17 -> 0.0005092612713 | BE57: U | BF57: =$C$17*BF56 -> 0.0009053533712 | BR57: 30 | BS57: =MREZIST(CJ20) -> 1.044107595e-07 | BT57: =cpmed(CJ20) -> 383.5052909 | BU57: 8960 | BV57: =lmed(CJ20) -> 400.6712771 | BW57: 3.141592654e-05 | BX57: 3.323497697e-05 | BY57: 1.079516394 | BZ57: 3.141592654e-07 | CA57: =($AH$47*$AH$46*(CJ20-$BG$16)*$BW$26^3)/$AH$45^2 -> 0 | CB57: 0.36 | CC57: 0.7890556355 | CD57: 0.0009970493092 | CE57: 3667.332309 | CF57: 1.412340426
D58: 31 | E58: =MREZIST(AI20) -> 1.044107595e-07 | F58: =cpmed(AI20) -> 383.5052909 | G58: 8960 | H58: =lmed(AI20) -> 400.6712771 | I58: =(2*PI()*0.008^2)/4 -> 0.0001005309649 | J58: 1.03859303e-05 | K58: 3.454452462 | L58: 1.005309649e-06 | M58: =(AH47*AH46*(AI20-E16)*I26^3)/AH45^2 -> 0 | N58: 0.36 | O58: 0.9644013323 | P58: 0.0003115779091 | Q58: 3668.475846 | AL58: První dílek makety | BR58: 31 | BS58: =MREZIST(CK20) -> 1.044107595e-07 | BT58: =cpmed(CK20) -> 383.5052909 | BU58: 8960 | BV58: =lmed(CK20) -> 400.6712771 | BW58: 3.141592654e-05 | BX58: 3.323497697e-05 | BY58: 1.079516394 | BZ58: 3.141592654e-07 | CA58: =($AH$47*$AH$46*(CK20-$BG$16)*$BW$26^3)/$AH$45^2 -> 0 | CB58: 0.36 | CC58: 0.7890556355 | CD58: 0.0009970493092 | CE58: 3667.332309
AK59: ΣR | AL59: ΣR | AM59: =1/(1/AQ56+1/J58) -> 1.023195087e-05
AC60: 0.004075 | AD60: 0.00405 | AL60: U | AM60: =AM59*C5 -> 0.0003069585261
AC61: =AC60+0.00005 -> 0.004125 | AD61: =AD60+0.00005 -> 0.0041
AC62: =AC61+0.00005 -> 0.004175 | AD62: =AD61+0.00005 -> 0.00415
AC63: 0.004225 | AD63: 0.0042
AC64: 0.004275 | AD64: 0.00425 | AI64: 2 | AK64: =SUM(AQ46:AQ55) -> 0.06909358988 | AL64: ρ ocel [Ωm] | AM64: Cp ocel [J/kg*K] | AN64: ρ ocel [kg/m3] | AO64: λ ocel [W/m*k] | AP64: S [m2] | AQ64: R ocel [Ω] | AR64: C [J/K] | AS64: V [m3] | AT64: Rslozene dilky L | AU64: Rslozene vrstvy | AV64: U [V] | AZ64: 13 | BA64: ρ ocel [Ωm] | BB64: Cp ocel [J/kg*K] | BC64: ρ ocel [kg/m3] | BD64: λ ocel [W/m*k] | BE64: S [m2] | BF64: R ocel [Ω] | BG64: C [J/K] | BH64: V [m3] | BI64: Rslozene dilky P | BJ64: Rslozene vrstvy | BK64: U [V]
AC65: 0.004325 | AD65: 0.0043 | AL65: =REZIST(AM20) -> 9.21467303e-07 | AM65: =CPOCEL(AM20) -> 553.3809311 | AN65: =ROOCEL(AM20) -> 7788.0825 | AO65: =LOCEL(AM20) -> 18.06177815 | AP65: =(PI()*AB47^2-PI()*AB46^2) -> 1.264491043e-06 | AQ65: =AL65*$C$12/AP65 -> 0.01295512612 | AR65: =AS65*AN65*AM65 -> 0.09688308598 | AS65: =AP65*$C$12 -> 2.247984077e-08 | AT65: =(($C$12/2)/(AO65*AP65))+((0.01/2)/(AO46*AP46)) -> 608.1227385 | AU65: =(1/(2*PI()*$C$12))*(1/AO65)*LN(AC46/AD46)+(1/(2*PI()*$C$12))*(1/AO66)*LN(AC60/AD60) -> 0.00611931278 | AV65: =$AQ$75*$C$5 -> 0.03680779951 | BA65: =REZIST(AX20) -> 9.21467303e-07 | BB65: =CPOCEL(AX20) -> 553.3809311 | BC65: =ROOCEL(AX20) -> 7788.0825 | BD65: =LOCEL(AX20) -> 18.06177815 | BE65: =(PI()*AB47^2-PI()*AB46^2) -> 1.264491043e-06 | BF65: =BA65*$C$12/BE65 -> 0.01295512612 | BG65: =BH65*BC65*BB65 -> 0.09688308598 | BH65: =BE65*$C$12 -> 2.247984077e-08 | BI65: =(($C$12/2)/(BD65*BE65))+(($C$12/2)/(BD78*BE78)) -> 778.3971053 | BJ65: =1/(2*PI()*$C$12)*(1/BD65)*LN(AC46/AD46)+1/(2*PI()*$C$12)*(1/BD66)*LN(AC60/AD60) -> 0.00611931278 | BK65: =$BF$75*$C$5 -> 0.03680779951
AC66: 0.004375 | AD66: 0.00435 | AL66: =REZIST(AM22) -> 9.21467303e-07 | AM66: =CPOCEL(AM22) -> 553.3809311 | AN66: =ROOCEL(AM22) -> 7788.0825 | AO66: =LOCEL(AM22) -> 18.06177815 | AP66: 1.280199006e-06 | AQ66: =AL66*$C$12/AP66 -> 0.01279616752 | AR66: 0.09808660257 | AS66: 2.275909345e-08 | AT66: =(($C$12/2)/(AO66*AP66))+((0.01/2)/(AO47*AP47)) -> 600.6611098 | AU66: 0.006044685153 | AV66: =$AQ$75*$C$5 -> 0.03680779951 | BA66: =REZIST(AX22) -> 9.21467303e-07 | BB66: =CPOCEL(AX22) -> 553.3809311 | BC66: =ROOCEL(AX22) -> 7788.0825 | BD66: =LOCEL(AX22) -> 18.06177815 | BE66: 1.280199006e-06 | BF66: =BA66*$C$12/BE66 -> 0.01279616752 | BG66: 0.09808660257 | BH66: 2.275909345e-08 | BI66: 768.8462205 | BJ66: 0.006044685153 | BK66: =$BF$75*$C$5 -> 0.03680779951
AC67: 0.004425 | AD67: 0.0044 | AL67: =REZIST(AM24) -> 9.21467303e-07 | AM67: =CPOCEL(AM24) -> 553.3809311 | AN67: =ROOCEL(AM24) -> 7788.0825 | AO67: =LOCEL(AM24) -> 18.06177815 | AP67: 1.29590697e-06 | AQ67: 0.01264106246 | AR67: 0.09929011917 | AS67: 2.303834613e-08 | AT67: 593.3803691 | AU67: 0.005971855849 | AV67: 0.03680779951 | BA67: =REZIST(AX24) -> 9.21467303e-07 | BB67: =CPOCEL(AX24) -> 553.3809311 | BC67: =ROOCEL(AX24) -> 7788.0825 | BD67: =LOCEL(AX24) -> 18.06177815 | BE67: 1.29590697e-06 | BF67: 0.01264106246 | BG67: 0.09929011917 | BH67: 2.303834613e-08 | BI67: 759.5268724 | BJ67: 0.005971855849 | BK67: 0.03680779951
AC68: 0.004475 | AD68: 0.00445 | AL68: =REZIST(AM26) -> 9.21467303e-07 | AM68: =CPOCEL(AM26) -> 553.3809311 | AN68: =ROOCEL(AM26) -> 7788.0825 | AO68: =LOCEL(AM26) -> 18.06177815 | AP68: 1.311614933e-06 | AQ68: 0.01248967249 | AR68: 0.1004936358 | AS68: 2.331759881e-08 | AT68: 586.2740173 | AU68: 0.005900760637 | AV68: 0.03680779951 | BA68: =REZIST(AX26) -> 9.21467303e-07 | BB68: =CPOCEL(AX26) -> 553.3809311 | BC68: =ROOCEL(AX26) -> 7788.0825 | BD68: =LOCEL(AX26) -> 18.06177815 | BE68: 1.311614933e-06 | BF68: 0.01248967249 | BG68: 0.1004936358 | BH68: 2.331759881e-08 | BI68: 750.4307422 | BJ68: 0.005900760637 | BK68: 0.03680779951
AL69: =REZIST(AM28) -> 9.21467303e-07 | AM69: =CPOCEL(AM28) -> 553.3809311 | AN69: =ROOCEL(AM28) -> 7788.0825 | AO69: =LOCEL(AM28) -> 18.06177815 | AP69: 1.327322896e-06 | AQ69: 0.01234186571 | AR69: 0.1016971524 | AS69: 2.359685149e-08 | AT69: 579.3358633 | AU69: 0.005831338313 | AV69: 0.03680779951 | BA69: =REZIST(AX28) -> 9.21467303e-07 | BB69: =CPOCEL(AX28) -> 553.3809311 | BC69: =ROOCEL(AX28) -> 7788.0825 | BD69: =LOCEL(AX28) -> 18.06177815 | BE69: 1.327322896e-06 | BF69: 0.01234186571 | BG69: 0.1016971524 | BH69: 2.359685149e-08 | BI69: 741.549905 | BJ69: 0.005831338313 | BK69: 0.03680779951
AL70: =REZIST(AM30) -> 9.21467303e-07 | AM70: =CPOCEL(AM30) -> 553.3809311 | AN70: =ROOCEL(AM30) -> 7788.0825 | AO70: =LOCEL(AM30) -> 18.06177815 | AP70: 1.343030859e-06 | AQ70: 0.01219751641 | AR70: 0.102900669 | AS70: 2.387610417e-08 | AT70: 572.5600052 | AU70: 0.005763530516 | AV70: 0.03680779951 | BA70: =REZIST(AX30) -> 9.21467303e-07 | BB70: =CPOCEL(AX30) -> 553.3809311 | BC70: =ROOCEL(AX30) -> 7788.0825 | BD70: =LOCEL(AX30) -> 18.06177815 | BE70: 1.343030859e-06 | BF70: 0.01219751641 | BG70: 0.102900669 | BH70: 2.387610417e-08 | BI70: 732.8768067 | BJ70: 0.005763530516 | BK70: 0.03680779951
AL71: =REZIST(AM32) -> 9.21467303e-07 | AM71: =CPOCEL(AM32) -> 553.3809311 | AN71: =ROOCEL(AM32) -> 7788.0825 | AO71: =LOCEL(AM32) -> 18.06177815 | AP71: 1.358738823e-06 | AQ71: 0.01205650466 | AR71: 0.1041041856 | AS71: 2.415535685e-08 | AT71: 565.9408144 | AU71: 0.005697281572 | AV71: 0.03680779951 | BA71: =REZIST(AX32) -> 9.21467303e-07 | BB71: =CPOCEL(AX32) -> 553.3809311 | BC71: =ROOCEL(AX32) -> 7788.0825 | BD71: =LOCEL(AX32) -> 18.06177815 | BE71: 1.358738823e-06 | BF71: 0.01205650466 | BG71: 0.1041041856 | BH71: 2.415535685e-08 | BI71: 724.4042425 | BJ71: 0.005697281572 | BK71: 0.03680779951
AL72: =REZIST(AM34) -> 9.21467303e-07 | AM72: =CPOCEL(AM34) -> 553.3809311 | AN72: =ROOCEL(AM34) -> 7788.0825 | AO72: =LOCEL(AM34) -> 18.06177815 | AP72: 1.374446786e-06 | AQ72: 0.01191871603 | AR72: 0.1053077021 | AS72: 2.443460953e-08 | AT72: 559.4729194 | AU72: 0.005632538334 | AV72: 0.03680779951 | BA72: =REZIST(AX34) -> 9.21467303e-07 | BB72: =CPOCEL(AX34) -> 553.3809311 | BC72: =ROOCEL(AX34) -> 7788.0825 | BD72: =LOCEL(AX34) -> 18.06177815 | BE72: 1.374446786e-06 | BF72: 0.01191871603 | BG72: 0.1053077021 | BH72: 2.443460953e-08 | BI72: 716.1253368 | BJ72: 0.005632538334 | BK72: 0.03680779951
AL73: =REZIST(AM36) -> 9.21467303e-07 | AM73: =CPOCEL(AM36) -> 553.3809311 | AN73: =ROOCEL(AM36) -> 7788.0825 | AO73: =LOCEL(AM36) -> 18.06177815 | AP73: 1.390154749e-06 | AQ73: 0.01178404127 | AR73: 0.1065112187 | AS73: 2.471386221e-08 | AT73: 553.1511915 | AU73: 0.005569250048 | AV73: 0.03680779951 | BA73: =REZIST(AX36) -> 9.21467303e-07 | BB73: =CPOCEL(AX36) -> 553.3809311 | BC73: =ROOCEL(AX36) -> 7788.0825 | BD73: =LOCEL(AX36) -> 18.06177815 | BE73: 1.390154749e-06 | BF73: 0.01178404127 | BG73: 0.1065112187 | BH73: 2.471386221e-08 | BI73: 708.0335251 | BJ73: 0.005569250048 | BK73: 0.03680779951
AL74: =REZIST(AM38) -> 9.21467303e-07 | AM74: =CPOCEL(AM38) -> 553.3809311 | AN74: =ROOCEL(AM38) -> 7788.0825 | AO74: =LOCEL(AM38) -> 18.06177815 | AP74: 1.405862712e-06 | AQ74: 0.01165237601 | AR74: 0.1077147353 | AS74: 2.499311489e-08 | AT74: 546.9707313 | AU74: =1/(AM43*AH41)+1/(2*PI()*$C$12)*(1/AO74)*LN(0.0045/0.004475) -> 2062.875055 | AV74: 0.03680779951 | BA74: =REZIST(AX38) -> 9.21467303e-07 | BB74: =CPOCEL(AX38) -> 553.3809311 | BC74: =ROOCEL(AX38) -> 7788.0825 | BD74: =LOCEL(AX38) -> 18.06177815 | BE74: 1.405862712e-06 | BF74: 0.01165237601 | BG74: 0.1077147353 | BH74: 2.499311489e-08 | BI74: 700.122536 | BJ74: =1/(AX43*AH41)+1/(2*PI()*$C$12)*(1/BD74)*LN(0.0045/0.004475) -> 2062.875055 | BK74: 0.03680779951
AP75: ΣR | AQ75: =1/(1/AQ65+1/AQ66+1/AQ67+1/AQ68+1/AQ69+1/AQ70+1/AQ71+1/AQ72+1/AQ73+1/AQ74) -> 0.00122692665 | BE75: ΣR | BF75: =1/(1/BF65+1/BF66+1/BF67+1/BF68+1/BF69+1/BF70+1/BF71+1/BF72+1/BF73+1/BF74) -> 0.00122692665
AP76: U | AQ76: =$C$17*AQ75 -> 0.0009053533712 | BE76: U | BF76: =$C$17*BF75 -> 0.0009053533712
AI77: 3 | AL77: ρ ocel [Ωm] | AM77: Cp ocel [J/kg*K] | AN77: ρ ocel [kg/m3] | AO77: λ ocel [W/m*k] | AP77: S [m2] | AQ77: R ocel [Ω] | AR77: C [J/K] | AS77: V [m3] | AT77: Rslozene dilky L | AU77: Rslozene vrstvy | AV77: U [V] | AZ77: 14 | BA77: ρ ocel [Ωm] | BB77: Cp ocel [J/kg*K] | BC77: ρ ocel [kg/m3] | BD77: λ ocel [W/m*k] | BE77: S [m2] | BF77: R ocel [Ω] | BG77: C [J/K] | BH77: V [m3] | BI77: Rslozene dilky P | BJ77: Rslozene vrstvy | BK77: U [V]
AL78: =REZIST(AN20) -> 9.21467303e-07 | AM78: =CPOCEL(AN20) -> 553.3809311 | AN78: =ROOCEL(AN20) -> 7788.0825 | AO78: =LOCEL(AN20) -> 18.06177815 | AP78: =(PI()*AB47^2-PI()*AB46^2) -> 1.264491043e-06 | AQ78: =AL78*$C$12/AP78 -> 0.01295512612 | AR78: =AS78*AN78*AM78 -> 0.09688308598 | AS78: =AP78*$C$12 -> 2.247984077e-08 | AT78: =(($C$12/2)/(AO78*AP78))+(($C$12/2)/(AO65*AP65)) -> 778.3971053 | AU78: =1/(2*PI()*$C$12)*(1/AO78)*LN(AC46/AD46)+1/(2*PI()*$C$12)*(1/AO79)*LN(AC60/AD60) -> 0.00611931278 | AV78: =$AQ$88*$C$5 -> 0.03680779951 | BA78: =REZIST(AY20) -> 9.21467303e-07 | BB78: =CPOCEL(AY20) -> 553.3809311 | BC78: =ROOCEL(AY20) -> 7788.0825 | BD78: =LOCEL(AY20) -> 18.06177815 | BE78: =(PI()*AB47^2-PI()*AB46^2) -> 1.264491043e-06 | BF78: =BA78*$C$12/BE78 -> 0.01295512612 | BG78: =BH78*BC78*BB78 -> 0.09688308598 | BH78: =BE78*$C$12 -> 2.247984077e-08 | BI78: =(($C$12/2)/(BD78*BE78))+(($C$12/2)/(BD91*BE91)) -> 778.3971053 | BJ78: =1/(2*PI()*$C$12)*(1/BD78)*LN(AC46/AD46)+1/(2*PI()*$C$12)*(1/BD79)*LN(AC60/AD60) -> 0.00611931278 | BK78: =$BF$88*$C$5 -> 0.03680779951
AL79: =REZIST(AN22) -> 9.21467303e-07 | AM79: =CPOCEL(AN22) -> 553.3809311 | AN79: =ROOCEL(AN22) -> 7788.0825 | AO79: =LOCEL(AN22) -> 18.06177815 | AP79: 1.280199006e-06 | AQ79: =AL79*$C$12/AP79 -> 0.01279616752 | AR79: 0.09808660257 | AS79: 2.275909345e-08 | AT79: 768.8462205 | AU79: 0.006044685153 | AV79: =$AQ$88*$C$5 -> 0.03680779951 | BA79: =REZIST(AY22) -> 9.21467303e-07 | BB79: =CPOCEL(AY22) -> 553.3809311 | BC79: =ROOCEL(AY22) -> 7788.0825 | BD79: =LOCEL(AY22) -> 18.06177815 | BE79: 1.280199006e-06 | BF79: =BA79*$C$12/BE79 -> 0.01279616752 | BG79: 0.09808660257 | BH79: 2.275909345e-08 | BI79: 768.8462205 | BJ79: 0.006044685153 | BK79: =$BF$88*$C$5 -> 0.03680779951
AL80: =REZIST(AN24) -> 9.21467303e-07 | AM80: =CPOCEL(AN24) -> 553.3809311 | AN80: =ROOCEL(AN24) -> 7788.0825 | AO80: =LOCEL(AN24) -> 18.06177815 | AP80: 1.29590697e-06 | AQ80: 0.01264106246 | AR80: 0.09929011917 | AS80: 2.303834613e-08 | AT80: 759.5268724 | AU80: 0.005971855849 | AV80: 0.03680779951 | BA80: =REZIST(AY24) -> 9.21467303e-07 | BB80: =CPOCEL(AY24) -> 553.3809311 | BC80: =ROOCEL(AY24) -> 7788.0825 | BD80: =LOCEL(AY24) -> 18.06177815 | BE80: 1.29590697e-06 | BF80: 0.01264106246 | BG80: 0.09929011917 | BH80: 2.303834613e-08 | BI80: 759.5268724 | BJ80: 0.005971855849 | BK80: 0.03680779951
AL81: =REZIST(AN26) -> 9.21467303e-07 | AM81: =CPOCEL(AN26) -> 553.3809311 | AN81: =ROOCEL(AN26) -> 7788.0825 | AO81: =LOCEL(AN26) -> 18.06177815 | AP81: 1.311614933e-06 | AQ81: 0.01248967249 | AR81: 0.1004936358 | AS81: 2.331759881e-08 | AT81: 750.4307422 | AU81: 0.005900760637 | AV81: 0.03680779951 | BA81: =REZIST(AY26) -> 9.21467303e-07 | BB81: =CPOCEL(AY26) -> 553.3809311 | BC81: =ROOCEL(AY26) -> 7788.0825 | BD81: =LOCEL(AY26) -> 18.06177815 | BE81: 1.311614933e-06 | BF81: 0.01248967249 | BG81: 0.1004936358 | BH81: 2.331759881e-08 | BI81: 750.4307422 | BJ81: 0.005900760637 | BK81: 0.03680779951
AL82: =REZIST(AN28) -> 9.21467303e-07 | AM82: =CPOCEL(AN28) -> 553.3809311 | AN82: =ROOCEL(AN28) -> 7788.0825 | AO82: =LOCEL(AN28) -> 18.06177815 | AP82: 1.327322896e-06 | AQ82: 0.01234186571 | AR82: 0.1016971524 | AS82: 2.359685149e-08 | AT82: 741.549905 | AU82: 0.005831338313 | AV82: 0.03680779951 | BA82: =REZIST(AY28) -> 9.21467303e-07 | BB82: =CPOCEL(AY28) -> 553.3809311 | BC82: =ROOCEL(AY28) -> 7788.0825 | BD82: =LOCEL(AY28) -> 18.06177815 | BE82: 1.327322896e-06 | BF82: 0.01234186571 | BG82: 0.1016971524 | BH82: 2.359685149e-08 | BI82: 741.549905 | BJ82: 0.005831338313 | BK82: 0.03680779951
AL83: =REZIST(AN30) -> 9.21467303e-07 | AM83: =CPOCEL(AN30) -> 553.3809311 | AN83: =ROOCEL(AN30) -> 7788.0825 | AO83: =LOCEL(AN30) -> 18.06177815 | AP83: 1.343030859e-06 | AQ83: 0.01219751641 | AR83: 0.102900669 | AS83: 2.387610417e-08 | AT83: 732.8768067 | AU83: 0.005763530516 | AV83: 0.03680779951 | BA83: =REZIST(AY30) -> 9.21467303e-07 | BB83: =CPOCEL(AY30) -> 553.3809311 | BC83: =ROOCEL(AY30) -> 7788.0825 | BD83: =LOCEL(AY30) -> 18.06177815 | BE83: 1.343030859e-06 | BF83: 0.01219751641 | BG83: 0.102900669 | BH83: 2.387610417e-08 | BI83: 732.8768067 | BJ83: 0.005763530516 | BK83: 0.03680779951
AL84: =REZIST(AN32) -> 9.21467303e-07 | AM84: =CPOCEL(AN32) -> 553.3809311 | AN84: =ROOCEL(AN32) -> 7788.0825 | AO84: =LOCEL(AN32) -> 18.06177815 | AP84: 1.358738823e-06 | AQ84: 0.01205650466 | AR84: 0.1041041856 | AS84: 2.415535685e-08 | AT84: 724.4042425 | AU84: 0.005697281572 | AV84: 0.03680779951 | BA84: =REZIST(AY32) -> 9.21467303e-07 | BB84: =CPOCEL(AY32) -> 553.3809311 | BC84: =ROOCEL(AY32) -> 7788.0825 | BD84: =LOCEL(AY32) -> 18.06177815 | BE84: 1.358738823e-06 | BF84: 0.01205650466 | BG84: 0.1041041856 | BH84: 2.415535685e-08 | BI84: 724.4042425 | BJ84: 0.005697281572 | BK84: 0.03680779951
AL85: =REZIST(AN34) -> 9.21467303e-07 | AM85: =CPOCEL(AN34) -> 553.3809311 | AN85: =ROOCEL(AN34) -> 7788.0825 | AO85: =LOCEL(AN34) -> 18.06177815 | AP85: 1.374446786e-06 | AQ85: 0.01191871603 | AR85: 0.1053077021 | AS85: 2.443460953e-08 | AT85: 716.1253368 | AU85: 0.005632538334 | AV85: 0.03680779951 | BA85: =REZIST(AY34) -> 9.21467303e-07 | BB85: =CPOCEL(AY34) -> 553.3809311 | BC85: =ROOCEL(AY34) -> 7788.0825 | BD85: =LOCEL(AY34) -> 18.06177815 | BE85: 1.374446786e-06 | BF85: 0.01191871603 | BG85: 0.1053077021 | BH85: 2.443460953e-08 | BI85: 716.1253368 | BJ85: 0.005632538334 | BK85: 0.03680779951
AL86: =REZIST(AN36) -> 9.21467303e-07 | AM86: =CPOCEL(AN36) -> 553.3809311 | AN86: =ROOCEL(AN36) -> 7788.0825 | AO86: =LOCEL(AN36) -> 18.06177815 | AP86: 1.390154749e-06 | AQ86: 0.01178404127 | AR86: 0.1065112187 | AS86: 2.471386221e-08 | AT86: 708.0335251 | AU86: 0.005569250048 | AV86: 0.03680779951 | BA86: =REZIST(AY36) -> 9.21467303e-07 | BB86: =CPOCEL(AY36) -> 553.3809311 | BC86: =ROOCEL(AY36) -> 7788.0825 | BD86: =LOCEL(AY36) -> 18.06177815 | BE86: 1.390154749e-06 | BF86: 0.01178404127 | BG86: 0.1065112187 | BH86: 2.471386221e-08 | BI86: 708.0335251 | BJ86: 0.005569250048 | BK86: 0.03680779951
AL87: =REZIST(AN38) -> 9.21467303e-07 | AM87: =CPOCEL(AN38) -> 553.3809311 | AN87: =ROOCEL(AN38) -> 7788.0825 | AO87: =LOCEL(AN38) -> 18.06177815 | AP87: 1.405862712e-06 | AQ87: 0.01165237601 | AR87: 0.1077147353 | AS87: 2.499311489e-08 | AT87: 700.122536 | AU87: =1/(AN43*AH41)+1/(2*PI()*$C$12)*(1/AO87)*LN(0.0045/0.004475) -> 2062.875055 | AV87: 0.03680779951 | BA87: =REZIST(AY38) -> 9.21467303e-07 | BB87: =CPOCEL(AY38) -> 553.3809311 | BC87: =ROOCEL(AY38) -> 7788.0825 | BD87: =LOCEL(AY38) -> 18.06177815 | BE87: 1.405862712e-06 | BF87: 0.01165237601 | BG87: 0.1077147353 | BH87: 2.499311489e-08 | BI87: 700.122536 | BJ87: =1/(AY43*AH41)+1/(2*PI()*$C$12)*(1/BD87)*LN(0.0045/0.004475) -> 2062.875055 | BK87: 0.03680779951
AP88: ΣR | AQ88: =1/(1/AQ78+1/AQ79+1/AQ80+1/AQ81+1/AQ82+1/AQ83+1/AQ84+1/AQ85+1/AQ86+1/AQ87) -> 0.00122692665 | BE88: ΣR | BF88: =1/(1/BF78+1/BF79+1/BF80+1/BF81+1/BF82+1/BF83+1/BF84+1/BF85+1/BF86+1/BF87) -> 0.00122692665
AP89: U | AQ89: =$C$17*AQ88 -> 0.0009053533712 | BE89: U | BF89: =$C$17*BF88 -> 0.0009053533712
AI90: 4 | AL90: ρ ocel [Ωm] | AM90: Cp ocel [J/kg*K] | AN90: ρ ocel [kg/m3] | AO90: λ ocel [W/m*k] | AP90: S [m2] | AQ90: R ocel [Ω] | AR90: C [J/K] | AS90: V [m3] | AT90: Rslozene dilky L | AU90: Rslozene vrstvy | AV90: U [V] | AZ90: 15 | BA90: ρ ocel [Ωm] | BB90: Cp ocel [J/kg*K] | BC90: ρ ocel [kg/m3] | BD90: λ ocel [W/m*k] | BE90: S [m2] | BF90: R ocel [Ω] | BG90: C [J/K] | BH90: V [m3] | BI90: Rslozene dilky P | BJ90: Rslozene vrstvy | BK90: U [V]
AL91: =REZIST(AO20) -> 9.21467303e-07 | AM91: =CPOCEL(AO20) -> 553.3809311 | AN91: =ROOCEL(AO20) -> 7788.0825 | AO91: =LOCEL(AO20) -> 18.06177815 | AP91: =(PI()*AB47^2-PI()*AB46^2) -> 1.264491043e-06 | AQ91: =AL91*$C$12/AP91 -> 0.01295512612 | AR91: =AS91*AM91*AN91 -> 0.09688308598 | AS91: =AP91*$C$12 -> 2.247984077e-08 | AT91: =(($C$12/2)/(AO91*AP91))+(($C$12/2)/(AO78*AP78)) -> 778.3971053 | AU91: =1/(2*PI()*$C$12)*(1/AO91)*LN(AC46/AD46)+1/(2*PI()*$C$12)*(1/AO92)*LN(AC60/AD60) -> 0.00611931278 | AV91: =$AQ$101*$C$5 -> 0.03680779951 | BA91: =REZIST(AZ20) -> 9.21467303e-07 | BB91: =CPOCEL(AZ20) -> 553.3809311 | BC91: =ROOCEL(AZ20) -> 7788.0825 | BD91: =LOCEL(AZ20) -> 18.06177815 | BE91: =(PI()*AB47^2-PI()*AB46^2) -> 1.264491043e-06 | BF91: =BA91*$C$12/BE91 -> 0.01295512612 | BG91: =BH91*BC91*BB91 -> 0.09688308598 | BH91: =BE91*$C$12 -> 2.247984077e-08 | BI91: =(($C$12/2)/(BD91*BE91))+(($C$12/2)/(BD104*BE104)) -> 778.3971053 | BJ91: =1/(2*PI()*$C$12)*(1/BD91)*LN(AC46/AD46)+1/(2*PI()*$C$12)*(1/BD92)*LN(AC60/AD60) -> 0.00611931278 | BK91: =$BF$101*$C$5 -> 0.03680779951
AL92: =REZIST(AO22) -> 9.21467303e-07 | AM92: =CPOCEL(AO22) -> 553.3809311 | AN92: =ROOCEL(AO22) -> 7788.0825 | AO92: =LOCEL(AO22) -> 18.06177815 | AP92: 1.280199006e-06 | AQ92: =AL92*$C$12/AP92 -> 0.01279616752 | AR92: 0.09808660257 | AS92: 2.275909345e-08 | AT92: 768.8462205 | AU92: 0.006044685153 | AV92: =$AQ$101*$C$5 -> 0.03680779951 | BA92: =REZIST(AZ22) -> 9.21467303e-07 | BB92: =CPOCEL(AZ22) -> 553.3809311 | BC92: =ROOCEL(AZ22) -> 7788.0825 | BD92: =LOCEL(AZ22) -> 18.06177815 | BE92: 1.280199006e-06 | BF92: =BA92*$C$12/BE92 -> 0.01279616752 | BG92: 0.09808660257 | BH92: 2.275909345e-08 | BI92: 768.8462205 | BJ92: 0.006044685153 | BK92: =$BF$101*$C$5 -> 0.03680779951
AL93: =REZIST(AO24) -> 9.21467303e-07 | AM93: =CPOCEL(AO24) -> 553.3809311 | AN93: =ROOCEL(AO24) -> 7788.0825 | AO93: =LOCEL(AO24) -> 18.06177815 | AP93: 1.29590697e-06 | AQ93: 0.01264106246 | AR93: 0.09929011917 | AS93: 2.303834613e-08 | AT93: 759.5268724 | AU93: 0.005971855849 | AV93: 0.03680779951 | BA93: =REZIST(AZ24) -> 9.21467303e-07 | BB93: =CPOCEL(AZ24) -> 553.3809311 | BC93: =ROOCEL(AZ24) -> 7788.0825 | BD93: =LOCEL(AZ24) -> 18.06177815 | BE93: 1.29590697e-06 | BF93: 0.01264106246 | BG93: 0.09929011917 | BH93: 2.303834613e-08 | BI93: 759.5268724 | BJ93: 0.005971855849 | BK93: 0.03680779951
AL94: =REZIST(AO26) -> 9.21467303e-07 | AM94: =CPOCEL(AO26) -> 553.3809311 | AN94: =ROOCEL(AO26) -> 7788.0825 | AO94: =LOCEL(AO26) -> 18.06177815 | AP94: 1.311614933e-06 | AQ94: 0.01248967249 | AR94: 0.1004936358 | AS94: 2.331759881e-08 | AT94: 750.4307422 | AU94: 0.005900760637 | AV94: 0.03680779951 | BA94: =REZIST(AZ26) -> 9.21467303e-07 | BB94: =CPOCEL(AZ26) -> 553.3809311 | BC94: =ROOCEL(AZ26) -> 7788.0825 | BD94: =LOCEL(AZ26) -> 18.06177815 | BE94: 1.311614933e-06 | BF94: 0.01248967249 | BG94: 0.1004936358 | BH94: 2.331759881e-08 | BI94: 750.4307422 | BJ94: 0.005900760637 | BK94: 0.03680779951
AL95: =REZIST(AO28) -> 9.21467303e-07 | AM95: =CPOCEL(AO28) -> 553.3809311 | AN95: =ROOCEL(AO28) -> 7788.0825 | AO95: =LOCEL(AO28) -> 18.06177815 | AP95: 1.327322896e-06 | AQ95: 0.01234186571 | AR95: 0.1016971524 | AS95: 2.359685149e-08 | AT95: 741.549905 | AU95: 0.005831338313 | AV95: 0.03680779951 | BA95: =REZIST(AZ28) -> 9.21467303e-07 | BB95: =CPOCEL(AZ28) -> 553.3809311 | BC95: =ROOCEL(AZ28) -> 7788.0825 | BD95: =LOCEL(AZ28) -> 18.06177815 | BE95: 1.327322896e-06 | BF95: 0.01234186571 | BG95: 0.1016971524 | BH95: 2.359685149e-08 | BI95: 741.549905 | BJ95: 0.005831338313 | BK95: 0.03680779951
AL96: =REZIST(AO30) -> 9.21467303e-07 | AM96: =CPOCEL(AO30) -> 553.3809311 | AN96: =ROOCEL(AO30) -> 7788.0825 | AO96: =LOCEL(AO30) -> 18.06177815 | AP96: 1.343030859e-06 | AQ96: 0.01219751641 | AR96: 0.102900669 | AS96: 2.387610417e-08 | AT96: 732.8768067 | AU96: 0.005763530516 | AV96: 0.03680779951 | BA96: =REZIST(AZ30) -> 9.21467303e-07 | BB96: =CPOCEL(AZ30) -> 553.3809311 | BC96: =ROOCEL(AZ30) -> 7788.0825 | BD96: =LOCEL(AZ30) -> 18.06177815 | BE96: 1.343030859e-06 | BF96: 0.01219751641 | BG96: 0.102900669 | BH96: 2.387610417e-08 | BI96: 732.8768067 | BJ96: 0.005763530516 | BK96: 0.03680779951
AL97: =REZIST(AO32) -> 9.21467303e-07 | AM97: =CPOCEL(AO32) -> 553.3809311 | AN97: =ROOCEL(AO32) -> 7788.0825 | AO97: =LOCEL(AO32) -> 18.06177815 | AP97: 1.358738823e-06 | AQ97: 0.01205650466 | AR97: 0.1041041856 | AS97: 2.415535685e-08 | AT97: 724.4042425 | AU97: 0.005697281572 | AV97: 0.03680779951 | BA97: =REZIST(AZ32) -> 9.21467303e-07 | BB97: =CPOCEL(AZ32) -> 553.3809311 | BC97: =ROOCEL(AZ32) -> 7788.0825 | BD97: =LOCEL(AZ32) -> 18.06177815 | BE97: 1.358738823e-06 | BF97: 0.01205650466 | BG97: 0.1041041856 | BH97: 2.415535685e-08 | BI97: 724.4042425 | BJ97: 0.005697281572 | BK97: 0.03680779951
AL98: =REZIST(AO34) -> 9.21467303e-07 | AM98: =CPOCEL(AO34) -> 553.3809311 | AN98: =ROOCEL(AO34) -> 7788.0825 | AO98: =LOCEL(AO34) -> 18.06177815 | AP98: 1.374446786e-06 | AQ98: 0.01191871603 | AR98: 0.1053077021 | AS98: 2.443460953e-08 | AT98: 716.1253368 | AU98: 0.005632538334 | AV98: 0.03680779951 | BA98: =REZIST(AZ34) -> 9.21467303e-07 | BB98: =CPOCEL(AZ34) -> 553.3809311 | BC98: =ROOCEL(AZ34) -> 7788.0825 | BD98: =LOCEL(AZ34) -> 18.06177815 | BE98: 1.374446786e-06 | BF98: 0.01191871603 | BG98: 0.1053077021 | BH98: 2.443460953e-08 | BI98: 716.1253368 | BJ98: 0.005632538334 | BK98: 0.03680779951
AL99: =REZIST(AO36) -> 9.21467303e-07 | AM99: =CPOCEL(AO36) -> 553.3809311 | AN99: =ROOCEL(AO36) -> 7788.0825 | AO99: =LOCEL(AO36) -> 18.06177815 | AP99: 1.390154749e-06 | AQ99: 0.01178404127 | AR99: 0.1065112187 | AS99: 2.471386221e-08 | AT99: 708.0335251 | AU99: 0.005569250048 | AV99: 0.03680779951 | BA99: =REZIST(AZ36) -> 9.21467303e-07 | BB99: =CPOCEL(AZ36) -> 553.3809311 | BC99: =ROOCEL(AZ36) -> 7788.0825 | BD99: =LOCEL(AZ36) -> 18.06177815 | BE99: 1.390154749e-06 | BF99: 0.01178404127 | BG99: 0.1065112187 | BH99: 2.471386221e-08 | BI99: 708.0335251 | BJ99: 0.005569250048 | BK99: 0.03680779951
AL100: =REZIST(AO38) -> 9.21467303e-07 | AM100: =CPOCEL(AO38) -> 553.3809311 | AN100: =ROOCEL(AO38) -> 7788.0825 | AO100: =LOCEL(AO38) -> 18.06177815 | AP100: 1.405862712e-06 | AQ100: 0.01165237601 | AR100: 0.1077147353 | AS100: 2.499311489e-08 | AT100: 700.122536 | AU100: =1/(AO43*AH41)+1/(2*PI()*$C$12)*(1/AO100)*LN(0.0045/0.004475) -> 2062.875055 | AV100: 0.03680779951 | BA100: =REZIST(AZ38) -> 9.21467303e-07 | BB100: =CPOCEL(AZ38) -> 553.3809311 | BC100: =ROOCEL(AZ38) -> 7788.0825 | BD100: =LOCEL(AZ38) -> 18.06177815 | BE100: 1.405862712e-06 | BF100: 0.01165237601 | BG100: 0.1077147353 | BH100: 2.499311489e-08 | BI100: 700.122536 | BJ100: =1/(AZ43*AH41)+1/(2*PI()*$C$12)*(1/BD100)*LN(0.0045/0.004475) -> 2062.875055 | BK100: 0.03680779951
AP101: ΣR | AQ101: =1/(1/AQ91+1/AQ92+1/AQ93+1/AQ94+1/AQ95+1/AQ96+1/AQ97+1/AQ98+1/AQ99+1/AQ100) -> 0.00122692665 | BE101: ΣR | BF101: =1/(1/BF91+1/BF92+1/BF93+1/BF94+1/BF95+1/BF96+1/BF97+1/BF98+1/BF99+1/BF100) -> 0.00122692665
AP102: U | AQ102: =$C$17*AQ101 -> 0.0009053533712 | BE102: U | BF102: =$C$17*BF101 -> 0.0009053533712
AI103: 5 | AL103: ρ ocel [Ωm] | AM103: Cp ocel [J/kg*K] | AN103: ρ ocel [kg/m3] | AO103: λ ocel [W/m*k] | AP103: S [m2] | AQ103: R ocel [Ω] | AR103: C [J/K] | AS103: V [m3] | AT103: Rslozene dilky L | AU103: Rslozene vrstvy | AV103: U [V] | AZ103: 16 | BA103: ρ ocel [Ωm] | BB103: Cp ocel [J/kg*K] | BC103: ρ ocel [kg/m3] | BD103: λ ocel [W/m*k] | BE103: S [m2] | BF103: R ocel [Ω] | BG103: C [J/K] | BH103: V [m3] | BI103: Rslozene dilky P | BJ103: Rslozene vrstvy | BK103: U [V]
AL104: =REZIST(AP20) -> 9.21467303e-07 | AM104: =CPOCEL(AP20) -> 553.3809311 | AN104: =ROOCEL(AP20) -> 7788.0825 | AO104: =LOCEL(AP20) -> 18.06177815 | AP104: =(PI()*AB47^2-PI()*AB46^2) -> 1.264491043e-06 | AQ104: =AL104*$C$12/AP104 -> 0.01295512612 | AR104: =AS104*AM104*AN104 -> 0.09688308598 | AS104: =AP104*$C$12 -> 2.247984077e-08 | AT104: =(($C$12/2)/(AO104*AP104))+(($C$12/2)/(AO91*AP91)) -> 778.3971053 | AU104: =(1/(2*PI()*$C$12))*(1/AO104)*LN(AC46/AD46)+(1/(2*PI()*$C$12))*(1/AO105)*LN(AC60/AD60) -> 0.00611931278 | AV104: =$AQ$114*$C$5 -> 0.03680779951 | BA104: =REZIST(BA20) -> 9.21467303e-07 | BB104: =CPOCEL(BA20) -> 553.3809311 | BC104: =ROOCEL(BA20) -> 7788.0825 | BD104: =LOCEL(BA20) -> 18.06177815 | BE104: =(PI()*AB47^2-PI()*AB46^2) -> 1.264491043e-06 | BF104: =BA104*$C$12/BE104 -> 0.01295512612 | BG104: =BH104*BC104*BB104 -> 0.09688308598 | BH104: =BE104*$C$12 -> 2.247984077e-08 | BI104: =(($C$12/2)/(BD104*BE104))+(($C$12/2)/(BD117*BE117)) -> 778.3971053 | BJ104: =1/(2*PI()*$C$12)*(1/BD104)*LN(AC46/AD46)+1/(2*PI()*$C$12)*(1/BD105)*LN(AC60/AD60) -> 0.00611931278 | BK104: =$BF$114*$C$5 -> 0.03680779951
AL105: =REZIST(AP22) -> 9.21467303e-07 | AM105: =CPOCEL(AP22) -> 553.3809311 | AN105: =ROOCEL(AP22) -> 7788.0825 | AO105: =LOCEL(AP22) -> 18.06177815 | AP105: 1.280199006e-06 | AQ105: =AL105*$C$12/AP105 -> 0.01279616752 | AR105: 0.09808660257 | AS105: 2.275909345e-08 | AT105: 768.8462205 | AU105: =1/(2*PI()*$C$12)*(1/AO105)*LN(AC47/AD47)+1/(2*PI()*$C$12)*(1/AO106)*LN(AC61/AD61) -> 0.006044685153 | AV105: =$AQ$114*$C$5 -> 0.03680779951 | BA105: =REZIST(BA22) -> 9.21467303e-07 | BB105: =CPOCEL(BA22) -> 553.3809311 | BC105: =ROOCEL(BA22) -> 7788.0825 | BD105: =LOCEL(BA22) -> 18.06177815 | BE105: 1.280199006e-06 | BF105: =BA105*$C$12/BE105 -> 0.01279616752 | BG105: 0.09808660257 | BH105: 2.275909345e-08 | BI105: 768.8462205 | BJ105: 0.006044685153 | BK105: =$BF$114*$C$5 -> 0.03680779951
AL106: =REZIST(AP24) -> 9.21467303e-07 | AM106: =CPOCEL(AP24) -> 553.3809311 | AN106: =ROOCEL(AP24) -> 7788.0825 | AO106: =LOCEL(AP24) -> 18.06177815 | AP106: 1.29590697e-06 | AQ106: 0.01264106246 | AR106: 0.09929011917 | AS106: 2.303834613e-08 | AT106: 759.5268724 | AU106: 0.005971855849 | AV106: 0.03680779951 | BA106: =REZIST(BA24) -> 9.21467303e-07 | BB106: =CPOCEL(BA24) -> 553.3809311 | BC106: =ROOCEL(BA24) -> 7788.0825 | BD106: =LOCEL(BA24) -> 18.06177815 | BE106: 1.29590697e-06 | BF106: 0.01264106246 | BG106: 0.09929011917 | BH106: 2.303834613e-08 | BI106: 759.5268724 | BJ106: 0.005971855849 | BK106: 0.03680779951
AL107: =REZIST(AP26) -> 9.21467303e-07 | AM107: =CPOCEL(AP26) -> 553.3809311 | AN107: =ROOCEL(AP26) -> 7788.0825 | AO107: =LOCEL(AP26) -> 18.06177815 | AP107: 1.311614933e-06 | AQ107: 0.01248967249 | AR107: 0.1004936358 | AS107: 2.331759881e-08 | AT107: 750.4307422 | AU107: 0.005900760637 | AV107: 0.03680779951 | BA107: =REZIST(BA26) -> 9.21467303e-07 | BB107: =CPOCEL(BA26) -> 553.3809311 | BC107: =ROOCEL(BA26) -> 7788.0825 | BD107: =LOCEL(BA26) -> 18.06177815 | BE107: 1.311614933e-06 | BF107: 0.01248967249 | BG107: 0.1004936358 | BH107: 2.331759881e-08 | BI107: 750.4307422 | BJ107: 0.005900760637 | BK107: 0.03680779951
AL108: =REZIST(AP28) -> 9.21467303e-07 | AM108: =CPOCEL(AP28) -> 553.3809311 | AN108: =ROOCEL(AP28) -> 7788.0825 | AO108: =LOCEL(AP28) -> 18.06177815 | AP108: 1.327322896e-06 | AQ108: 0.01234186571 | AR108: 0.1016971524 | AS108: 2.359685149e-08 | AT108: 741.549905 | AU108: 0.005831338313 | AV108: 0.03680779951 | BA108: =REZIST(BA28) -> 9.21467303e-07 | BB108: =CPOCEL(BA28) -> 553.3809311 | BC108: =ROOCEL(BA28) -> 7788.0825 | BD108: =LOCEL(BA28) -> 18.06177815 | BE108: 1.327322896e-06 | BF108: 0.01234186571 | BG108: 0.1016971524 | BH108: 2.359685149e-08 | BI108: 741.549905 | BJ108: 0.005831338313 | BK108: 0.03680779951
AL109: =REZIST(AP30) -> 9.21467303e-07 | AM109: =CPOCEL(AP30) -> 553.3809311 | AN109: =ROOCEL(AP30) -> 7788.0825 | AO109: =LOCEL(AP30) -> 18.06177815 | AP109: 1.343030859e-06 | AQ109: 0.01219751641 | AR109: 0.102900669 | AS109: 2.387610417e-08 | AT109: 732.8768067 | AU109: 0.005763530516 | AV109: 0.03680779951 | BA109: =REZIST(BA30) -> 9.21467303e-07 | BB109: =CPOCEL(BA30) -> 553.3809311 | BC109: =ROOCEL(BA30) -> 7788.0825 | BD109: =LOCEL(BA30) -> 18.06177815 | BE109: 1.343030859e-06 | BF109: 0.01219751641 | BG109: 0.102900669 | BH109: 2.387610417e-08 | BI109: 732.8768067 | BJ109: 0.005763530516 | BK109: 0.03680779951
AL110: =REZIST(AP32) -> 9.21467303e-07 | AM110: =CPOCEL(AP32) -> 553.3809311 | AN110: =ROOCEL(AP32) -> 7788.0825 | AO110: =LOCEL(AP32) -> 18.06177815 | AP110: 1.358738823e-06 | AQ110: 0.01205650466 | AR110: 0.1041041856 | AS110: 2.415535685e-08 | AT110: 724.4042425 | AU110: 0.005697281572 | AV110: 0.03680779951 | BA110: =REZIST(BA32) -> 9.21467303e-07 | BB110: =CPOCEL(BA32) -> 553.3809311 | BC110: =ROOCEL(BA32) -> 7788.0825 | BD110: =LOCEL(BA32) -> 18.06177815 | BE110: 1.358738823e-06 | BF110: 0.01205650466 | BG110: 0.1041041856 | BH110: 2.415535685e-08 | BI110: 724.4042425 | BJ110: 0.005697281572 | BK110: 0.03680779951
AL111: =REZIST(AP34) -> 9.21467303e-07 | AM111: =CPOCEL(AP34) -> 553.3809311 | AN111: =ROOCEL(AP34) -> 7788.0825 | AO111: =LOCEL(AP34) -> 18.06177815 | AP111: 1.374446786e-06 | AQ111: 0.01191871603 | AR111: 0.1053077021 | AS111: 2.443460953e-08 | AT111: 716.1253368 | AU111: 0.005632538334 | AV111: 0.03680779951 | BA111: =REZIST(BA34) -> 9.21467303e-07 | BB111: =CPOCEL(BA34) -> 553.3809311 | BC111: =ROOCEL(BA34) -> 7788.0825 | BD111: =LOCEL(BA34) -> 18.06177815 | BE111: 1.374446786e-06 | BF111: 0.01191871603 | BG111: 0.1053077021 | BH111: 2.443460953e-08 | BI111: 716.1253368 | BJ111: 0.005632538334 | BK111: 0.03680779951
AL112: =REZIST(AP36) -> 9.21467303e-07 | AM112: =CPOCEL(AP36) -> 553.3809311 | AN112: =ROOCEL(AP36) -> 7788.0825 | AO112: =LOCEL(AP36) -> 18.06177815 | AP112: 1.390154749e-06 | AQ112: 0.01178404127 | AR112: 0.1065112187 | AS112: 2.471386221e-08 | AT112: 708.0335251 | AU112: 0.005569250048 | AV112: 0.03680779951 | BA112: =REZIST(BA36) -> 9.21467303e-07 | BB112: =CPOCEL(BA36) -> 553.3809311 | BC112: =ROOCEL(BA36) -> 7788.0825 | BD112: =LOCEL(BA36) -> 18.06177815 | BE112: 1.390154749e-06 | BF112: 0.01178404127 | BG112: 0.1065112187 | BH112: 2.471386221e-08 | BI112: 708.0335251 | BJ112: 0.005569250048 | BK112: 0.03680779951
AL113: =REZIST(AP38) -> 9.21467303e-07 | AM113: =CPOCEL(AP38) -> 553.3809311 | AN113: =ROOCEL(AP38) -> 7788.0825 | AO113: =LOCEL(AP38) -> 18.06177815 | AP113: 1.405862712e-06 | AQ113: 0.01165237601 | AR113: 0.1077147353 | AS113: 2.499311489e-08 | AT113: 700.122536 | AU113: =1/(AP43*AH41)+(1/(2*PI()*$C$12))*(1/AO113)*LN(0.0045/0.004475) -> 2062.875055 | AV113: 0.03680779951 | BA113: =REZIST(BA38) -> 9.21467303e-07 | BB113: =CPOCEL(BA38) -> 553.3809311 | BC113: =ROOCEL(BA38) -> 7788.0825 | BD113: =LOCEL(BA38) -> 18.06177815 | BE113: 1.405862712e-06 | BF113: 0.01165237601 | BG113: 0.1077147353 | BH113: 2.499311489e-08 | BI113: 700.122536 | BJ113: =1/(BA43*AH41)+1/(2*PI()*$C$12)*(1/BD113)*LN(0.0045/0.004475) -> 2062.875055 | BK113: 0.03680779951
AP114: ΣR | AQ114: =1/(1/AQ104+1/AQ105+1/AQ106+1/AQ107+1/AQ108+1/AQ109+1/AQ110+1/AQ111+1/AQ112+1/AQ113) -> 0.00122692665 | BE114: ΣR | BF114: =1/(1/BF104+1/BF105+1/BF106+1/BF107+1/BF108+1/BF109+1/BF110+1/BF111+1/BF112+1/BF113) -> 0.00122692665
AP115: U | AQ115: =$C$17*AQ114 -> 0.0009053533712 | BE115: U | BF115: =$C$17*BF114 -> 0.0009053533712
AI116: 6 | AL116: ρ ocel [Ωm] | AM116: Cp ocel [J/kg*K] | AN116: ρ ocel [kg/m3] | AO116: λ ocel [W/m*k] | AP116: S [m2] | AQ116: R ocel [Ω] | AR116: C [J/K] | AS116: V [m3] | AT116: Rslozene dilky L | AU116: Rslozene vrstvy | AV116: U [V] | AZ116: 17 | BA116: ρ ocel [Ωm] | BB116: Cp ocel [J/kg*K] | BC116: ρ ocel [kg/m3] | BD116: λ ocel [W/m*k] | BE116: S [m2] | BF116: R ocel [Ω] | BG116: C [J/K] | BH116: V [m3] | BI116: Rslozene dilky P | BJ116: Rslozene vrstvy | BK116: U [V]
AL117: =REZIST(AQ20) -> 9.21467303e-07 | AM117: =CPOCEL(AQ20) -> 553.3809311 | AN117: =ROOCEL(AQ20) -> 7788.0825 | AO117: =LOCEL(AQ20) -> 18.06177815 | AP117: =(PI()*AB47^2-PI()*AB46^2) -> 1.264491043e-06 | AQ117: =AL117*$C$12/AP117 -> 0.01295512612 | AR117: =AS117*AM117*AN117 -> 0.09688308598 | AS117: =AP117*$C$12 -> 2.247984077e-08 | AT117: =(($C$12/2)/(AO117*AP117))+(($C$12/2)/(AO104*AP104)) -> 778.3971053 | AU117: =1/(2*PI()*$C$12)*(1/AO117)*LN(AC46/AD46)+1/(2*PI()*$C$12)*(1/AO118)*LN(AC60/AD60) -> 0.00611931278 | AV117: =$AQ$127*$C$5 -> 0.03680779951 | BA117: =REZIST(BB20) -> 9.21467303e-07 | BB117: =CPOCEL(BB20) -> 553.3809311 | BC117: =ROOCEL(BB20) -> 7788.0825 | BD117: =LOCEL(BB20) -> 18.06177815 | BE117: =(PI()*AB47^2-PI()*AB46^2) -> 1.264491043e-06 | BF117: =BA117*$C$12/BE117 -> 0.01295512612 | BG117: =BH117*BC117*BB117 -> 0.09688308598 | BH117: =BE117*$C$12 -> 2.247984077e-08 | BI117: =(($C$12/2)/(BD117*BE117))+(($C$12/2)/(BD130*BE130)) -> 778.3971053 | BJ117: =1/(2*PI()*$C$12)*(1/BD117)*LN(AC46/AD46)+1/(2*PI()*$C$12)*(1/BD118)*LN(AC60/AD60) -> 0.00611931278 | BK117: =$BF$127*$C$5 -> 0.03680779951
AL118: =REZIST(AQ22) -> 9.21467303e-07 | AM118: =CPOCEL(AQ22) -> 553.3809311 | AN118: =ROOCEL(AQ22) -> 7788.0825 | AO118: =LOCEL(AQ22) -> 18.06177815 | AP118: 1.280199006e-06 | AQ118: =AL118*$C$12/AP118 -> 0.01279616752 | AR118: 0.09808660257 | AS118: 2.275909345e-08 | AT118: 768.8462205 | AU118: 0.006044685153 | AV118: =$AQ$127*$C$5 -> 0.03680779951 | BA118: =REZIST(BB22) -> 9.21467303e-07 | BB118: =CPOCEL(BB22) -> 553.3809311 | BC118: =ROOCEL(BB22) -> 7788.0825 | BD118: =LOCEL(BB22) -> 18.06177815 | BE118: 1.280199006e-06 | BF118: =BA118*$C$12/BE118 -> 0.01279616752 | BG118: 0.09808660257 | BH118: 2.275909345e-08 | BI118: 768.8462205 | BJ118: 0.006044685153 | BK118: =$BF$127*$C$5 -> 0.03680779951
AL119: =REZIST(AQ24) -> 9.21467303e-07 | AM119: =CPOCEL(AQ24) -> 553.3809311 | AN119: =ROOCEL(AQ24) -> 7788.0825 | AO119: =LOCEL(AQ24) -> 18.06177815 | AP119: 1.29590697e-06 | AQ119: 0.01264106246 | AR119: 0.09929011917 | AS119: 2.303834613e-08 | AT119: 759.5268724 | AU119: 0.005971855849 | AV119: 0.03680779951 | BA119: =REZIST(BB24) -> 9.21467303e-07 | BB119: =CPOCEL(BB24) -> 553.3809311 | BC119: =ROOCEL(BB24) -> 7788.0825 | BD119: =LOCEL(BB24) -> 18.06177815 | BE119: 1.29590697e-06 | BF119: 0.01264106246 | BG119: 0.09929011917 | BH119: 2.303834613e-08 | BI119: 759.5268724 | BJ119: 0.005971855849 | BK119: 0.03680779951
AL120: =REZIST(AQ26) -> 9.21467303e-07 | AM120: =CPOCEL(AQ26) -> 553.3809311 | AN120: =ROOCEL(AQ26) -> 7788.0825 | AO120: =LOCEL(AQ26) -> 18.06177815 | AP120: 1.311614933e-06 | AQ120: 0.01248967249 | AR120: 0.1004936358 | AS120: 2.331759881e-08 | AT120: 750.4307422 | AU120: 0.005900760637 | AV120: 0.03680779951 | BA120: =REZIST(BB26) -> 9.21467303e-07 | BB120: =CPOCEL(BB26) -> 553.3809311 | BC120: =ROOCEL(BB26) -> 7788.0825 | BD120: =LOCEL(BB26) -> 18.06177815 | BE120: 1.311614933e-06 | BF120: 0.01248967249 | BG120: 0.1004936358 | BH120: 2.331759881e-08 | BI120: 750.4307422 | BJ120: 0.005900760637 | BK120: 0.03680779951
AL121: =REZIST(AQ28) -> 9.21467303e-07 | AM121: =CPOCEL(AQ28) -> 553.3809311 | AN121: =ROOCEL(AQ28) -> 7788.0825 | AO121: =LOCEL(AQ28) -> 18.06177815 | AP121: 1.327322896e-06 | AQ121: 0.01234186571 | AR121: 0.1016971524 | AS121: 2.359685149e-08 | AT121: 741.549905 | AU121: 0.005831338313 | AV121: 0.03680779951 | BA121: =REZIST(BB28) -> 9.21467303e-07 | BB121: =CPOCEL(BB28) -> 553.3809311 | BC121: =ROOCEL(BB28) -> 7788.0825 | BD121: =LOCEL(BB28) -> 18.06177815 | BE121: 1.327322896e-06 | BF121: 0.01234186571 | BG121: 0.1016971524 | BH121: 2.359685149e-08 | BI121: 741.549905 | BJ121: 0.005831338313 | BK121: 0.03680779951
AL122: =REZIST(AQ30) -> 9.21467303e-07 | AM122: =CPOCEL(AQ30) -> 553.3809311 | AN122: =ROOCEL(AQ30) -> 7788.0825 | AO122: =LOCEL(AQ30) -> 18.06177815 | AP122: 1.343030859e-06 | AQ122: 0.01219751641 | AR122: 0.102900669 | AS122: 2.387610417e-08 | AT122: 732.8768067 | AU122: 0.005763530516 | AV122: 0.03680779951 | BA122: =REZIST(BB30) -> 9.21467303e-07 | BB122: =CPOCEL(BB30) -> 553.3809311 | BC122: =ROOCEL(BB30) -> 7788.0825 | BD122: =LOCEL(BB30) -> 18.06177815 | BE122: 1.343030859e-06 | BF122: 0.01219751641 | BG122: 0.102900669 | BH122: 2.387610417e-08 | BI122: 732.8768067 | BJ122: 0.005763530516 | BK122: 0.03680779951
AL123: =REZIST(AQ32) -> 9.21467303e-07 | AM123: =CPOCEL(AQ32) -> 553.3809311 | AN123: =ROOCEL(AQ32) -> 7788.0825 | AO123: =LOCEL(AQ32) -> 18.06177815 | AP123: 1.358738823e-06 | AQ123: 0.01205650466 | AR123: 0.1041041856 | AS123: 2.415535685e-08 | AT123: 724.4042425 | AU123: 0.005697281572 | AV123: 0.03680779951 | BA123: =REZIST(BB32) -> 9.21467303e-07 | BB123: =CPOCEL(BB32) -> 553.3809311 | BC123: =ROOCEL(BB32) -> 7788.0825 | BD123: =LOCEL(BB32) -> 18.06177815 | BE123: 1.358738823e-06 | BF123: 0.01205650466 | BG123: 0.1041041856 | BH123: 2.415535685e-08 | BI123: 724.4042425 | BJ123: 0.005697281572 | BK123: 0.03680779951
AL124: =REZIST(AQ34) -> 9.21467303e-07 | AM124: =CPOCEL(AQ34) -> 553.3809311 | AN124: =ROOCEL(AQ34) -> 7788.0825 | AO124: =LOCEL(AQ34) -> 18.06177815 | AP124: 1.374446786e-06 | AQ124: 0.01191871603 | AR124: 0.1053077021 | AS124: 2.443460953e-08 | AT124: 716.1253368 | AU124: 0.005632538334 | AV124: 0.03680779951 | BA124: =REZIST(BB34) -> 9.21467303e-07 | BB124: =CPOCEL(BB34) -> 553.3809311 | BC124: =ROOCEL(BB34) -> 7788.0825 | BD124: =LOCEL(BB34) -> 18.06177815 | BE124: 1.374446786e-06 | BF124: 0.01191871603 | BG124: 0.1053077021 | BH124: 2.443460953e-08 | BI124: 716.1253368 | BJ124: 0.005632538334 | BK124: 0.03680779951
AL125: =REZIST(AQ36) -> 9.21467303e-07 | AM125: =CPOCEL(AQ36) -> 553.3809311 | AN125: =ROOCEL(AQ36) -> 7788.0825 | AO125: =LOCEL(AQ36) -> 18.06177815 | AP125: 1.390154749e-06 | AQ125: 0.01178404127 | AR125: 0.1065112187 | AS125: 2.471386221e-08 | AT125: 708.0335251 | AU125: 0.005569250048 | AV125: 0.03680779951 | BA125: =REZIST(BB36) -> 9.21467303e-07 | BB125: =CPOCEL(BB36) -> 553.3809311 | BC125: =ROOCEL(BB36) -> 7788.0825 | BD125: =LOCEL(BB36) -> 18.06177815 | BE125: 1.390154749e-06 | BF125: 0.01178404127 | BG125: 0.1065112187 | BH125: 2.471386221e-08 | BI125: 708.0335251 | BJ125: 0.005569250048 | BK125: 0.03680779951
AL126: =REZIST(AQ38) -> 9.21467303e-07 | AM126: =CPOCEL(AQ38) -> 553.3809311 | AN126: =ROOCEL(AQ38) -> 7788.0825 | AO126: =LOCEL(AQ38) -> 18.06177815 | AP126: 1.405862712e-06 | AQ126: =AL126*$C$12/AP126 -> 0.01165237601 | AR126: 0.1077147353 | AS126: 2.499311489e-08 | AT126: 700.122536 | AU126: =1/(AQ43*AH41)+1/(2*PI()*$C$12)*(1/AO126)*LN(0.0045/0.004475) -> 2062.875055 | AV126: 0.03680779951 | BA126: =REZIST(BB38) -> 9.21467303e-07 | BB126: =CPOCEL(BB38) -> 553.3809311 | BC126: =ROOCEL(BB38) -> 7788.0825 | BD126: =LOCEL(BB38) -> 18.06177815 | BE126: 1.405862712e-06 | BF126: 0.01165237601 | BG126: 0.1077147353 | BH126: 2.499311489e-08 | BI126: 700.122536 | BJ126: =1/(BB43*AH41)+1/(2*PI()*$C$12)*(1/BD126)*LN(0.0045/0.004475) -> 2062.875055 | BK126: 0.03680779951
AP127: ΣR | AQ127: =1/(1/AQ117+1/AQ118+1/AQ119+1/AQ120+1/AQ121+1/AQ122+1/AQ123+1/AQ124+1/AQ125+1/AQ126) -> 0.00122692665 | BE127: ΣR | BF127: =1/(1/BF117+1/BF118+1/BF119+1/BF120+1/BF121+1/BF122+1/BF123+1/BF124+1/BF125+1/BF126) -> 0.00122692665
AP128: U | AQ128: =$C$17*AQ127 -> 0.0009053533712 | BE128: U | BF128: =$C$17*BF127 -> 0.0009053533712
AI129: 7 | AL129: ρ ocel [Ωm] | AM129: Cp ocel [J/kg*K] | AN129: ρ ocel [kg/m3] | AO129: λ ocel [W/m*k] | AP129: S [m2] | AQ129: R ocel [Ω] | AR129: C [J/K] | AS129: V [m3] | AT129: Rslozene dilky L | AU129: Rslozene vrstvy | AV129: U [V] | AZ129: 18 | BA129: ρ ocel [Ωm] | BB129: Cp ocel [J/kg*K] | BC129: ρ ocel [kg/m3] | BD129: λ ocel [W/m*k] | BE129: S [m2] | BF129: R ocel [Ω] | BG129: C [J/K] | BH129: V [m3] | BI129: Rslozene dilky P | BJ129: Rslozene vrstvy | BK129: U [V]
AL130: =REZIST(AR20) -> 9.21467303e-07 | AM130: =CPOCEL(AR20) -> 553.3809311 | AN130: =ROOCEL(AR20) -> 7788.0825 | AO130: =LOCEL(AR20) -> 18.06177815 | AP130: =(PI()*AB47^2-PI()*AB46^2) -> 1.264491043e-06 | AQ130: =AL130*$C$12/AP130 -> 0.01295512612 | AR130: =AS130*AN130*AM130 -> 0.09688308598 | AS130: =AP130*$C$12 -> 2.247984077e-08 | AT130: =(($C$12/2)/(AO130*AP130))+(($C$12/2)/(AO117*AP117)) -> 778.3971053 | AU130: =1/(2*PI()*$C$12)*(1/AO130)*LN(AC46/AD46)+1/(2*PI()*$C$12)*(1/AO131)*LN(AC60/AD60) -> 0.00611931278 | AV130: =$AQ$140*$C$5 -> 0.03680779951 | BA130: =REZIST(BC20) -> 9.21467303e-07 | BB130: =CPOCEL(BC20) -> 553.3809311 | BC130: =ROOCEL(BC20) -> 7788.0825 | BD130: =LOCEL(BC20) -> 18.06177815 | BE130: =(PI()*AB47^2-PI()*AB46^2) -> 1.264491043e-06 | BF130: =BA130*$C$12/BE130 -> 0.01295512612 | BG130: =BH130*BC130*BB130 -> 0.09688308598 | BH130: =BE130*$C$12 -> 2.247984077e-08 | BI130: =(($C$12/2)/(BD130*BE130))+(($C$12/2)/(BD143*BE143)) -> 778.3971053 | BJ130: =1/(2*PI()*$C$12)*(1/BD130)*LN(AC46/AD46)+1/(2*PI()*$C$12)*(1/BD131)*LN(AC60/AD60) -> 0.00611931278 | BK130: =$BF$140*$C$5 -> 0.03680779951
AL131: =REZIST(AR22) -> 9.21467303e-07 | AM131: =CPOCEL(AR22) -> 553.3809311 | AN131: =ROOCEL(AR22) -> 7788.0825 | AO131: =LOCEL(AR22) -> 18.06177815 | AP131: 1.280199006e-06 | AQ131: =AL131*$C$12/AP131 -> 0.01279616752 | AR131: 0.09808660257 | AS131: 2.275909345e-08 | AT131: 768.8462205 | AU131: 0.006044685153 | AV131: =$AQ$140*$C$5 -> 0.03680779951 | BA131: =REZIST(BC22) -> 9.21467303e-07 | BB131: =CPOCEL(BC22) -> 553.3809311 | BC131: =ROOCEL(BC22) -> 7788.0825 | BD131: =LOCEL(BC22) -> 18.06177815 | BE131: 1.280199006e-06 | BF131: =BA131*$C$12/BE131 -> 0.01279616752 | BG131: 0.09808660257 | BH131: 2.275909345e-08 | BI131: 768.8462205 | BJ131: 0.006044685153 | BK131: =$BF$140*$C$5 -> 0.03680779951
AL132: =REZIST(AR24) -> 9.21467303e-07 | AM132: =CPOCEL(AR24) -> 553.3809311 | AN132: =ROOCEL(AR24) -> 7788.0825 | AO132: =LOCEL(AR24) -> 18.06177815 | AP132: 1.29590697e-06 | AQ132: 0.01264106246 | AR132: 0.09929011917 | AS132: 2.303834613e-08 | AT132: 759.5268724 | AU132: 0.005971855849 | AV132: 0.03680779951 | BA132: =REZIST(BC24) -> 9.21467303e-07 | BB132: =CPOCEL(BC24) -> 553.3809311 | BC132: =ROOCEL(BC24) -> 7788.0825 | BD132: =LOCEL(BC24) -> 18.06177815 | BE132: 1.29590697e-06 | BF132: 0.01264106246 | BG132: 0.09929011917 | BH132: 2.303834613e-08 | BI132: 759.5268724 | BJ132: 0.005971855849 | BK132: 0.03680779951
AL133: =REZIST(AR26) -> 9.21467303e-07 | AM133: =CPOCEL(AR26) -> 553.3809311 | AN133: =ROOCEL(AR26) -> 7788.0825 | AO133: =LOCEL(AR26) -> 18.06177815 | AP133: 1.311614933e-06 | AQ133: 0.01248967249 | AR133: 0.1004936358 | AS133: 2.331759881e-08 | AT133: 750.4307422 | AU133: 0.005900760637 | AV133: 0.03680779951 | BA133: =REZIST(BC26) -> 9.21467303e-07 | BB133: =CPOCEL(BC26) -> 553.3809311 | BC133: =ROOCEL(BC26) -> 7788.0825 | BD133: =LOCEL(BC26) -> 18.06177815 | BE133: 1.311614933e-06 | BF133: 0.01248967249 | BG133: 0.1004936358 | BH133: 2.331759881e-08 | BI133: 750.4307422 | BJ133: 0.005900760637 | BK133: 0.03680779951
AL134: =REZIST(AR28) -> 9.21467303e-07 | AM134: =CPOCEL(AR28) -> 553.3809311 | AN134: =ROOCEL(AR28) -> 7788.0825 | AO134: =LOCEL(AR28) -> 18.06177815 | AP134: 1.327322896e-06 | AQ134: 0.01234186571 | AR134: 0.1016971524 | AS134: 2.359685149e-08 | AT134: 741.549905 | AU134: 0.005831338313 | AV134: 0.03680779951 | BA134: =REZIST(BC28) -> 9.21467303e-07 | BB134: =CPOCEL(BC28) -> 553.3809311 | BC134: =ROOCEL(BC28) -> 7788.0825 | BD134: =LOCEL(BC28) -> 18.06177815 | BE134: 1.327322896e-06 | BF134: 0.01234186571 | BG134: 0.1016971524 | BH134: 2.359685149e-08 | BI134: 741.549905 | BJ134: 0.005831338313 | BK134: 0.03680779951
AL135: =REZIST(AR30) -> 9.21467303e-07 | AM135: =CPOCEL(AR30) -> 553.3809311 | AN135: =ROOCEL(AR30) -> 7788.0825 | AO135: =LOCEL(AR30) -> 18.06177815 | AP135: 1.343030859e-06 | AQ135: 0.01219751641 | AR135: 0.102900669 | AS135: 2.387610417e-08 | AT135: 732.8768067 | AU135: 0.005763530516 | AV135: 0.03680779951 | BA135: =REZIST(BC30) -> 9.21467303e-07 | BB135: =CPOCEL(BC30) -> 553.3809311 | BC135: =ROOCEL(BC30) -> 7788.0825 | BD135: =LOCEL(BC30) -> 18.06177815 | BE135: 1.343030859e-06 | BF135: 0.01219751641 | BG135: 0.102900669 | BH135: 2.387610417e-08 | BI135: 732.8768067 | BJ135: 0.005763530516 | BK135: 0.03680779951
AL136: =REZIST(AR32) -> 9.21467303e-07 | AM136: =CPOCEL(AR32) -> 553.3809311 | AN136: =ROOCEL(AR32) -> 7788.0825 | AO136: =LOCEL(AR32) -> 18.06177815 | AP136: 1.358738823e-06 | AQ136: 0.01205650466 | AR136: 0.1041041856 | AS136: 2.415535685e-08 | AT136: 724.4042425 | AU136: 0.005697281572 | AV136: 0.03680779951 | BA136: =REZIST(BC32) -> 9.21467303e-07 | BB136: =CPOCEL(BC32) -> 553.3809311 | BC136: =ROOCEL(BC32) -> 7788.0825 | BD136: =LOCEL(BC32) -> 18.06177815 | BE136: 1.358738823e-06 | BF136: 0.01205650466 | BG136: 0.1041041856 | BH136: 2.415535685e-08 | BI136: 724.4042425 | BJ136: 0.005697281572 | BK136: 0.03680779951
AL137: =REZIST(AR34) -> 9.21467303e-07 | AM137: =CPOCEL(AR34) -> 553.3809311 | AN137: =ROOCEL(AR34) -> 7788.0825 | AO137: =LOCEL(AR34) -> 18.06177815 | AP137: 1.374446786e-06 | AQ137: 0.01191871603 | AR137: 0.1053077021 | AS137: 2.443460953e-08 | AT137: 716.1253368 | AU137: 0.005632538334 | AV137: 0.03680779951 | BA137: =REZIST(BC34) -> 9.21467303e-07 | BB137: =CPOCEL(BC34) -> 553.3809311 | BC137: =ROOCEL(BC34) -> 7788.0825 | BD137: =LOCEL(BC34) -> 18.06177815 | BE137: 1.374446786e-06 | BF137: 0.01191871603 | BG137: 0.1053077021 | BH137: 2.443460953e-08 | BI137: 716.1253368 | BJ137: 0.005632538334 | BK137: 0.03680779951
AL138: =REZIST(AR36) -> 9.21467303e-07 | AM138: =CPOCEL(AR36) -> 553.3809311 | AN138: =ROOCEL(AR36) -> 7788.0825 | AO138: =LOCEL(AR36) -> 18.06177815 | AP138: 1.390154749e-06 | AQ138: 0.01178404127 | AR138: 0.1065112187 | AS138: 2.471386221e-08 | AT138: 708.0335251 | AU138: 0.005569250048 | AV138: 0.03680779951 | BA138: =REZIST(BC36) -> 9.21467303e-07 | BB138: =CPOCEL(BC36) -> 553.3809311 | BC138: =ROOCEL(BC36) -> 7788.0825 | BD138: =LOCEL(BC36) -> 18.06177815 | BE138: 1.390154749e-06 | BF138: 0.01178404127 | BG138: 0.1065112187 | BH138: 2.471386221e-08 | BI138: 708.0335251 | BJ138: 0.005569250048 | BK138: 0.03680779951
AL139: =REZIST(AR38) -> 9.21467303e-07 | AM139: =CPOCEL(AR38) -> 553.3809311 | AN139: =ROOCEL(AR38) -> 7788.0825 | AO139: =LOCEL(AR38) -> 18.06177815 | AP139: 1.405862712e-06 | AQ139: 0.01165237601 | AR139: 0.1077147353 | AS139: 2.499311489e-08 | AT139: 700.122536 | AU139: =1/(AR43*AH41)+1/(2*PI()*$C$12)*(1/AO139)*LN(0.0045/0.004475) -> 2062.875055 | AV139: 0.03680779951 | BA139: =REZIST(BC38) -> 9.21467303e-07 | BB139: =CPOCEL(BC38) -> 553.3809311 | BC139: =ROOCEL(BC38) -> 7788.0825 | BD139: =LOCEL(BC38) -> 18.06177815 | BE139: 1.405862712e-06 | BF139: 0.01165237601 | BG139: 0.1077147353 | BH139: 2.499311489e-08 | BI139: 700.122536 | BJ139: =1/(BC43*AH41)+1/(2*PI()*$C$12)*(1/BD139)*LN(0.0045/0.004475) -> 2062.875055 | BK139: 0.03680779951
AP140: ΣR | AQ140: =1/(1/AQ130+1/AQ131+1/AQ132+1/AQ133+1/AQ134+1/AQ135+1/AQ136+1/AQ137+1/AQ138+1/AQ139) -> 0.00122692665 | BE140: ΣR | BF140: =1/(1/BF130+1/BF131+1/BF132+1/BF133+1/BF134+1/BF135+1/BF136+1/BF137+1/BF138+1/BF139) -> 0.00122692665
AP141: U | AQ141: =$C$17*AQ140 -> 0.0009053533712 | BE141: U | BF141: =$C$17*BF140 -> 0.0009053533712
AI142: 8 | AL142: ρ ocel [Ωm] | AM142: Cp ocel [J/kg*K] | AN142: ρ ocel [kg/m3] | AO142: λ ocel [W/m*k] | AP142: S [m2] | AQ142: R ocel [Ω] | AR142: C [J/K] | AS142: V [m3] | AT142: Rslozene dilky L | AU142: Rslozene vrstvy | AV142: U [V] | AZ142: 19 | BA142: ρ ocel [Ωm] | BB142: Cp ocel [J/kg*K] | BC142: ρ ocel [kg/m3] | BD142: λ ocel [W/m*k] | BE142: S [m2] | BF142: R ocel [Ω] | BG142: C [J/K] | BH142: V [m3] | BI142: Rslozene dilky P | BJ142: Rslozene vrstvy | BK142: U [V]
AL143: =REZIST(AS20) -> 9.21467303e-07 | AM143: =CPOCEL(AS20) -> 553.3809311 | AN143: =ROOCEL(AS20) -> 7788.0825 | AO143: =LOCEL(AS20) -> 18.06177815 | AP143: =(PI()*AB47^2-PI()*AB46^2) -> 1.264491043e-06 | AQ143: =AL143*$C$12/AP143 -> 0.01295512612 | AR143: =AS143*AN143*AM143 -> 0.09688308598 | AS143: =AP143*$C$12 -> 2.247984077e-08 | AT143: =(($C$12/2)/(AO143*AP143))+(($C$12/2)/(AO130*AP130)) -> 778.3971053 | AU143: =1/(2*PI()*$C$12)*(1/AO143)*LN(AC46/AD46)+1/(2*PI()*$C$12)*(1/AO144)*LN(AC60/AD60) -> 0.00611931278 | AV143: =$AQ$153*$C$5 -> 0.03680779951 | BA143: =REZIST(BD20) -> 9.21467303e-07 | BB143: =CPOCEL(BD20) -> 553.3809311 | BC143: =ROOCEL(BD20) -> 7788.0825 | BD143: =LOCEL(BD20) -> 18.06177815 | BE143: =(PI()*AB47^2-PI()*AB46^2) -> 1.264491043e-06 | BF143: =BA143*$C$12/BE143 -> 0.01295512612 | BG143: =BH143*BC143*BB143 -> 0.09688308598 | BH143: =BE143*$C$12 -> 2.247984077e-08 | BI143: =(($C$12/2)/(BD143*BE143))+(($C$12/2)/(BD156*BE156)) -> 778.3971053 | BJ143: =1/(2*PI()*$C$12)*(1/BD143)*LN(AC46/AD46)+1/(2*PI()*$C$12)*(1/BD144)*LN(AC60/AD60) -> 0.00611931278 | BK143: =$BF$153*$C$5 -> 0.03680779951
AL144: =REZIST(AS22) -> 9.21467303e-07 | AM144: =CPOCEL(AS22) -> 553.3809311 | AN144: =ROOCEL(AS22) -> 7788.0825 | AO144: =LOCEL(AS22) -> 18.06177815 | AP144: 1.280199006e-06 | AQ144: =AL144*$C$12/AP144 -> 0.01279616752 | AR144: 0.09808660257 | AS144: 2.275909345e-08 | AT144: 768.8462205 | AU144: 0.006044685153 | AV144: =$AQ$153*$C$5 -> 0.03680779951 | BA144: =REZIST(BD22) -> 9.21467303e-07 | BB144: =CPOCEL(BD22) -> 553.3809311 | BC144: =ROOCEL(BD22) -> 7788.0825 | BD144: =LOCEL(BD22) -> 18.06177815 | BE144: 1.280199006e-06 | BF144: =BA144*$C$12/BE144 -> 0.01279616752 | BG144: 0.09808660257 | BH144: 2.275909345e-08 | BI144: 768.8462205 | BJ144: 0.006044685153 | BK144: =$BF$153*$C$5 -> 0.03680779951
AL145: =REZIST(AS24) -> 9.21467303e-07 | AM145: =CPOCEL(AS24) -> 553.3809311 | AN145: =ROOCEL(AS24) -> 7788.0825 | AO145: =LOCEL(AS24) -> 18.06177815 | AP145: 1.29590697e-06 | AQ145: 0.01264106246 | AR145: 0.09929011917 | AS145: 2.303834613e-08 | AT145: 759.5268724 | AU145: 0.005971855849 | AV145: 0.03680779951 | BA145: =REZIST(BD24) -> 9.21467303e-07 | BB145: =CPOCEL(BD24) -> 553.3809311 | BC145: =ROOCEL(BD24) -> 7788.0825 | BD145: =LOCEL(BD24) -> 18.06177815 | BE145: 1.29590697e-06 | BF145: 0.01264106246 | BG145: 0.09929011917 | BH145: 2.303834613e-08 | BI145: 759.5268724 | BJ145: 0.005971855849 | BK145: 0.03680779951
AL146: =REZIST(AS26) -> 9.21467303e-07 | AM146: =CPOCEL(AS26) -> 553.3809311 | AN146: =ROOCEL(AS26) -> 7788.0825 | AO146: =LOCEL(AS26) -> 18.06177815 | AP146: 1.311614933e-06 | AQ146: 0.01248967249 | AR146: 0.1004936358 | AS146: 2.331759881e-08 | AT146: 750.4307422 | AU146: 0.005900760637 | AV146: 0.03680779951 | BA146: =REZIST(BD26) -> 9.21467303e-07 | BB146: =CPOCEL(BD26) -> 553.3809311 | BC146: =ROOCEL(BD26) -> 7788.0825 | BD146: =LOCEL(BD26) -> 18.06177815 | BE146: 1.311614933e-06 | BF146: 0.01248967249 | BG146: 0.1004936358 | BH146: 2.331759881e-08 | BI146: 750.4307422 | BJ146: 0.005900760637 | BK146: 0.03680779951
AL147: =REZIST(AS28) -> 9.21467303e-07 | AM147: =CPOCEL(AS28) -> 553.3809311 | AN147: =ROOCEL(AS28) -> 7788.0825 | AO147: =LOCEL(AS28) -> 18.06177815 | AP147: 1.327322896e-06 | AQ147: 0.01234186571 | AR147: 0.1016971524 | AS147: 2.359685149e-08 | AT147: 741.549905 | AU147: 0.005831338313 | AV147: 0.03680779951 | BA147: =REZIST(BD28) -> 9.21467303e-07 | BB147: =CPOCEL(BD28) -> 553.3809311 | BC147: =ROOCEL(BD28) -> 7788.0825 | BD147: =LOCEL(BD28) -> 18.06177815 | BE147: 1.327322896e-06 | BF147: 0.01234186571 | BG147: 0.1016971524 | BH147: 2.359685149e-08 | BI147: 741.549905 | BJ147: 0.005831338313 | BK147: 0.03680779951
AL148: =REZIST(AS30) -> 9.21467303e-07 | AM148: =CPOCEL(AS30) -> 553.3809311 | AN148: =ROOCEL(AS30) -> 7788.0825 | AO148: =LOCEL(AS30) -> 18.06177815 | AP148: 1.343030859e-06 | AQ148: 0.01219751641 | AR148: 0.102900669 | AS148: 2.387610417e-08 | AT148: 732.8768067 | AU148: 0.005763530516 | AV148: 0.03680779951 | BA148: =REZIST(BD30) -> 9.21467303e-07 | BB148: =CPOCEL(BD30) -> 553.3809311 | BC148: =ROOCEL(BD30) -> 7788.0825 | BD148: =LOCEL(BD30) -> 18.06177815 | BE148: 1.343030859e-06 | BF148: 0.01219751641 | BG148: 0.102900669 | BH148: 2.387610417e-08 | BI148: 732.8768067 | BJ148: 0.005763530516 | BK148: 0.03680779951
AL149: =REZIST(AS32) -> 9.21467303e-07 | AM149: =CPOCEL(AS32) -> 553.3809311 | AN149: =ROOCEL(AS32) -> 7788.0825 | AO149: =LOCEL(AS32) -> 18.06177815 | AP149: 1.358738823e-06 | AQ149: 0.01205650466 | AR149: 0.1041041856 | AS149: 2.415535685e-08 | AT149: 724.4042425 | AU149: 0.005697281572 | AV149: 0.03680779951 | BA149: =REZIST(BD32) -> 9.21467303e-07 | BB149: =CPOCEL(BD32) -> 553.3809311 | BC149: =ROOCEL(BD32) -> 7788.0825 | BD149: =LOCEL(BD32) -> 18.06177815 | BE149: 1.358738823e-06 | BF149: 0.01205650466 | BG149: 0.1041041856 | BH149: 2.415535685e-08 | BI149: 724.4042425 | BJ149: 0.005697281572 | BK149: 0.03680779951
AL150: =REZIST(AS34) -> 9.21467303e-07 | AM150: =CPOCEL(AS34) -> 553.3809311 | AN150: =ROOCEL(AS4) -> 7797.0825 | AO150: =LOCEL(AS34) -> 18.06177815 | AP150: 1.374446786e-06 | AQ150: 0.01191871603 | AR150: 0.105429397 | AS150: 2.443460953e-08 | AT150: 716.1253368 | AU150: 0.005632538334 | AV150: 0.03680779951 | BA150: =REZIST(BD34) -> 9.21467303e-07 | BB150: =CPOCEL(BD34) -> 553.3809311 | BC150: =ROOCEL(BD34) -> 7788.0825 | BD150: =LOCEL(BD34) -> 18.06177815 | BE150: 1.374446786e-06 | BF150: 0.01191871603 | BG150: 0.1053077021 | BH150: 2.443460953e-08 | BI150: 716.1253368 | BJ150: 0.005632538334 | BK150: 0.03680779951
AL151: =REZIST(AS36) -> 9.21467303e-07 | AM151: =CPOCEL(AS36) -> 553.3809311 | AN151: =ROOCEL(AS36) -> 7788.0825 | AO151: =LOCEL(AS36) -> 18.06177815 | AP151: 1.390154749e-06 | AQ151: 0.01178404127 | AR151: 0.1065112187 | AS151: 2.471386221e-08 | AT151: 708.0335251 | AU151: 0.005569250048 | AV151: 0.03680779951 | BA151: =REZIST(BD36) -> 9.21467303e-07 | BB151: =CPOCEL(BD36) -> 553.3809311 | BC151: =ROOCEL(BD36) -> 7788.0825 | BD151: =LOCEL(BD36) -> 18.06177815 | BE151: 1.390154749e-06 | BF151: 0.01178404127 | BG151: 0.1065112187 | BH151: 2.471386221e-08 | BI151: 708.0335251 | BJ151: 0.005569250048 | BK151: 0.03680779951
AL152: =REZIST(AS38) -> 9.21467303e-07 | AM152: =CPOCEL(AS38) -> 553.3809311 | AN152: =ROOCEL(AS38) -> 7788.0825 | AO152: =LOCEL(AS38) -> 18.06177815 | AP152: 1.405862712e-06 | AQ152: 0.01165237601 | AR152: 0.1077147353 | AS152: 2.499311489e-08 | AT152: 700.122536 | AU152: =1/(AS43*AH41)+1/(2*PI()*$C$12)*(1/AO152)*LN(0.0045/0.004475) -> 2062.875055 | AV152: 0.03680779951 | BA152: =REZIST(BD38) -> 9.21467303e-07 | BB152: =CPOCEL(BD38) -> 553.3809311 | BC152: =ROOCEL(BD38) -> 7788.0825 | BD152: =LOCEL(BD38) -> 18.06177815 | BE152: 1.405862712e-06 | BF152: 0.01165237601 | BG152: 0.1077147353 | BH152: 2.499311489e-08 | BI152: 700.122536 | BJ152: =1/(BD43*AH41)+1/(2*PI()*$C$12)*(1/BD152)*LN(0.0045/0.004475) -> 2062.875055 | BK152: 0.03680779951
AP153: ΣR | AQ153: =1/(1/AQ143+1/AQ144+1/AQ145+1/AQ146+1/AQ147+1/AQ148+1/AQ149+1/AQ150+1/AQ151+1/AQ152) -> 0.00122692665 | BE153: ΣR | BF153: =1/(1/BF143+1/BF144+1/BF145+1/BF146+1/BF147+1/BF148+1/BF149+1/BF150+1/BF151+1/BF152) -> 0.00122692665
AP154: U | AQ154: =$C$17*AQ153 -> 0.0009053533712 | BE154: U | BF154: =$C$17*BF153 -> 0.0009053533712
AI155: 9 | AL155: ρ ocel [Ωm] | AM155: Cp ocel [J/kg*K] | AN155: ρ ocel [kg/m3] | AO155: λ ocel [W/m*k] | AP155: S [m2] | AQ155: R ocel [Ω] | AR155: C [J/K] | AS155: V [m3] | AT155: Rslozene dilky L | AU155: Rslozene vrstvy | AV155: U [V] | AZ155: 20 | BA155: ρ ocel [Ωm] | BB155: Cp ocel [J/kg*K] | BC155: ρ ocel [kg/m3] | BD155: λ ocel [W/m*k] | BE155: S [m2] | BF155: R ocel [Ω] | BG155: C [J/K] | BH155: V [m3] | BI155: Rslozene dilky P | BJ155: Rslozene vrstvy | BK155: U [V]
AL156: =REZIST(AT20) -> 9.21467303e-07 | AM156: =CPOCEL(AT20) -> 553.3809311 | AN156: =ROOCEL(AT20) -> 7788.0825 | AO156: =LOCEL(AT20) -> 18.06177815 | AP156: =(PI()*AB47^2-PI()*AB46^2) -> 1.264491043e-06 | AQ156: =AL156*$C$12/AP156 -> 0.01295512612 | AR156: =AS156*AN156*AM156 -> 0.09688308598 | AS156: =AP156*$C$12 -> 2.247984077e-08 | AT156: =(($C$12/2)/(AO156*AP156))+(($C$12/2)/(AO143*AP143)) -> 778.3971053 | AU156: =1/(2*PI()*$C$12)*(1/AO156)*LN(AC46/AD46)+1/(2*PI()*$C$12)*(1/AO157)*LN(AC60/AD60) -> 0.00611931278 | AV156: =$AQ$166*$C$5 -> 0.03680779951 | BA156: =REZIST(BE20) -> 9.21467303e-07 | BB156: =CPOCEL(BE20) -> 553.3809311 | BC156: =ROOCEL(BE20) -> 7788.0825 | BD156: =LOCEL(BE20) -> 18.06177815 | BE156: =(PI()*AB47^2-PI()*AB46^2) -> 1.264491043e-06 | BF156: =BA156*$C$12/BE156 -> 0.01295512612 | BG156: =BH156*BC156*BB156 -> 0.09688308598 | BH156: =BE156*$C$12 -> 2.247984077e-08 | BI156: =(($C$12/2)/(BD156*BE156))+((0.01/2)/(BD169*BE169)) -> 608.1227385 | BJ156: =1/(2*PI()*$C$12)*(1/BD156)*LN(AC46/AD46)+1/(2*PI()*$C$12)*(1/BD157)*LN(AC60/AD60) -> 0.00611931278 | BK156: =$BF$166*$C$5 -> 0.03680779951
AL157: =REZIST(AT22) -> 9.21467303e-07 | AM157: =CPOCEL(AT22) -> 553.3809311 | AN157: =ROOCEL(AT22) -> 7788.0825 | AO157: =LOCEL(AT22) -> 18.06177815 | AP157: 1.280199006e-06 | AQ157: =AL157*$C$12/AP157 -> 0.01279616752 | AR157: 0.09808660257 | AS157: 2.275909345e-08 | AT157: 768.8462205 | AU157: 0.006044685153 | AV157: =$AQ$166*$C$5 -> 0.03680779951 | BA157: =REZIST(BE22) -> 9.21467303e-07 | BB157: =CPOCEL(BE22) -> 553.3809311 | BC157: =ROOCEL(BE22) -> 7788.0825 | BD157: =LOCEL(BE22) -> 18.06177815 | BE157: 1.280199006e-06 | BF157: =BA157*$C$12/BE157 -> 0.01279616752 | BG157: 0.09808660257 | BH157: 2.275909345e-08 | BI157: =(($C$12/2)/(BD157*BE157))+((0.01/2)/(BD170*BE170)) -> 600.6611098 | BJ157: 0.006044685153 | BK157: =$BF$166*$C$5 -> 0.03680779951
AL158: =REZIST(AT24) -> 9.21467303e-07 | AM158: =CPOCEL(AT24) -> 553.3809311 | AN158: =ROOCEL(AT24) -> 7788.0825 | AO158: =LOCEL(AT24) -> 18.06177815 | AP158: 1.29590697e-06 | AQ158: 0.01264106246 | AR158: 0.09929011917 | AS158: 2.303834613e-08 | AT158: 759.5268724 | AU158: 0.005971855849 | AV158: 0.03680779951 | BA158: =REZIST(BE24) -> 9.21467303e-07 | BB158: =CPOCEL(BE24) -> 553.3809311 | BC158: =ROOCEL(BE24) -> 7788.0825 | BD158: =LOCEL(BE24) -> 18.06177815 | BE158: 1.29590697e-06 | BF158: 0.01264106246 | BG158: 0.09929011917 | BH158: 2.303834613e-08 | BI158: 593.3803691 | BJ158: 0.005971855849 | BK158: 0.03680779951
AL159: =REZIST(AT26) -> 9.21467303e-07 | AM159: =CPOCEL(AT26) -> 553.3809311 | AN159: =ROOCEL(AT26) -> 7788.0825 | AO159: =LOCEL(AT26) -> 18.06177815 | AP159: 1.311614933e-06 | AQ159: 0.01248967249 | AR159: 0.1004936358 | AS159: 2.331759881e-08 | AT159: 750.4307422 | AU159: 0.005900760637 | AV159: 0.03680779951 | BA159: =REZIST(BE26) -> 9.21467303e-07 | BB159: =CPOCEL(BE26) -> 553.3809311 | BC159: =ROOCEL(BE26) -> 7788.0825 | BD159: =LOCEL(BE26) -> 18.06177815 | BE159: 1.311614933e-06 | BF159: 0.01248967249 | BG159: 0.1004936358 | BH159: 2.331759881e-08 | BI159: 586.2740173 | BJ159: 0.005900760637 | BK159: 0.03680779951
AL160: =REZIST(AT28) -> 9.21467303e-07 | AM160: =CPOCEL(AT28) -> 553.3809311 | AN160: =ROOCEL(AT28) -> 7788.0825 | AO160: =LOCEL(AT28) -> 18.06177815 | AP160: 1.327322896e-06 | AQ160: 0.01234186571 | AR160: 0.1016971524 | AS160: 2.359685149e-08 | AT160: 741.549905 | AU160: 0.005831338313 | AV160: 0.03680779951 | BA160: =REZIST(BE28) -> 9.21467303e-07 | BB160: =CPOCEL(BE28) -> 553.3809311 | BC160: =ROOCEL(BE28) -> 7788.0825 | BD160: =LOCEL(BE28) -> 18.06177815 | BE160: 1.327322896e-06 | BF160: 0.01234186571 | BG160: 0.1016971524 | BH160: 2.359685149e-08 | BI160: 579.3358633 | BJ160: 0.005831338313 | BK160: 0.03680779951
AL161: =REZIST(AT30) -> 9.21467303e-07 | AM161: =CPOCEL(AT30) -> 553.3809311 | AN161: =ROOCEL(AT30) -> 7788.0825 | AO161: =LOCEL(AT30) -> 18.06177815 | AP161: 1.343030859e-06 | AQ161: 0.01219751641 | AR161: 0.102900669 | AS161: 2.387610417e-08 | AT161: 732.8768067 | AU161: 0.005763530516 | AV161: 0.03680779951 | BA161: =REZIST(BE30) -> 9.21467303e-07 | BB161: =CPOCEL(BE30) -> 553.3809311 | BC161: =ROOCEL(BE30) -> 7788.0825 | BD161: =LOCEL(BE30) -> 18.06177815 | BE161: 1.343030859e-06 | BF161: 0.01219751641 | BG161: 0.102900669 | BH161: 2.387610417e-08 | BI161: 572.5600052 | BJ161: 0.005763530516 | BK161: 0.03680779951
AL162: =REZIST(AT32) -> 9.21467303e-07 | AM162: =CPOCEL(AT32) -> 553.3809311 | AN162: =ROOCEL(AT32) -> 7788.0825 | AO162: =LOCEL(AT32) -> 18.06177815 | AP162: 1.358738823e-06 | AQ162: 0.01205650466 | AR162: 0.1041041856 | AS162: 2.415535685e-08 | AT162: 724.4042425 | AU162: 0.005697281572 | AV162: 0.03680779951 | BA162: =REZIST(BE32) -> 9.21467303e-07 | BB162: =CPOCEL(BE32) -> 553.3809311 | BC162: =ROOCEL(BE32) -> 7788.0825 | BD162: =LOCEL(BE32) -> 18.06177815 | BE162: 1.358738823e-06 | BF162: 0.01205650466 | BG162: 0.1041041856 | BH162: 2.415535685e-08 | BI162: 565.9408144 | BJ162: 0.005697281572 | BK162: 0.03680779951
AL163: =REZIST(AT34) -> 9.21467303e-07 | AM163: =CPOCEL(AT34) -> 553.3809311 | AN163: =ROOCEL(AT34) -> 7788.0825 | AO163: =LOCEL(AT34) -> 18.06177815 | AP163: 1.374446786e-06 | AQ163: 0.01191871603 | AR163: 0.1053077021 | AS163: 2.443460953e-08 | AT163: 716.1253368 | AU163: 0.005632538334 | AV163: 0.03680779951 | BA163: =REZIST(BE34) -> 9.21467303e-07 | BB163: =CPOCEL(BE34) -> 553.3809311 | BC163: =ROOCEL(BE34) -> 7788.0825 | BD163: =LOCEL(BE34) -> 18.06177815 | BE163: 1.374446786e-06 | BF163: 0.01191871603 | BG163: 0.1053077021 | BH163: 2.443460953e-08 | BI163: 559.4729194 | BJ163: 0.005632538334 | BK163: 0.03680779951
AL164: =REZIST(AT36) -> 9.21467303e-07 | AM164: =CPOCEL(AT36) -> 553.3809311 | AN164: =ROOCEL(AT36) -> 7788.0825 | AO164: =LOCEL(AT36) -> 18.06177815 | AP164: 1.390154749e-06 | AQ164: 0.01178404127 | AR164: 0.1065112187 | AS164: 2.471386221e-08 | AT164: 708.0335251 | AU164: 0.005569250048 | AV164: 0.03680779951 | BA164: =REZIST(BE36) -> 9.21467303e-07 | BB164: =CPOCEL(BE36) -> 553.3809311 | BC164: =ROOCEL(BE36) -> 7788.0825 | BD164: =LOCEL(BE36) -> 18.06177815 | BE164: 1.390154749e-06 | BF164: 0.01178404127 | BG164: 0.1065112187 | BH164: 2.471386221e-08 | BI164: 553.1511915 | BJ164: 0.005569250048 | BK164: 0.03680779951
AL165: =REZIST(AT38) -> 9.21467303e-07 | AM165: =CPOCEL(AT38) -> 553.3809311 | AN165: =ROOCEL(AT38) -> 7788.0825 | AO165: =LOCEL(AT38) -> 18.06177815 | AP165: 1.405862712e-06 | AQ165: 0.01165237601 | AR165: 0.1077147353 | AS165: 2.499311489e-08 | AT165: 700.122536 | AU165: =1/(AT43*AH41)+1/(2*PI()*$C$12)*(1/AO165)*LN(0.0045/0.004475) -> 2062.875055 | AV165: 0.03680779951 | BA165: =REZIST(BE38) -> 9.21467303e-07 | BB165: =CPOCEL(BE38) -> 553.3809311 | BC165: =ROOCEL(BE38) -> 7788.0825 | BD165: =LOCEL(BE38) -> 18.06177815 | BE165: 1.405862712e-06 | BF165: 0.01165237601 | BG165: 0.1077147353 | BH165: 2.499311489e-08 | BI165: 546.9707313 | BJ165: =1/(BE43*AH41)+1/(2*PI()*$C$12)*(1/BD165)*LN(0.0045/0.004475) -> 2062.875055 | BK165: 0.03680779951
AP166: ΣR | AQ166: =1/(1/AQ156+1/AQ157+1/AQ158+1/AQ159+1/AQ160+1/AQ161+1/AQ162+1/AQ163+1/AQ164+1/AQ165) -> 0.00122692665 | BE166: ΣR | BF166: =1/(1/BF156+1/BF157+1/BF158+1/BF159+1/BF160+1/BF161+1/BF162+1/BF163+1/BF164+1/BF165) -> 0.00122692665
AP167: U | AQ167: =$C$17*AQ166 -> 0.0009053533712 | BE167: U | BF167: =$C$17*BF166 -> 0.0009053533712
AI168: 10 | AL168: ρ ocel [Ωm] | AM168: Cp ocel [J/kg*K] | AN168: ρ ocel [kg/m3] | AO168: λ ocel [W/m*k] | AP168: S [m2] | AQ168: R ocel [Ω] | AR168: C [J/K] | AS168: V [m3] | AT168: Rslozene dilky L | AU168: Rslozene vrstvy | AV168: U [V] | AZ168: 21 | BA168: ρ ocel [Ωm] | BB168: Cp ocel [J/kg*K] | BC168: ρ ocel [kg/m3] | BD168: λ ocel [W/m*k] | BE168: S [m2] | BF168: R ocel [Ω] | BG168: C [J/K] | BH168: V [m3] | BI168: Rslozene dilky P | BJ168: Rslozene vrstvy | BK168: U [V]
AL169: =REZIST(AU20) -> 9.21467303e-07 | AM169: =CPOCEL(AU20) -> 553.3809311 | AN169: =ROOCEL(AU20) -> 7788.0825 | AO169: =LOCEL(AU20) -> 18.06177815 | AP169: =(PI()*AB47^2-PI()*AB46^2) -> 1.264491043e-06 | AQ169: =AL169*$C$12/AP169 -> 0.01295512612 | AR169: =AS169*AN169*AM169 -> 0.09688308598 | AS169: =AP169*$C$12 -> 2.247984077e-08 | AT169: =(($C$12/2)/(AO169*AP169))+(($C$12/2)/(AO156*AP156)) -> 778.3971053 | AU169: =1/(2*PI()*$C$12)*(1/AO169)*LN(AC46/AD46)+1/(2*PI()*$C$12)*(1/AO170)*LN(AC60/AD60) -> 0.00611931278 | AV169: =$AQ$179*$C$5 -> 0.03680779951 | BA169: =REZIST(BF20) -> 9.21467303e-07 | BB169: =CPOCEL(BF20) -> 553.3809311 | BC169: =ROOCEL(BF20) -> 7788.0825 | BD169: =LOCEL(BF20) -> 18.06177815 | BE169: =(PI()*AB47^2-PI()*AB46^2) -> 1.264491043e-06 | BF169: =BA169*0.01/BE169 -> 0.007287258443 | BG169: =BH169*BC169*BB169 -> 0.09688308598 | BH169: =AP65*$C$12 -> 2.247984077e-08 | BJ169: =1/(2*PI()*0.01)*(1/BD169)*LN(AC46/AD46)+1/(2*PI()*0.01)*(1/BD170)*LN(AC60/AD60) -> 0.01087877828 | BK169: =$BB$183*$C$5 -> 0.0009512409442
AL170: =REZIST(AU22) -> 9.21467303e-07 | AM170: =CPOCEL(AU22) -> 553.3809311 | AN170: =ROOCEL(AU22) -> 7788.0825 | AO170: =LOCEL(AU22) -> 18.06177815 | AP170: 1.280199006e-06 | AQ170: =AL170*$C$12/AP170 -> 0.01279616752 | AR170: 0.09808660257 | AS170: 2.275909345e-08 | AT170: 768.8462205 | AU170: 0.006044685153 | AV170: =$AQ$179*$C$5 -> 0.03680779951 | BA170: =REZIST(BF22) -> 9.21467303e-07 | BB170: =CPOCEL(BF22) -> 553.3809311 | BC170: =ROOCEL(BF22) -> 7788.0825 | BD170: =LOCEL(BF22) -> 18.06177815 | BE170: 1.280199006e-06 | BF170: =BA170*0.01/BE170 -> 0.007197844229 | BG170: 0.09808660257 | BH170: 2.275909345e-08 | BJ170: =1/(2*PI()*0.01)*(1/BD170)*LN(AC47/AD47)+1/(2*PI()*0.01)*(1/BD171)*LN(AC61/AD61) -> 0.01074610694 | BK170: =$BB$183*$C$5 -> 0.0009512409442
AL171: =REZIST(AU24) -> 9.21467303e-07 | AM171: =CPOCEL(AU24) -> 553.3809311 | AN171: =ROOCEL(AU24) -> 7788.0825 | AO171: =LOCEL(AU24) -> 18.06177815 | AP171: 1.29590697e-06 | AQ171: 0.01264106246 | AR171: 0.09929011917 | AS171: 2.303834613e-08 | AT171: 759.5268724 | AU171: 0.005971855849 | AV171: 0.03680779951 | BA171: =REZIST(BF24) -> 9.21467303e-07 | BB171: =CPOCEL(BF24) -> 553.3809311 | BC171: =ROOCEL(BF24) -> 7788.0825 | BD171: =LOCEL(BF24) -> 18.06177815 | BE171: 1.29590697e-06 | BF171: 0.007110597633 | BG171: 0.09929011917 | BH171: 2.303834613e-08 | BJ171: 0.01061663262 | BK171: 0.0009512409442
AL172: =REZIST(AU26) -> 9.21467303e-07 | AM172: =CPOCEL(AU26) -> 553.3809311 | AN172: =ROOCEL(AU26) -> 7788.0825 | AO172: =LOCEL(AU26) -> 18.06177815 | AP172: 1.311614933e-06 | AQ172: 0.01248967249 | AR172: 0.1004936358 | AS172: 2.331759881e-08 | AT172: 750.4307422 | AU172: 0.005900760637 | AV172: 0.03680779951 | BA172: =REZIST(BF26) -> 9.21467303e-07 | BB172: =CPOCEL(BF26) -> 553.3809311 | BC172: =ROOCEL(BF26) -> 7788.0825 | BD172: =LOCEL(BF26) -> 18.06177815 | BE172: 1.311614933e-06 | BF172: 0.007025440775 | BG172: 0.1004936358 | BH172: 2.331759881e-08 | BJ172: 0.01049024113 | BK172: 0.0009512409442
AL173: =REZIST(AU28) -> 9.21467303e-07 | AM173: =CPOCEL(AU28) -> 553.3809311 | AN173: =ROOCEL(AU28) -> 7788.0825 | AO173: =LOCEL(AU28) -> 18.06177815 | AP173: 1.327322896e-06 | AQ173: 0.01234186571 | AR173: 0.1016971524 | AS173: 2.359685149e-08 | AT173: 741.549905 | AU173: 0.005831338313 | AV173: 0.03680779951 | BA173: =REZIST(BF28) -> 9.21467303e-07 | BB173: =CPOCEL(BF28) -> 553.3809311 | BC173: =ROOCEL(BF28) -> 7788.0825 | BD173: =LOCEL(BF28) -> 18.06177815 | BE173: 1.327322896e-06 | BF173: 0.006942299464 | BG173: 0.1016971524 | BH173: 2.359685149e-08 | BJ173: 0.01036682367 | BK173: 0.0009512409442
AL174: =REZIST(AU30) -> 9.21467303e-07 | AM174: =CPOCEL(AU30) -> 553.3809311 | AN174: =ROOCEL(AU30) -> 7788.0825 | AO174: =LOCEL(AU30) -> 18.06177815 | AP174: 1.343030859e-06 | AQ174: 0.01219751641 | AR174: 0.102900669 | AS174: 2.387610417e-08 | AT174: 732.8768067 | AU174: 0.005763530516 | AV174: 0.03680779951 | BA174: =REZIST(BF30) -> 9.21467303e-07 | BB174: =CPOCEL(BF30) -> 553.3809311 | BC174: =ROOCEL(BF30) -> 7788.0825 | BD174: =LOCEL(BF30) -> 18.06177815 | BE174: 1.343030859e-06 | BF174: 0.006861102979 | BG174: 0.102900669 | BH174: 2.387610417e-08 | BJ174: 0.01024627647 | BK174: 0.0009512409442
AL175: =REZIST(AU32) -> 9.21467303e-07 | AM175: =CPOCEL(AU32) -> 553.3809311 | AN175: =ROOCEL(AU32) -> 7788.0825 | AO175: =LOCEL(AU32) -> 18.06177815 | AP175: 1.358738823e-06 | AQ175: 0.01205650466 | AR175: 0.1041041856 | AS175: 2.415535685e-08 | AT175: 724.4042425 | AU175: 0.005697281572 | AV175: 0.03680779951 | BA175: =REZIST(BF32) -> 9.21467303e-07 | BB175: =CPOCEL(BF32) -> 553.3809311 | BC175: =ROOCEL(BF32) -> 7788.0825 | BD175: =LOCEL(BF32) -> 18.06177815 | BE175: 1.358738823e-06 | BF175: 0.006781783869 | BG175: 0.1041041856 | BH175: 2.415535685e-08 | BJ175: 0.01012850057 | BK175: 0.0009512409442
AL176: =REZIST(AU34) -> 9.21467303e-07 | AM176: =CPOCEL(AU34) -> 553.3809311 | AN176: =ROOCEL(AU34) -> 7788.0825 | AO176: =LOCEL(AU34) -> 18.06177815 | AP176: 1.374446786e-06 | AQ176: 0.01191871603 | AR176: 0.1053077021 | AS176: 2.443460953e-08 | AT176: 716.1253368 | AU176: 0.005632538334 | AV176: 0.03680779951 | BA176: =REZIST(BF34) -> 9.21467303e-07 | BB176: =CPOCEL(BF34) -> 553.3809311 | BC176: =ROOCEL(BF34) -> 7788.0825 | BD176: =LOCEL(BF34) -> 18.06177815 | BE176: 1.374446786e-06 | BF176: 0.006704277768 | BG176: 0.1053077021 | BH176: 2.443460953e-08 | BJ176: 0.01001340148 | BK176: 0.0009512409442
AL177: =REZIST(AU36) -> 9.21467303e-07 | AM177: =CPOCEL(AU36) -> 553.3809311 | AN177: =ROOCEL(AU36) -> 7788.0825 | AO177: =LOCEL(AU36) -> 18.06177815 | AP177: 1.390154749e-06 | AQ177: 0.01178404127 | AR177: 0.1065112187 | AS177: 2.471386221e-08 | AT177: 708.0335251 | AU177: 0.005569250048 | AV177: 0.03680779951 | BA177: =REZIST(BF36) -> 9.21467303e-07 | BB177: =CPOCEL(BF36) -> 553.3809311 | BC177: =ROOCEL(BF36) -> 7788.0825 | BD177: =LOCEL(BF36) -> 18.06177815 | BE177: 1.390154749e-06 | BF177: 0.006628523217 | BG177: 0.1065112187 | BH177: 2.471386221e-08 | BJ177: 0.009900888973 | BK177: 0.0009512409442
AL178: =REZIST(AU38) -> 9.21467303e-07 | AM178: =CPOCEL(AU38) -> 553.3809311 | AN178: =ROOCEL(AU38) -> 7788.0825 | AO178: =LOCEL(AU38) -> 18.06177815 | AP178: 1.405862712e-06 | AQ178: 0.01165237601 | AR178: 0.1077147353 | AS178: 2.499311489e-08 | AT178: 700.122536 | AU178: =1/(AU43*AH41)+1/(2*PI()*$C$12)*(1/AO178)*LN(0.0045/0.004475) -> 2062.875055 | AV178: 0.03680779951 | BA178: =REZIST(BF38) -> 9.21467303e-07 | BB178: =CPOCEL(BF38) -> 553.3809311 | BC178: =ROOCEL(BF38) -> 7788.0825 | BD178: =LOCEL(BF38) -> 18.06177815 | BE178: 1.405862712e-06 | BF178: 0.006554461505 | BG178: 0.1077147353 | BH178: 2.499311489e-08 | BJ178: =1/(2*PI()*0.01)*(1/BV28)*LN(0.005/0.0045)+1/(2*PI()*0.01)*(1/BD178)*LN(0.0045/0.004475) -> 0.00909417517 | BK178: 0.0009512409442
AP179: ΣR | AQ179: =1/(1/AQ169+1/AQ170+1/AQ171+1/AQ172+1/AQ173+1/AQ174+1/AQ175+1/AQ176+1/AQ177+1/AQ178) -> 0.00122692665 | BE179: ΣR | BF179: =1/(1/BF169+1/BF170+1/BF171+1/BF172+1/BF173+1/BF174+1/BF175+1/BF176+1/BF177+1/BF178) -> 0.0006901462408
AP180: U | AQ180: =$C$17*AQ179 -> 0.0009053533712 | BE180: U | BF180: =$C$17*BF179 -> 0.0005092612713
AI181: 11 | AL181: ρ ocel [Ωm] | AM181: Cp ocel [J/kg*K] | AN181: ρ ocel [kg/m3] | AO181: λ ocel [W/m*k] | AP181: S [m2] | AQ181: R ocel [Ω] | AR181: C [J/K] | AS181: V [m3] | AT181: Rslozene dilky L | AU181: Rslozene vrstvy | AV181: U [V] | AW181: Rslozene dilky P
AL182: =REZIST(AV20) -> 9.21467303e-07 | AM182: =CPOCEL(AV20) -> 553.3809311 | AN182: =ROOCEL(AV20) -> 7788.0825 | AO182: =LOCEL(AV20) -> 18.06177815 | AP182: =(PI()*AB47^2-PI()*AB46^2) -> 1.264491043e-06 | AQ182: =AL182*$C$12/AP182 -> 0.01295512612 | AR182: =AS182*AN182*AM182 -> 0.09688308598 | AS182: =AP182*$C$12 -> 2.247984077e-08 | AT182: =(($C$12/2)/(AO182*AP182))+(($C$12/2)/(AO169*AP169)) -> 778.3971053 | AU182: =1/(2*PI()*$C$12)*(1/AO182)*LN(AC46/AD46)+1/(2*PI()*$C$12)*(1/AO183)*LN(AC60/AD60) -> 0.00611931278 | AV182: =$AQ$192*$C$5 -> 0.03680779951 | AW182: =(($C$12/2)/(AO182*AP182))+(($C$12/2)/(BD46*BE46)) -> 778.3971053 | BA182: Poslední dílek makety
AL183: =REZIST(AV22) -> 9.21467303e-07 | AM183: =CPOCEL(AV22) -> 553.3809311 | AN183: =ROOCEL(AV22) -> 7788.0825 | AO183: =LOCEL(AV22) -> 18.06177815 | AP183: 1.280199006e-06 | AQ183: =AL183*$C$12/AP183 -> 0.01279616752 | AR183: 0.09808660257 | AS183: 2.275909345e-08 | AT183: 768.8462205 | AU183: 0.006044685153 | AV183: =$AQ$192*$C$5 -> 0.03680779951 | AW183: 768.8462205 | BA183: ΣR | BB183: =1/(1/BF179+1/BX28) -> 3.170803147e-05
AL184: =REZIST(AV24) -> 9.21467303e-07 | AM184: =CPOCEL(AV24) -> 553.3809311 | AN184: =ROOCEL(AV24) -> 7788.0825 | AO184: =LOCEL(AV24) -> 18.06177815 | AP184: 1.29590697e-06 | AQ184: 0.01264106246 | AR184: 0.09929011917 | AS184: 2.303834613e-08 | AT184: 759.5268724 | AU184: 0.005971855849 | AV184: 0.03680779951 | AW184: 759.5268724 | BA184: U | BB184: =BB183*C5 -> 0.0009512409442
AL185: =REZIST(AV26) -> 9.21467303e-07 | AM185: =CPOCEL(AV26) -> 553.3809311 | AN185: =ROOCEL(AV26) -> 7788.0825 | AO185: =LOCEL(AV26) -> 18.06177815 | AP185: 1.311614933e-06 | AQ185: 0.01248967249 | AR185: 0.1004936358 | AS185: 2.331759881e-08 | AT185: 750.4307422 | AU185: 0.005900760637 | AV185: 0.03680779951 | AW185: 750.4307422
AL186: =REZIST(AV28) -> 9.21467303e-07 | AM186: =CPOCEL(AV28) -> 553.3809311 | AN186: =ROOCEL(AV28) -> 7788.0825 | AO186: =LOCEL(AV28) -> 18.06177815 | AP186: 1.327322896e-06 | AQ186: 0.01234186571 | AR186: 0.1016971524 | AS186: 2.359685149e-08 | AT186: 741.549905 | AU186: 0.005831338313 | AV186: 0.03680779951 | AW186: 741.549905
AL187: =REZIST(AV30) -> 9.21467303e-07 | AM187: =CPOCEL(AV30) -> 553.3809311 | AN187: =ROOCEL(AV30) -> 7788.0825 | AO187: =LOCEL(AV30) -> 18.06177815 | AP187: 1.343030859e-06 | AQ187: 0.01219751641 | AR187: 0.102900669 | AS187: 2.387610417e-08 | AT187: 732.8768067 | AU187: 0.005763530516 | AV187: 0.03680779951 | AW187: 732.8768067
AL188: =REZIST(AV32) -> 9.21467303e-07 | AM188: =CPOCEL(AV32) -> 553.3809311 | AN188: =ROOCEL(AV32) -> 7788.0825 | AO188: =LOCEL(AV32) -> 18.06177815 | AP188: 1.358738823e-06 | AQ188: 0.01205650466 | AR188: 0.1041041856 | AS188: 2.415535685e-08 | AT188: 724.4042425 | AU188: 0.005697281572 | AV188: 0.03680779951 | AW188: 724.4042425
AL189: =REZIST(AV34) -> 9.21467303e-07 | AM189: =CPOCEL(AV34) -> 553.3809311 | AN189: =ROOCEL(AV34) -> 7788.0825 | AO189: =LOCEL(AV34) -> 18.06177815 | AP189: 1.374446786e-06 | AQ189: 0.01191871603 | AR189: 0.1053077021 | AS189: 2.443460953e-08 | AT189: 716.1253368 | AU189: 0.005632538334 | AV189: 0.03680779951 | AW189: 716.1253368
AL190: =REZIST(AV36) -> 9.21467303e-07 | AM190: =CPOCEL(AV36) -> 553.3809311 | AN190: =ROOCEL(AV36) -> 7788.0825 | AO190: =LOCEL(AV36) -> 18.06177815 | AP190: 1.390154749e-06 | AQ190: 0.01178404127 | AR190: 0.1065112187 | AS190: 2.471386221e-08 | AT190: 708.0335251 | AU190: 0.005569250048 | AV190: 0.03680779951 | AW190: 708.0335251
AL191: =REZIST(AV38) -> 9.21467303e-07 | AM191: =CPOCEL(AV38) -> 553.3809311 | AN191: =ROOCEL(AV38) -> 7788.0825 | AO191: =LOCEL(AV38) -> 18.06177815 | AP191: 1.405862712e-06 | AQ191: 0.01165237601 | AR191: 0.1077147353 | AS191: 2.499311489e-08 | AT191: 700.122536 | AU191: =1/(AV43*AH41)+1/(2*PI()*$C$12)*(1/AO191)*LN(0.0045/0.004475) -> 2062.875055 | AV191: 0.03680779951 | AW191: 700.122536
AP192: ΣR | AQ192: =1/(1/AQ182+1/AQ183+1/AQ184+1/AQ185+1/AQ186+1/AQ187+1/AQ188+1/AQ189+1/AQ190+1/AQ191) -> 0.00122692665
AP193: U | AQ193: =$C$17*AQ192 -> 0.0009053533712

Sheet List2
